Workbook

Sheet Worksheet
F1: adjust difficulty here. Aim for a spread. | G1: Number Topics: Revision Questions | I1: Answers (by default this column will not print)
A2: Include questions on these NUMBER topics (if you only choose a limited number of topics, some questions may appear blank) | G2: No calculators: write working whenever you need to. Use another sheet if you need more space
A3: Whole Numbers, Numerals, Count, Order | B3: TRUE | C3: Fractions | D3: TRUE | F3: =IF(O3=1,"Easy",IF(O3=2,"Medium","Hard")) -> Easy | G3: 1 | H3: The number 52 is even. True or False? | I3: TRUE | N3: =CONCATENATE(TRUE,F3,COUNTIF($F$3:F3,F3)) -> TRUEEasy1 | O3: 1 | P3: =VLOOKUP(N3,Questions,20,FALSE) -> The number 56 is odd. True or False? | Q3: =VLOOKUP(N3,Questions,30,FALSE) -> FALSE
A4: Add and Subtract | B4: TRUE | C4: Decimals and Money | D4: TRUE | F4: =IF(O4=1,"Easy",IF(O4=2,"Medium","Hard")) -> Easy | G4: 2 | H4: 8 + 8 | I4: 16 | N4: =CONCATENATE(TRUE,F4,COUNTIF($F$3:F4,F4)) -> TRUEEasy2 | O4: 1 | P4: 6 + 7 | Q4: 13
A5: Multiply | B5: TRUE | C5: Percentages | D5: TRUE | F5: Easy | G5: 3 | H5: What does 100% mean? | I5: all | N5: =CONCATENATE(TRUE,F5,COUNTIF($F$3:F5,F5)) -> TRUEEasy3 | O5: 1 | P5: What does 100% mean? | Q5: all
A6: Divide | B6: TRUE | C6: Rounding | D6: TRUE | F6: Easy | G6: 4 | H6: Fill in the missing numbers: 900, 890, 880, ____, ____, 850, 840 | I6: 870, 860 | N6: =CONCATENATE(TRUE,F6,COUNTIF($F$3:F6,F6)) -> TRUEEasy4 | O6: 1 | P6: Fill in the missing numbers: 250, 240, 230, ____, ____, 200, 190 | Q6: 220, 210
A7: Choose the Operation | B7: TRUE | C7: Negative Numbers | D7: TRUE | F7: Easy | G7: 5 | H7: Fractions. What is 1/4 of 20 ? | I7: 5 | N7: =CONCATENATE(TRUE,F7,COUNTIF($F$3:F7,F7)) -> TRUEEasy5 | O7: 1 | P7: Fractions. What is 1/4 of 8 ? | Q7: 2
A8: =IF(OR('SYSTEM FORMULAE'!A3<20,'SYSTEM FORMULAE'!U1<'SYSTEM FORMULAE'!T1,'SYSTEM FORMULAE'!U2<'SYSTEM FORMULAE'!T2,'SYSTEM FORMULAE'!U3<'SYSTEM FORMULAE'!T3),"there are not enough potential questions. Please choose more topics","") ->  | F8: Medium | G8: 6 | H8: Divide: 19 ÷ 4 , showing the remainder | I8: 4r3 | N8: =CONCATENATE(TRUE,F8,COUNTIF($F$3:F8,F8)) -> TRUEMedium1 | O8: 2 | P8: Divide: 34 ÷ 4 , showing the remainder | Q8: 8r2
F9: Medium | G9: 7 | H9: Fractions. What is 1/5 of 50 ? | I9: 10 | N9: =CONCATENATE(TRUE,F9,COUNTIF($F$3:F9,F9)) -> TRUEMedium2 | O9: 2 | P9: Fractions. What is 1/5 of 35 ? | Q9: 7
F10: Medium | G10: 8 | H10: Fill in the missing number: 7 + _____ = 12 | I10: 5 | N10: =CONCATENATE(TRUE,F10,COUNTIF($F$3:F10,F10)) -> TRUEMedium3 | O10: 2 | P10: Fill in the missing number: 9 + _____ = 14 | Q10: 5
F11: Medium | G11: 9 | H11: Write these amounts of money in order from smallest to biggest: £ 4.07, £4.7, £4.77, £4.74 | I11: £4.07, £4.7, £4.74, £4.77 | N11: =CONCATENATE(TRUE,F11,COUNTIF($F$3:F11,F11)) -> TRUEMedium4 | O11: 2 | P11: Write these amounts of money in order from smallest to biggest: £ 4.06, £4.6, £4.66, £4.64 | Q11: £4.06, £4.6, £4.64, £4.66
F12: Medium | G12: 10 | H12: What is half of 16? | I12: 8 | N12: =CONCATENATE(TRUE,F12,COUNTIF($F$3:F12,F12)) -> TRUEMedium5 | O12: 2 | P12: What is half of 12? | Q12: 6
F13: Medium | G13: 11 | H13: Fill in the missing numbers: 857, 757, 657, ____, ____, 357, 257 | I13: 557, 457 | N13: =CONCATENATE(TRUE,F13,COUNTIF($F$3:F13,F13)) -> TRUEMedium6 | O13: 2 | P13: Fill in the missing numbers: 739, 639, 539, ____, ____, 239, 139 | Q13: 439, 339
F14: Medium | G14: 12 | H14: Fill in the blank: £5.7 = _____ pounds and ______ pence | I14: 5 pounds and 70 pence | N14: =CONCATENATE(TRUE,F14,COUNTIF($F$3:F14,F14)) -> TRUEMedium7 | O14: 2 | P14: Fill in the blank: £1.9 = _____ pounds and ______ pence | Q14: 1 pounds and 90 pence
F15: Medium | G15: 13 | H15: Circle all the odd numbers in this list: 93, 99, 19, 22, 60 | I15: 93 99 19 | N15: =CONCATENATE(TRUE,F15,COUNTIF($F$3:F15,F15)) -> TRUEMedium8 | O15: 2 | P15: Circle all the even numbers in this list: 28, 39, 44, 52, 90 | Q15: 28 44 52 90
F16: Medium | G16: 14 | H16: Take away: 25 – 6 | I16: 19 | N16: =CONCATENATE(TRUE,F16,COUNTIF($F$3:F16,F16)) -> TRUEMedium9 | O16: 2 | P16: Take away: 32 – 8 | Q16: 24
F17: Hard | G17: 15 | H17: How many pounds are there in 1006p? | I17: £10.06 | N17: =CONCATENATE(TRUE,F17,COUNTIF($F$3:F17,F17)) -> TRUEHard1 | O17: 3 | P17: How many pounds are there in 1030p? | Q17: £10.30
F18: Hard | G18: 16 | H18: Multiply 157 × 10 | I18: 1570 | N18: =CONCATENATE(TRUE,F18,COUNTIF($F$3:F18,F18)) -> TRUEHard2 | O18: 3 | P18: Multiply 625 × 10 | Q18: 6250
F19: Hard | G19: 17 | H19: What is 8 × 9 ? | I19: 72 | N19: =CONCATENATE(TRUE,F19,COUNTIF($F$3:F19,F19)) -> TRUEHard3 | O19: 3 | P19: What is 7 × 6 ? | Q19: 42
F20: Hard | G20: 18 | H20: Multiply 10 × 192 | I20: 1920 | N20: =CONCATENATE(TRUE,F20,COUNTIF($F$3:F20,F20)) -> TRUEHard4 | O20: 3 | P20: Multiply 10 × 705 | Q20: 7050
F21: Hard | G21: 19 | H21: Write down a chimney sum to take away: 300 – 278 | I21: 22 | N21: =CONCATENATE(TRUE,F21,COUNTIF($F$3:F21,F21)) -> TRUEHard5 | O21: 3 | P21: Write down a chimney sum to take away: 400 – 309 | Q21: 91
F22: Hard | G22: 20 | H22: Fractions. What is 1/2 of 20 ? | I22: 10 | N22: =CONCATENATE(TRUE,F22,COUNTIF($F$3:F22,F22)) -> TRUEHard6 | O22: 3 | P22: Fractions. What is 1/2 of 18 ? | Q22: 9

Sheet SYSTEM FORMULAE
A1: Possible topics | B1: Num | C1: +- | D1: Mult | E1: Divide | I1: not included as needs diagram | S1: hard | T1: =COUNTIF(Worksheet!$F$3:$F$22,S1) -> 6 | U1: =COUNTIF(AH$5:AH$646,"TRUEHard") -> 35
B2: Choose | C2: Frac | D2: Dec | E2: % | I2: shade fraction of shape; choose coins to make given amount | S2: medium | T2: =COUNTIF(Worksheet!$F$3:$F$22,S2) -> 9 | U2: =COUNTIF(AH$5:AH$646,"TRUEMedium") -> 83
A3: =COUNTIF(AE5:AE646,TRUE) -> 174 | B3: Neg | C3: Round | S3: easy | T3: =COUNTIF(Worksheet!$F$3:$F$22,S3) -> 5 | U3: =COUNTIF(AH$5:AH$646,"TRUEEasy") -> 56
A4: allow inclusion? | B4: rand() | C4: topic | D4: difficulty | U4: Answers
A5: =CONCATENATE(AE5,D5,AG5) -> TRUEMedium1 | B5: =RAND() -> 0.458465981 | C5: Divide | D5: Medium | E5: 102 | F5: Divide: | G5: =4*RANDBETWEEN(1,10)+RANDBETWEEN(1,3) -> 34 | H5: ÷ | I5: 4 | J5: , showing the remainder | T5: =CONCATENATE(F5," ",G5," ",H5," ",I5," ",J5," ",K5," ",L5," ",M5," ",N5," ",O5," ",P5," ",Q5," ",R5) -> Divide: 34 ÷ 4 , showing the remainder | U5: =INT(G5/I5) -> 8 | V5: r | W5: =MOD(G5,I5) -> 2 | AD5: =IF(OR(ISNA(U5),ISNA(V5),ISNA(W5),ISNA(X5),ISNA(Y5),ISNA(Z5),ISNA(AA5),ISNA(AB5),ISNA(AC5)),NA(),CONCATENATE(U5,V5,W5,X5,Y5,Z5,AA5,AB5)) -> 8r2 | AE5: =IF(ISNA(AD5),FALSE,IF(C5=$B$1,Worksheet!$B$3,IF(C5=$C$1,Worksheet!$B$4,IF(C5=$D$1,Worksheet!$B$5,IF(C5=$E$1,Worksheet!$B$6,IF(C5=$B$2,Worksheet!$B$7,IF(C5=$C$2,Worksheet!$D$3,IF(C5=$D$2,Worksheet!$D$4,IF(C5=$E$2,Worksheet!$D$5,IF(C5=$C$3,Worksheet!$D$6,IF(C5=$B$3,Worksheet!$D$7,FALSE))))))))))) -> TRUE | AF5: =IF(AE5,D5,"") -> Medium | AG5: =IF(AE5,COUNTIF($AF$5:AF5,AF5),"X") -> 1 | AH5: =CONCATENATE(AE5,AF5) -> TRUEMedium
A6: =CONCATENATE(AE6,D6,AG6) -> TRUEMedium2 | B6: =RAND() -> 0.2741478249 | C6: Frac | D6: Medium | E6: 126 | F6: Fractions. What is | G6: 1/5 | H6: of | I6: =5*RANDBETWEEN(5,10) -> 35 | J6: ? | T6: =CONCATENATE(F6," ",G6," ",H6," ",I6," ",J6," ",K6," ",L6," ",M6," ",N6," ",O6," ",P6," ",Q6," ",R6) -> Fractions. What is 1/5 of 35 ? | U6: =I6/5 -> 7 | AD6: =IF(OR(ISNA(U6),ISNA(V6),ISNA(W6),ISNA(X6),ISNA(Y6),ISNA(Z6),ISNA(AA6),ISNA(AB6),ISNA(AC6)),NA(),CONCATENATE(U6,V6,W6,X6,Y6,Z6,AA6,AB6)) -> 7 | AE6: =IF(ISNA(AD6),FALSE,IF(C6=$B$1,Worksheet!$B$3,IF(C6=$C$1,Worksheet!$B$4,IF(C6=$D$1,Worksheet!$B$5,IF(C6=$E$1,Worksheet!$B$6,IF(C6=$B$2,Worksheet!$B$7,IF(C6=$C$2,Worksheet!$D$3,IF(C6=$D$2,Worksheet!$D$4,IF(C6=$E$2,Worksheet!$D$5,IF(C6=$C$3,Worksheet!$D$6,IF(C6=$B$3,Worksheet!$D$7,FALSE))))))))))) -> TRUE | AF6: =IF(AE6,D6,"") -> Medium | AG6: =IF(AE6,COUNTIF($AF$5:AF6,AF6),"X") -> 2 | AH6: =CONCATENATE(AE6,AF6) -> TRUEMedium
A7: =CONCATENATE(AE7,D7,AG7) -> TRUEEasy1 | B7: =RAND() -> 0.09492268088 | C7: Mult | D7: Easy | E7: 69 | F7: The number | G7: =RANDBETWEEN(1,100) -> 56 | H7: is | I7: =IF(RAND()<0.5,"odd","even") -> odd | J7: . True or False? | T7: =CONCATENATE(F7," ",G7," ",H7," ",I7,"",J7," ",K7," ",L7," ",M7," ",N7," ",O7," ",P7," ",Q7," ",R7) -> The number 56 is odd. True or False? | U7: =IF(I7="odd",ISODD(G7),ISEVEN(G7)) -> FALSE | AD7: =IF(OR(ISNA(U7),ISNA(V7),ISNA(W7),ISNA(X7),ISNA(Y7),ISNA(Z7),ISNA(AA7),ISNA(AB7),ISNA(AC7)),NA(),CONCATENATE(U7,V7,W7,X7,Y7,Z7,AA7,AB7)) -> FALSE | AE7: =IF(ISNA(AD7),FALSE,IF(C7=$B$1,Worksheet!$B$3,IF(C7=$C$1,Worksheet!$B$4,IF(C7=$D$1,Worksheet!$B$5,IF(C7=$E$1,Worksheet!$B$6,IF(C7=$B$2,Worksheet!$B$7,IF(C7=$C$2,Worksheet!$D$3,IF(C7=$D$2,Worksheet!$D$4,IF(C7=$E$2,Worksheet!$D$5,IF(C7=$C$3,Worksheet!$D$6,IF(C7=$B$3,Worksheet!$D$7,FALSE))))))))))) -> TRUE | AF7: =IF(AE7,D7,"") -> Easy | AG7: =IF(AE7,COUNTIF($AF$5:AF7,AF7),"X") -> 1 | AH7: =CONCATENATE(AE7,AF7) -> TRUEEasy
A8: =CONCATENATE(AE8,D8,AG8) -> TRUEEasy2 | B8: =RAND() -> 0.2542461885 | C8: +- | D8: Easy | E8: 50 | F8: =RANDBETWEEN(6,9) -> 6 | G8: + | H8: =RANDBETWEEN(6,9) -> 7 | T8: =CONCATENATE(F8," ",G8," ",H8," ",I8," ",J8," ",K8," ",L8," ",M8," ",N8," ",O8," ",P8," ",Q8," ",R8) -> 6 + 7 | U8: =F8+H8 -> 13 | AD8: =IF(OR(ISNA(U8),ISNA(V8),ISNA(W8),ISNA(X8),ISNA(Y8),ISNA(Z8),ISNA(AA8),ISNA(AB8),ISNA(AC8)),NA(),CONCATENATE(U8,V8,W8,X8,Y8,Z8,AA8,AB8)) -> 13 | AE8: =IF(ISNA(AD8),FALSE,IF(C8=$B$1,Worksheet!$B$3,IF(C8=$C$1,Worksheet!$B$4,IF(C8=$D$1,Worksheet!$B$5,IF(C8=$E$1,Worksheet!$B$6,IF(C8=$B$2,Worksheet!$B$7,IF(C8=$C$2,Worksheet!$D$3,IF(C8=$D$2,Worksheet!$D$4,IF(C8=$E$2,Worksheet!$D$5,IF(C8=$C$3,Worksheet!$D$6,IF(C8=$B$3,Worksheet!$D$7,FALSE))))))))))) -> TRUE | AF8: =IF(AE8,D8,"") -> Easy | AG8: =IF(AE8,COUNTIF($AF$5:AF8,AF8),"X") -> 2 | AH8: =CONCATENATE(AE8,AF8) -> TRUEEasy
A9: =CONCATENATE(AE9,D9,AG9) -> TRUEHard1 | B9: =RAND() -> 0.6863183874 | C9: Dec | D9: Hard | E9: 141 | F9: How many pounds are there in | G9: =1000+RANDBETWEEN(1,99) -> 1030 | H9: p? | T9: =CONCATENATE(F9," ",G9,"",H9," ",I9," ",J9," ",K9," ",L9," ",M9," ",N9," ",O9," ",P9," ",Q9," ",R9) -> How many pounds are there in 1030p? | U9: £ | V9: =TEXT(G9/100,"#.00") -> 10.30 | AD9: =IF(OR(ISNA(U9),ISNA(V9),ISNA(W9),ISNA(X9),ISNA(Y9),ISNA(Z9),ISNA(AA9),ISNA(AB9),ISNA(AC9)),NA(),CONCATENATE(U9,V9,W9,X9,Y9,Z9,AA9,AB9)) -> £10.30 | AE9: =IF(ISNA(AD9),FALSE,IF(C9=$B$1,Worksheet!$B$3,IF(C9=$C$1,Worksheet!$B$4,IF(C9=$D$1,Worksheet!$B$5,IF(C9=$E$1,Worksheet!$B$6,IF(C9=$B$2,Worksheet!$B$7,IF(C9=$C$2,Worksheet!$D$3,IF(C9=$D$2,Worksheet!$D$4,IF(C9=$E$2,Worksheet!$D$5,IF(C9=$C$3,Worksheet!$D$6,IF(C9=$B$3,Worksheet!$D$7,FALSE))))))))))) -> TRUE | AF9: =IF(AE9,D9,"") -> Hard | AG9: =IF(AE9,COUNTIF($AF$5:AF9,AF9),"X") -> 1 | AH9: =CONCATENATE(AE9,AF9) -> TRUEHard
A10: =CONCATENATE(AE10,D10,AG10) -> TRUEMedium3 | B10: =RAND() -> 0.5908377158 | C10: +- | D10: Medium | E10: 52 | F10: Fill in the missing number: | G10: =RANDBETWEEN(6,9) -> 9 | H10: + | I10: _____ | J10: = | K10: =RANDBETWEEN(11,19) -> 14 | T10: =CONCATENATE(F10," ",G10," ",H10," ",I10," ",J10," ",K10," ",L10," ",M10," ",N10," ",O10," ",P10," ",Q10," ",R10) -> Fill in the missing number: 9 + _____ = 14 | U10: =K10-G10 -> 5 | AD10: =IF(OR(ISNA(U10),ISNA(V10),ISNA(W10),ISNA(X10),ISNA(Y10),ISNA(Z10),ISNA(AA10),ISNA(AB10),ISNA(AC10)),NA(),CONCATENATE(U10,V10,W10,X10,Y10,Z10,AA10,AB10)) -> 5 | AE10: =IF(ISNA(AD10),FALSE,IF(C10=$B$1,Worksheet!$B$3,IF(C10=$C$1,Worksheet!$B$4,IF(C10=$D$1,Worksheet!$B$5,IF(C10=$E$1,Worksheet!$B$6,IF(C10=$B$2,Worksheet!$B$7,IF(C10=$C$2,Worksheet!$D$3,IF(C10=$D$2,Worksheet!$D$4,IF(C10=$E$2,Worksheet!$D$5,IF(C10=$C$3,Worksheet!$D$6,IF(C10=$B$3,Worksheet!$D$7,FALSE))))))))))) -> TRUE | AF10: =IF(AE10,D10,"") -> Medium | AG10: =IF(AE10,COUNTIF($AF$5:AF10,AF10),"X") -> 3 | AH10: =CONCATENATE(AE10,AF10) -> TRUEMedium
A11: =CONCATENATE(AE11,D11,AG11) -> TRUEMedium4 | B11: =RAND() -> 0.5665483857 | C11: Num | D11: Medium | E11: 147 | F11: Write these amounts of money in order from | G11: =CHOOSE(RANDBETWEEN(1,2),"smallest to biggest:","biggest to smallest:") -> smallest to biggest: | H11: =R11+S11/100 -> 4.06 | I11: =R11+S11/10 -> 4.6 | J11: =R11+S11/10+S11/100 -> 4.66 | K11: =R11+S11/10+R11/100 -> 4.64 | R11: =RANDBETWEEN(1,9) -> 4 | S11: =RANDBETWEEN(1,9) -> 6 | T11: =CONCATENATE(F11," ",G11," £ ",H11,", £",I11,", £",J11,", £",K11," ",L11," ",M11," ",N11," ",O11," ",P11," ",Q11) -> Write these amounts of money in order from smallest to biggest: £ 4.06, £4.6, £4.66, £4.64 | U11: =IF($G11="smallest to biggest:",LARGE($H11:$K11,4),LARGE($H11:$K11,1)) -> 4.06 | V11: =IF($G11="smallest to biggest:",LARGE($H11:$K11,3),LARGE($H11:$K11,2)) -> 4.6 | W11: =IF($G11="smallest to biggest:",LARGE($H11:$K11,2),LARGE($H11:$K11,3)) -> 4.64 | X11: =IF($G11="smallest to biggest:",LARGE($H11:$K11,1),LARGE($H11:$K11,4)) -> 4.66 | Z11: =IF(OR(H11=I11,H11=J11,H11=K11,I11=J11,I11=K11,J11=K11),NA(),"") ->  | AD11: =IF(OR(ISNA(U11),ISNA(V11),ISNA(W11),ISNA(X11),ISNA(Y11),ISNA(Z11),ISNA(AA11),ISNA(AB11),ISNA(AC11)),NA(),CONCATENATE("£",U11,", £",V11,", £",W11,", £",X11,Y11,Z11,AA11,AB11)) -> £4.06, £4.6, £4.64, £4.66 | AE11: =IF(ISNA(AD11),FALSE,IF(C11=$B$1,Worksheet!$B$3,IF(C11=$C$1,Worksheet!$B$4,IF(C11=$D$1,Worksheet!$B$5,IF(C11=$E$1,Worksheet!$B$6,IF(C11=$B$2,Worksheet!$B$7,IF(C11=$C$2,Worksheet!$D$3,IF(C11=$D$2,Worksheet!$D$4,IF(C11=$E$2,Worksheet!$D$5,IF(C11=$C$3,Worksheet!$D$6,IF(C11=$B$3,Worksheet!$D$7,FALSE))))))))))) -> TRUE | AF11: =IF(AE11,D11,"") -> Medium | AG11: =IF(AE11,COUNTIF($AF$5:AF11,AF11),"X") -> 4 | AH11: =CONCATENATE(AE11,AF11) -> TRUEMedium
A12: =CONCATENATE(AE12,D12,AG12) -> TRUEMedium5 | B12: =RAND() -> 0.6380795145 | C12: Divide | D12: Medium | E12: 87 | F12: What is half of | G12: =2*RANDBETWEEN(6,10) -> 12 | H12: ? | T12: =CONCATENATE(F12," ",G12,"",H12," ",I12," ",J12," ",K12," ",L12," ",M12," ",N12," ",O12," ",P12," ",Q12," ",R12) -> What is half of 12? | U12: =G12/2 -> 6 | AD12: =IF(OR(ISNA(U12),ISNA(V12),ISNA(W12),ISNA(X12),ISNA(Y12),ISNA(Z12),ISNA(AA12),ISNA(AB12),ISNA(AC12)),NA(),CONCATENATE(U12,V12,W12,X12,Y12,Z12,AA12,AB12)) -> 6 | AE12: =IF(ISNA(AD12),FALSE,IF(C12=$B$1,Worksheet!$B$3,IF(C12=$C$1,Worksheet!$B$4,IF(C12=$D$1,Worksheet!$B$5,IF(C12=$E$1,Worksheet!$B$6,IF(C12=$B$2,Worksheet!$B$7,IF(C12=$C$2,Worksheet!$D$3,IF(C12=$D$2,Worksheet!$D$4,IF(C12=$E$2,Worksheet!$D$5,IF(C12=$C$3,Worksheet!$D$6,IF(C12=$B$3,Worksheet!$D$7,FALSE))))))))))) -> TRUE | AF12: =IF(AE12,D12,"") -> Medium | AG12: =IF(AE12,COUNTIF($AF$5:AF12,AF12),"X") -> 5 | AH12: =CONCATENATE(AE12,AF12) -> TRUEMedium
A13: =CONCATENATE(AE13,D13,AG13) -> TRUEHard2 | B13: =RAND() -> 0.5599848963 | C13: Mult | D13: Hard | E13: 83 | F13: Multiply | G13: =RANDBETWEEN(101,999) -> 625 | H13: × | I13: 10 | T13: =CONCATENATE(F13," ",G13," ",H13," ",I13," ",J13," ",K13," ",L13," ",M13," ",N13," ",O13," ",P13," ",Q13," ",R13) -> Multiply 625 × 10 | U13: =G13*I13 -> 6250 | AD13: =IF(OR(ISNA(U13),ISNA(V13),ISNA(W13),ISNA(X13),ISNA(Y13),ISNA(Z13),ISNA(AA13),ISNA(AB13),ISNA(AC13)),NA(),CONCATENATE(U13,V13,W13,X13,Y13,Z13,AA13,AB13)) -> 6250 | AE13: =IF(ISNA(AD13),FALSE,IF(C13=$B$1,Worksheet!$B$3,IF(C13=$C$1,Worksheet!$B$4,IF(C13=$D$1,Worksheet!$B$5,IF(C13=$E$1,Worksheet!$B$6,IF(C13=$B$2,Worksheet!$B$7,IF(C13=$C$2,Worksheet!$D$3,IF(C13=$D$2,Worksheet!$D$4,IF(C13=$E$2,Worksheet!$D$5,IF(C13=$C$3,Worksheet!$D$6,IF(C13=$B$3,Worksheet!$D$7,FALSE))))))))))) -> TRUE | AF13: =IF(AE13,D13,"") -> Hard | AG13: =IF(AE13,COUNTIF($AF$5:AF13,AF13),"X") -> 2 | AH13: =CONCATENATE(AE13,AF13) -> TRUEHard
A14: =CONCATENATE(AE14,D14,AG14) -> TRUEEasy3 | B14: =RAND() -> 0.3978672564 | C14: % | D14: Easy | E14: 149 | F14: What does 100% mean? | T14: =CONCATENATE(F14," ",G14," ",H14," ",I14," ",J14," ",K14," ",L14," ",M14," ",N14," ",O14," ",P14," ",Q14," ",R14) -> What does 100% mean? | U14: all | AD14: =IF(OR(ISNA(U14),ISNA(V14),ISNA(W14),ISNA(X14),ISNA(Y14),ISNA(Z14),ISNA(AA14),ISNA(AB14),ISNA(AC14)),NA(),CONCATENATE(U14,V14,W14,X14,Y14,Z14,AA14,AB14)) -> all | AE14: =IF(ISNA(AD14),FALSE,IF(C14=$B$1,Worksheet!$B$3,IF(C14=$C$1,Worksheet!$B$4,IF(C14=$D$1,Worksheet!$B$5,IF(C14=$E$1,Worksheet!$B$6,IF(C14=$B$2,Worksheet!$B$7,IF(C14=$C$2,Worksheet!$D$3,IF(C14=$D$2,Worksheet!$D$4,IF(C14=$E$2,Worksheet!$D$5,IF(C14=$C$3,Worksheet!$D$6,IF(C14=$B$3,Worksheet!$D$7,FALSE))))))))))) -> TRUE | AF14: =IF(AE14,D14,"") -> Easy | AG14: =IF(AE14,COUNTIF($AF$5:AF14,AF14),"X") -> 3 | AH14: =CONCATENATE(AE14,AF14) -> TRUEEasy
A15: =CONCATENATE(AE15,D15,AG15) -> TRUEEasy4 | B15: =RAND() -> 0.8058327215 | C15: Num | D15: Easy | E15: 10 | F15: Fill in the missing numbers: | G15: =RANDBETWEEN(11,95)*10 -> 250 | H15: =G15+S15 -> 240 | I15: =H15+S15 -> 230 | J15: ____ | K15: ____ | L15: =V15+S15 -> 200 | M15: =L15+S15 -> 190 | S15: -10 | T15: =CONCATENATE(F15," ",G15,", ",H15,", ",I15,", ",J15,", ",K15,", ",L15,", ",M15," ",N15," ",O15," ",P15," ",Q15," ",R15) -> Fill in the missing numbers: 250, 240, 230, ____, ____, 200, 190 | U15: =I15+S15 -> 220 | V15: =U15+S15 -> 210 | AD15: =IF(OR(ISNA(U15),ISNA(V15),ISNA(W15),ISNA(X15),ISNA(Y15),ISNA(Z15),ISNA(AA15),ISNA(AB15),ISNA(AC15)),NA(),CONCATENATE(U15,", ",V15,W15,X15,Y15,Z15,AA15,AB15)) -> 220, 210 | AE15: =IF(ISNA(AD15),FALSE,IF(C15=$B$1,Worksheet!$B$3,IF(C15=$C$1,Worksheet!$B$4,IF(C15=$D$1,Worksheet!$B$5,IF(C15=$E$1,Worksheet!$B$6,IF(C15=$B$2,Worksheet!$B$7,IF(C15=$C$2,Worksheet!$D$3,IF(C15=$D$2,Worksheet!$D$4,IF(C15=$E$2,Worksheet!$D$5,IF(C15=$C$3,Worksheet!$D$6,IF(C15=$B$3,Worksheet!$D$7,FALSE))))))))))) -> TRUE | AF15: =IF(AE15,D15,"") -> Easy | AG15: =IF(AE15,COUNTIF($AF$5:AF15,AF15),"X") -> 4 | AH15: =CONCATENATE(AE15,AF15) -> TRUEEasy
A16: =CONCATENATE(AE16,D16,AG16) -> TRUEMedium6 | B16: =RAND() -> 0.3857370058 | C16: Num | D16: Medium | E16: 17 | F16: Fill in the missing numbers: | G16: =RANDBETWEEN(7,9)*100+RANDBETWEEN(1,99) -> 739 | H16: =G16+S16 -> 639 | I16: =H16+S16 -> 539 | J16: ____ | K16: ____ | L16: =V16+S16 -> 239 | M16: =L16+S16 -> 139 | S16: -100 | T16: =CONCATENATE(F16," ",G16,", ",H16,", ",I16,", ",J16,", ",K16,", ",L16,", ",M16," ",N16," ",O16," ",P16," ",Q16," ",R16) -> Fill in the missing numbers: 739, 639, 539, ____, ____, 239, 139 | U16: =I16+S16 -> 439 | V16: =U16+S16 -> 339 | AD16: =IF(OR(ISNA(U16),ISNA(V16),ISNA(W16),ISNA(X16),ISNA(Y16),ISNA(Z16),ISNA(AA16),ISNA(AB16),ISNA(AC16)),NA(),CONCATENATE(U16,", ",V16,W16,X16,Y16,Z16,AA16,AB16)) -> 439, 339 | AE16: =IF(ISNA(AD16),FALSE,IF(C16=$B$1,Worksheet!$B$3,IF(C16=$C$1,Worksheet!$B$4,IF(C16=$D$1,Worksheet!$B$5,IF(C16=$E$1,Worksheet!$B$6,IF(C16=$B$2,Worksheet!$B$7,IF(C16=$C$2,Worksheet!$D$3,IF(C16=$D$2,Worksheet!$D$4,IF(C16=$E$2,Worksheet!$D$5,IF(C16=$C$3,Worksheet!$D$6,IF(C16=$B$3,Worksheet!$D$7,FALSE))))))))))) -> TRUE | AF16: =IF(AE16,D16,"") -> Medium | AG16: =IF(AE16,COUNTIF($AF$5:AF16,AF16),"X") -> 6 | AH16: =CONCATENATE(AE16,AF16) -> TRUEMedium
A17: =CONCATENATE(AE17,D17,AG17) -> TRUEHard3 | B17: =RAND() -> 0.2926725245 | C17: Mult | D17: Hard | E17: 78 | F17: What is | G17: =RANDBETWEEN(6,9) -> 7 | H17: × | I17: =RANDBETWEEN(6,9) -> 6 | J17: ? | T17: =CONCATENATE(F17," ",G17," ",H17," ",I17," ",J17," ",K17," ",L17," ",M17," ",N17," ",O17," ",P17," ",Q17," ",R17) -> What is 7 × 6 ? | U17: =G17*I17 -> 42 | AD17: =IF(OR(ISNA(U17),ISNA(V17),ISNA(W17),ISNA(X17),ISNA(Y17),ISNA(Z17),ISNA(AA17),ISNA(AB17),ISNA(AC17)),NA(),CONCATENATE(U17,V17,W17,X17,Y17,Z17,AA17,AB17)) -> 42 | AE17: =IF(ISNA(AD17),FALSE,IF(C17=$B$1,Worksheet!$B$3,IF(C17=$C$1,Worksheet!$B$4,IF(C17=$D$1,Worksheet!$B$5,IF(C17=$E$1,Worksheet!$B$6,IF(C17=$B$2,Worksheet!$B$7,IF(C17=$C$2,Worksheet!$D$3,IF(C17=$D$2,Worksheet!$D$4,IF(C17=$E$2,Worksheet!$D$5,IF(C17=$C$3,Worksheet!$D$6,IF(C17=$B$3,Worksheet!$D$7,FALSE))))))))))) -> TRUE | AF17: =IF(AE17,D17,"") -> Hard | AG17: =IF(AE17,COUNTIF($AF$5:AF17,AF17),"X") -> 3 | AH17: =CONCATENATE(AE17,AF17) -> TRUEHard
A18: =CONCATENATE(AE18,D18,AG18) -> TRUEEasy5 | B18: =RAND() -> 0.8489840836 | C18: Frac | D18: Easy | E18: 120 | F18: Fractions. What is | G18: 1/4 | H18: of | I18: =4*RANDBETWEEN(2,5) -> 8 | J18: ? | T18: =CONCATENATE(F18," ",G18," ",H18," ",I18," ",J18," ",K18," ",L18," ",M18," ",N18," ",O18," ",P18," ",Q18," ",R18) -> Fractions. What is 1/4 of 8 ? | U18: =I18/4 -> 2 | AD18: =IF(OR(ISNA(U18),ISNA(V18),ISNA(W18),ISNA(X18),ISNA(Y18),ISNA(Z18),ISNA(AA18),ISNA(AB18),ISNA(AC18)),NA(),CONCATENATE(U18,V18,W18,X18,Y18,Z18,AA18,AB18)) -> 2 | AE18: =IF(ISNA(AD18),FALSE,IF(C18=$B$1,Worksheet!$B$3,IF(C18=$C$1,Worksheet!$B$4,IF(C18=$D$1,Worksheet!$B$5,IF(C18=$E$1,Worksheet!$B$6,IF(C18=$B$2,Worksheet!$B$7,IF(C18=$C$2,Worksheet!$D$3,IF(C18=$D$2,Worksheet!$D$4,IF(C18=$E$2,Worksheet!$D$5,IF(C18=$C$3,Worksheet!$D$6,IF(C18=$B$3,Worksheet!$D$7,FALSE))))))))))) -> TRUE | AF18: =IF(AE18,D18,"") -> Easy | AG18: =IF(AE18,COUNTIF($AF$5:AF18,AF18),"X") -> 5 | AH18: =CONCATENATE(AE18,AF18) -> TRUEEasy
A19: =CONCATENATE(AE19,D19,AG19) -> TRUEEasy6 | B19: =RAND() -> 0.4901612488 | C19: Choose | D19: Easy | E19: 108 | F19: A boy buys three sweets costing | G19: =RANDBETWEEN(3,10) -> 8 | H19: =RANDBETWEEN(3,10) -> 5 | I19: and | J19: =RANDBETWEEN(3,10) -> 10 | K19: . How much do they cost in total? | T19: =CONCATENATE(F19," ",G19,"p, ",H19,"p ",I19," ",J19,"p. ",K19," ",L19," ",M19," ",N19," ",O19," ",P19," ",Q19," ",R19) -> A boy buys three sweets costing 8p, 5p and 10p. . How much do they cost in total? | U19: =G19+H19+J19 -> 23 | V19: p | AD19: =IF(OR(ISNA(U19),ISNA(V19),ISNA(W19),ISNA(X19),ISNA(Y19),ISNA(Z19),ISNA(AA19),ISNA(AB19),ISNA(AC19)),NA(),CONCATENATE(U19,V19,W19,X19,Y19,Z19,AA19,AB19)) -> 23p | AE19: =IF(ISNA(AD19),FALSE,IF(C19=$B$1,Worksheet!$B$3,IF(C19=$C$1,Worksheet!$B$4,IF(C19=$D$1,Worksheet!$B$5,IF(C19=$E$1,Worksheet!$B$6,IF(C19=$B$2,Worksheet!$B$7,IF(C19=$C$2,Worksheet!$D$3,IF(C19=$D$2,Worksheet!$D$4,IF(C19=$E$2,Worksheet!$D$5,IF(C19=$C$3,Worksheet!$D$6,IF(C19=$B$3,Worksheet!$D$7,FALSE))))))))))) -> TRUE | AF19: =IF(AE19,D19,"") -> Easy | AG19: =IF(AE19,COUNTIF($AF$5:AF19,AF19),"X") -> 6 | AH19: =CONCATENATE(AE19,AF19) -> TRUEEasy
A20: =CONCATENATE(AE20,D20,AG20) -> TRUEEasy7 | B20: =RAND() -> 0.3308235251 | C20: +- | D20: Easy | E20: 44 | F20: Fill in the missing number: | G20: =RANDBETWEEN(1,8)*10+RANDBETWEEN(1,9) -> 14 | H20: + ____ = | I20: =INT(G20/10)*10+10 -> 20 | T20: =CONCATENATE(F20," ",G20," ",H20," ",I20," ",J20," ",K20," ",L20," ",M20," ",N20," ",O20," ",P20," ",Q20," ",R20) -> Fill in the missing number: 14 + ____ = 20 | U20: =I20-G20 -> 6 | AD20: =IF(OR(ISNA(U20),ISNA(V20),ISNA(W20),ISNA(X20),ISNA(Y20),ISNA(Z20),ISNA(AA20),ISNA(AB20),ISNA(AC20)),NA(),CONCATENATE(U20,V20,W20,X20,Y20,Z20,AA20,AB20)) -> 6 | AE20: =IF(ISNA(AD20),FALSE,IF(C20=$B$1,Worksheet!$B$3,IF(C20=$C$1,Worksheet!$B$4,IF(C20=$D$1,Worksheet!$B$5,IF(C20=$E$1,Worksheet!$B$6,IF(C20=$B$2,Worksheet!$B$7,IF(C20=$C$2,Worksheet!$D$3,IF(C20=$D$2,Worksheet!$D$4,IF(C20=$E$2,Worksheet!$D$5,IF(C20=$C$3,Worksheet!$D$6,IF(C20=$B$3,Worksheet!$D$7,FALSE))))))))))) -> TRUE | AF20: =IF(AE20,D20,"") -> Easy | AG20: =IF(AE20,COUNTIF($AF$5:AF20,AF20),"X") -> 7 | AH20: =CONCATENATE(AE20,AF20) -> TRUEEasy
A21: =CONCATENATE(AE21,D21,AG21) -> TRUEHard4 | B21: =RAND() -> 0.7493182099 | C21: Mult | D21: Hard | E21: 84 | F21: Multiply | G21: 10 | H21: × | I21: =RANDBETWEEN(101,999) -> 705 | T21: =CONCATENATE(F21," ",G21," ",H21," ",I21," ",J21," ",K21," ",L21," ",M21," ",N21," ",O21," ",P21," ",Q21," ",R21) -> Multiply 10 × 705 | U21: =G21*I21 -> 7050 | AD21: =IF(OR(ISNA(U21),ISNA(V21),ISNA(W21),ISNA(X21),ISNA(Y21),ISNA(Z21),ISNA(AA21),ISNA(AB21),ISNA(AC21)),NA(),CONCATENATE(U21,V21,W21,X21,Y21,Z21,AA21,AB21)) -> 7050 | AE21: =IF(ISNA(AD21),FALSE,IF(C21=$B$1,Worksheet!$B$3,IF(C21=$C$1,Worksheet!$B$4,IF(C21=$D$1,Worksheet!$B$5,IF(C21=$E$1,Worksheet!$B$6,IF(C21=$B$2,Worksheet!$B$7,IF(C21=$C$2,Worksheet!$D$3,IF(C21=$D$2,Worksheet!$D$4,IF(C21=$E$2,Worksheet!$D$5,IF(C21=$C$3,Worksheet!$D$6,IF(C21=$B$3,Worksheet!$D$7,FALSE))))))))))) -> TRUE | AF21: =IF(AE21,D21,"") -> Hard | AG21: =IF(AE21,COUNTIF($AF$5:AF21,AF21),"X") -> 4 | AH21: =CONCATENATE(AE21,AF21) -> TRUEHard
A22: =CONCATENATE(AE22,D22,AG22) -> TRUEMedium7 | B22: =RAND() -> 0.1723650787 | C22: Dec | D22: Medium | E22: 146 | F22: Fill in the blank: | G22: £ | H22: =RANDBETWEEN(1,9) -> 1 | I22: . | J22: =RANDBETWEEN(1,9) -> 9 | L22: = | M22: _____ pounds and ______ pence | T22: =CONCATENATE(F22," ",G22,"",H22,"",I22,"",J22,"",K22," ",L22," ",M22," ",N22," ",O22," ",P22," ",Q22," ",R22) -> Fill in the blank: £1.9 = _____ pounds and ______ pence | U22: =H22 -> 1 | V22: pounds and | W22: =J22*10 -> 90 | X22: pence | AD22: =IF(OR(ISNA(U22),ISNA(V22),ISNA(W22),ISNA(X22),ISNA(Y22),ISNA(Z22),ISNA(AA22),ISNA(AB22),ISNA(AC22)),NA(),CONCATENATE(U22,V22,W22,X22,Y22,Z22,AA22,AB22)) -> 1 pounds and 90 pence | AE22: =IF(ISNA(AD22),FALSE,IF(C22=$B$1,Worksheet!$B$3,IF(C22=$C$1,Worksheet!$B$4,IF(C22=$D$1,Worksheet!$B$5,IF(C22=$E$1,Worksheet!$B$6,IF(C22=$B$2,Worksheet!$B$7,IF(C22=$C$2,Worksheet!$D$3,IF(C22=$D$2,Worksheet!$D$4,IF(C22=$E$2,Worksheet!$D$5,IF(C22=$C$3,Worksheet!$D$6,IF(C22=$B$3,Worksheet!$D$7,FALSE))))))))))) -> TRUE | AF22: =IF(AE22,D22,"") -> Medium | AG22: =IF(AE22,COUNTIF($AF$5:AF22,AF22),"X") -> 7 | AH22: =CONCATENATE(AE22,AF22) -> TRUEMedium
A23: =CONCATENATE(AE23,D23,AG23) -> TRUEEasy8 | B23: =RAND() -> 0.0748560888 | C23: Divide | D23: Easy | E23: 93 | F23: Divide: | G23: =2*RANDBETWEEN(1,10) -> 14 | H23: ÷ | I23: 2 | T23: =CONCATENATE(F23," ",G23," ",H23," ",I23," ",J23," ",K23," ",L23," ",M23," ",N23," ",O23," ",P23," ",Q23," ",R23) -> Divide: 14 ÷ 2 | U23: =G23/I23 -> 7 | AD23: =IF(OR(ISNA(U23),ISNA(V23),ISNA(W23),ISNA(X23),ISNA(Y23),ISNA(Z23),ISNA(AA23),ISNA(AB23),ISNA(AC23)),NA(),CONCATENATE(U23,V23,W23,X23,Y23,Z23,AA23,AB23)) -> 7 | AE23: =IF(ISNA(AD23),FALSE,IF(C23=$B$1,Worksheet!$B$3,IF(C23=$C$1,Worksheet!$B$4,IF(C23=$D$1,Worksheet!$B$5,IF(C23=$E$1,Worksheet!$B$6,IF(C23=$B$2,Worksheet!$B$7,IF(C23=$C$2,Worksheet!$D$3,IF(C23=$D$2,Worksheet!$D$4,IF(C23=$E$2,Worksheet!$D$5,IF(C23=$C$3,Worksheet!$D$6,IF(C23=$B$3,Worksheet!$D$7,FALSE))))))))))) -> TRUE | AF23: =IF(AE23,D23,"") -> Easy | AG23: =IF(AE23,COUNTIF($AF$5:AF23,AF23),"X") -> 8 | AH23: =CONCATENATE(AE23,AF23) -> TRUEEasy
A24: =CONCATENATE(AE24,D24,AG24) -> TRUEHard5 | B24: =RAND() -> 0.2466372478 | C24: +- | D24: Hard | E24: 68 | F24: Write down a chimney sum to take away: | G24: =RANDBETWEEN(2,9)*100 -> 400 | H24: – | I24: =RANDBETWEEN(11,INT((G24-10)/10))*10+RANDBETWEEN(1,9) -> 309 | T24: =CONCATENATE(F24," ",G24," ",H24," ",I24," ",J24," ",K24," ",L24," ",M24," ",N24," ",O24," ",P24," ",Q24," ",R24) -> Write down a chimney sum to take away: 400 – 309 | U24: =G24-I24 -> 91 | AD24: =IF(OR(ISNA(U24),ISNA(V24),ISNA(W24),ISNA(X24),ISNA(Y24),ISNA(Z24),ISNA(AA24),ISNA(AB24),ISNA(AC24)),NA(),CONCATENATE(U24,V24,W24,X24,Y24,Z24,AA24,AB24)) -> 91 | AE24: =IF(ISNA(AD24),FALSE,IF(C24=$B$1,Worksheet!$B$3,IF(C24=$C$1,Worksheet!$B$4,IF(C24=$D$1,Worksheet!$B$5,IF(C24=$E$1,Worksheet!$B$6,IF(C24=$B$2,Worksheet!$B$7,IF(C24=$C$2,Worksheet!$D$3,IF(C24=$D$2,Worksheet!$D$4,IF(C24=$E$2,Worksheet!$D$5,IF(C24=$C$3,Worksheet!$D$6,IF(C24=$B$3,Worksheet!$D$7,FALSE))))))))))) -> TRUE | AF24: =IF(AE24,D24,"") -> Hard | AG24: =IF(AE24,COUNTIF($AF$5:AF24,AF24),"X") -> 5 | AH24: =CONCATENATE(AE24,AF24) -> TRUEHard
A25: =CONCATENATE(AE25,D25,AG25) -> TRUEEasy9 | B25: =RAND() -> 0.683364264 | C25: Mult | D25: Easy | E25: 80 | F25: Multiply | G25: 10 | H25: × | I25: =RANDBETWEEN(2,10) -> 10 | T25: =CONCATENATE(F25," ",G25," ",H25," ",I25," ",J25," ",K25," ",L25," ",M25," ",N25," ",O25," ",P25," ",Q25," ",R25) -> Multiply 10 × 10 | U25: =G25*I25 -> 100 | AD25: =IF(OR(ISNA(U25),ISNA(V25),ISNA(W25),ISNA(X25),ISNA(Y25),ISNA(Z25),ISNA(AA25),ISNA(AB25),ISNA(AC25)),NA(),CONCATENATE(U25,V25,W25,X25,Y25,Z25,AA25,AB25)) -> 100 | AE25: =IF(ISNA(AD25),FALSE,IF(C25=$B$1,Worksheet!$B$3,IF(C25=$C$1,Worksheet!$B$4,IF(C25=$D$1,Worksheet!$B$5,IF(C25=$E$1,Worksheet!$B$6,IF(C25=$B$2,Worksheet!$B$7,IF(C25=$C$2,Worksheet!$D$3,IF(C25=$D$2,Worksheet!$D$4,IF(C25=$E$2,Worksheet!$D$5,IF(C25=$C$3,Worksheet!$D$6,IF(C25=$B$3,Worksheet!$D$7,FALSE))))))))))) -> TRUE | AF25: =IF(AE25,D25,"") -> Easy | AG25: =IF(AE25,COUNTIF($AF$5:AF25,AF25),"X") -> 9 | AH25: =CONCATENATE(AE25,AF25) -> TRUEEasy
A26: =CONCATENATE(AE26,D26,AG26) -> TRUEEasy10 | B26: =RAND() -> 0.5959735534 | C26: Round | D26: Easy | E26: 161 | F26: Round | G26: =RANDBETWEEN(1,9)*10+RANDBETWEEN(1,9) -> 49 | H26: to the nearest ten | T26: =CONCATENATE(F26," ",G26," ",H26," ",I26," ",J26," ",K26," ",L26," ",M26," ",N26," ",O26," ",P26," ",Q26," ",R26) -> Round 49 to the nearest ten | U26: =MROUND(G26,10) -> 50 | AD26: =IF(OR(ISNA(U26),ISNA(V26),ISNA(W26),ISNA(X26),ISNA(Y26),ISNA(Z26),ISNA(AA26),ISNA(AB26),ISNA(AC26)),NA(),CONCATENATE(U26,V26,W26,X26,Y26,Z26,AA26,AB26)) -> 50 | AE26: =IF(ISNA(AD26),FALSE,IF(C26=$B$1,Worksheet!$B$3,IF(C26=$C$1,Worksheet!$B$4,IF(C26=$D$1,Worksheet!$B$5,IF(C26=$E$1,Worksheet!$B$6,IF(C26=$B$2,Worksheet!$B$7,IF(C26=$C$2,Worksheet!$D$3,IF(C26=$D$2,Worksheet!$D$4,IF(C26=$E$2,Worksheet!$D$5,IF(C26=$C$3,Worksheet!$D$6,IF(C26=$B$3,Worksheet!$D$7,FALSE))))))))))) -> TRUE | AF26: =IF(AE26,D26,"") -> Easy | AG26: =IF(AE26,COUNTIF($AF$5:AF26,AF26),"X") -> 10 | AH26: =CONCATENATE(AE26,AF26) -> TRUEEasy
A27: =CONCATENATE(AE27,D27,AG27) -> TRUEEasy11 | B27: =RAND() -> 0.5211900655 | C27: +- | D27: Easy | E27: 51 | F27: =RANDBETWEEN(11,15) -> 13 | G27: – | H27: =RANDBETWEEN(6,9) -> 9 | T27: =CONCATENATE(F27," ",G27," ",H27," ",I27," ",J27," ",K27," ",L27," ",M27," ",N27," ",O27," ",P27," ",Q27," ",R27) -> 13 – 9 | U27: =F27-H27 -> 4 | AD27: =IF(OR(ISNA(U27),ISNA(V27),ISNA(W27),ISNA(X27),ISNA(Y27),ISNA(Z27),ISNA(AA27),ISNA(AB27),ISNA(AC27)),NA(),CONCATENATE(U27,V27,W27,X27,Y27,Z27,AA27,AB27)) -> 4 | AE27: =IF(ISNA(AD27),FALSE,IF(C27=$B$1,Worksheet!$B$3,IF(C27=$C$1,Worksheet!$B$4,IF(C27=$D$1,Worksheet!$B$5,IF(C27=$E$1,Worksheet!$B$6,IF(C27=$B$2,Worksheet!$B$7,IF(C27=$C$2,Worksheet!$D$3,IF(C27=$D$2,Worksheet!$D$4,IF(C27=$E$2,Worksheet!$D$5,IF(C27=$C$3,Worksheet!$D$6,IF(C27=$B$3,Worksheet!$D$7,FALSE))))))))))) -> TRUE | AF27: =IF(AE27,D27,"") -> Easy | AG27: =IF(AE27,COUNTIF($AF$5:AF27,AF27),"X") -> 11 | AH27: =CONCATENATE(AE27,AF27) -> TRUEEasy
A28: =CONCATENATE(AE28,D28,AG28) -> TRUEMedium8 | B28: =RAND() -> 0.9270316683 | C28: Mult | D28: Medium | E28: 70 | F28: Circle all the | G28: =IF(RAND()<0.5,"odd","even") -> even | H28: numbers in this list: | I28: =RANDBETWEEN(1,99) -> 28 | J28: =2*RANDBETWEEN(1,49)+1 -> 39 | K28: =RANDBETWEEN(1,99) -> 44 | L28: =2*RANDBETWEEN(1,49) -> 52 | M28: =RANDBETWEEN(1,99) -> 90 | T28: =CONCATENATE(F28," ",G28," ",H28," ",I28,", ",J28,", ",K28,", ",L28,", ",M28," ",N28," ",O28," ",P28," ",Q28," ",R28) -> Circle all the even numbers in this list: 28, 39, 44, 52, 90 | U28: =IF(ISODD(I28),IF($G28="odd",I28,""),IF($G28="odd","",I28)) -> 28 | V28: =IF(ISODD(J28),IF($G28="odd",J28,""),IF($G28="odd","",J28)) ->  | W28: =IF(ISODD(K28),IF($G28="odd",K28,""),IF($G28="odd","",K28)) -> 44 | X28: =IF(ISODD(L28),IF($G28="odd",L28,""),IF($G28="odd","",L28)) -> 52 | Y28: =IF(ISODD(M28),IF($G28="odd",M28,""),IF($G28="odd","",M28)) -> 90 | AA28: =IF(OR(I28=J28,I28=K28,I28=L28,I28=M28,J28=K28,J28=L28,J28=M28,K28=L28,K28=M28,L28=M28),NA(),"") ->  | AD28: =IF(OR(ISNA(U28),ISNA(V28),ISNA(W28),ISNA(X28),ISNA(Y28),ISNA(Z28),ISNA(AA28),ISNA(AB28),ISNA(AC28)),NA(),CONCATENATE(U28," ",V28," ",W28," ",X28," ",Y28,Z28,AA28,AB28)) -> 28 44 52 90 | AE28: =IF(ISNA(AD28),FALSE,IF(C28=$B$1,Worksheet!$B$3,IF(C28=$C$1,Worksheet!$B$4,IF(C28=$D$1,Worksheet!$B$5,IF(C28=$E$1,Worksheet!$B$6,IF(C28=$B$2,Worksheet!$B$7,IF(C28=$C$2,Worksheet!$D$3,IF(C28=$D$2,Worksheet!$D$4,IF(C28=$E$2,Worksheet!$D$5,IF(C28=$C$3,Worksheet!$D$6,IF(C28=$B$3,Worksheet!$D$7,FALSE))))))))))) -> TRUE | AF28: =IF(AE28,D28,"") -> Medium | AG28: =IF(AE28,COUNTIF($AF$5:AF28,AF28),"X") -> 8 | AH28: =CONCATENATE(AE28,AF28) -> TRUEMedium
A29: =CONCATENATE(AE29,D29,AG29) -> TRUEMedium9 | B29: =RAND() -> 0.8868994958 | C29: +- | D29: Medium | E29: 61 | F29: Take away: | G29: =RANDBETWEEN(2,8)*10+RANDBETWEEN(0,5) -> 32 | H29: – | I29: =RANDBETWEEN(6,9) -> 8 | T29: =CONCATENATE(F29," ",G29," ",H29," ",I29," ",J29," ",K29," ",L29," ",M29," ",N29," ",O29," ",P29," ",Q29," ",R29) -> Take away: 32 – 8 | U29: =G29-I29 -> 24 | AD29: =IF(OR(ISNA(U29),ISNA(V29),ISNA(W29),ISNA(X29),ISNA(Y29),ISNA(Z29),ISNA(AA29),ISNA(AB29),ISNA(AC29)),NA(),CONCATENATE(U29,V29,W29,X29,Y29,Z29,AA29,AB29)) -> 24 | AE29: =IF(ISNA(AD29),FALSE,IF(C29=$B$1,Worksheet!$B$3,IF(C29=$C$1,Worksheet!$B$4,IF(C29=$D$1,Worksheet!$B$5,IF(C29=$E$1,Worksheet!$B$6,IF(C29=$B$2,Worksheet!$B$7,IF(C29=$C$2,Worksheet!$D$3,IF(C29=$D$2,Worksheet!$D$4,IF(C29=$E$2,Worksheet!$D$5,IF(C29=$C$3,Worksheet!$D$6,IF(C29=$B$3,Worksheet!$D$7,FALSE))))))))))) -> TRUE | AF29: =IF(AE29,D29,"") -> Medium | AG29: =IF(AE29,COUNTIF($AF$5:AF29,AF29),"X") -> 9 | AH29: =CONCATENATE(AE29,AF29) -> TRUEMedium
A30: =CONCATENATE(AE30,D30,AG30) -> TRUEHard6 | B30: =RAND() -> 0.6540234099 | C30: Frac | D30: Hard | E30: 128 | F30: Fractions. What is | G30: 1/2 | H30: of | I30: =2*RANDBETWEEN(8,12) -> 18 | J30: ? | T30: =CONCATENATE(F30," ",G30," ",H30," ",I30," ",J30," ",K30," ",L30," ",M30," ",N30," ",O30," ",P30," ",Q30," ",R30) -> Fractions. What is 1/2 of 18 ? | U30: =I30/2 -> 9 | AD30: =IF(OR(ISNA(U30),ISNA(V30),ISNA(W30),ISNA(X30),ISNA(Y30),ISNA(Z30),ISNA(AA30),ISNA(AB30),ISNA(AC30)),NA(),CONCATENATE(U30,V30,W30,X30,Y30,Z30,AA30,AB30)) -> 9 | AE30: =IF(ISNA(AD30),FALSE,IF(C30=$B$1,Worksheet!$B$3,IF(C30=$C$1,Worksheet!$B$4,IF(C30=$D$1,Worksheet!$B$5,IF(C30=$E$1,Worksheet!$B$6,IF(C30=$B$2,Worksheet!$B$7,IF(C30=$C$2,Worksheet!$D$3,IF(C30=$D$2,Worksheet!$D$4,IF(C30=$E$2,Worksheet!$D$5,IF(C30=$C$3,Worksheet!$D$6,IF(C30=$B$3,Worksheet!$D$7,FALSE))))))))))) -> TRUE | AF30: =IF(AE30,D30,"") -> Hard | AG30: =IF(AE30,COUNTIF($AF$5:AF30,AF30),"X") -> 6 | AH30: =CONCATENATE(AE30,AF30) -> TRUEHard
A31: =CONCATENATE(AE31,D31,AG31) -> TRUEMedium10 | B31: =RAND() -> 0.2692067865 | C31: +- | D31: Medium | E31: 67 | F31: Write down a chimney sum to take away: | G31: =RANDBETWEEN(12,99)*10+RANDBETWEEN(0,5) -> 530 | H31: – | I31: =RANDBETWEEN(9,INT(G31-10)/10-2)*10+RANDBETWEEN(6,9) -> 356 | T31: =CONCATENATE(F31," ",G31," ",H31," ",I31," ",J31," ",K31," ",L31," ",M31," ",N31," ",O31," ",P31," ",Q31," ",R31) -> Write down a chimney sum to take away: 530 – 356 | U31: =G31-I31 -> 174 | AD31: =IF(OR(ISNA(U31),ISNA(V31),ISNA(W31),ISNA(X31),ISNA(Y31),ISNA(Z31),ISNA(AA31),ISNA(AB31),ISNA(AC31)),NA(),CONCATENATE(U31,V31,W31,X31,Y31,Z31,AA31,AB31)) -> 174 | AE31: =IF(ISNA(AD31),FALSE,IF(C31=$B$1,Worksheet!$B$3,IF(C31=$C$1,Worksheet!$B$4,IF(C31=$D$1,Worksheet!$B$5,IF(C31=$E$1,Worksheet!$B$6,IF(C31=$B$2,Worksheet!$B$7,IF(C31=$C$2,Worksheet!$D$3,IF(C31=$D$2,Worksheet!$D$4,IF(C31=$E$2,Worksheet!$D$5,IF(C31=$C$3,Worksheet!$D$6,IF(C31=$B$3,Worksheet!$D$7,FALSE))))))))))) -> TRUE | AF31: =IF(AE31,D31,"") -> Medium | AG31: =IF(AE31,COUNTIF($AF$5:AF31,AF31),"X") -> 10 | AH31: =CONCATENATE(AE31,AF31) -> TRUEMedium
A32: =CONCATENATE(AE32,D32,AG32) -> TRUEHard7 | B32: =RAND() -> 0.9160415746 | C32: +- | D32: Hard | E32: 63 | F32: Take away: | G32: =RANDBETWEEN(2,6)*10 -> 30 | H32: – | I32: =RANDBETWEEN(1,G32/10-1)*10+RANDBETWEEN(1,9) -> 17 | T32: =CONCATENATE(F32," ",G32," ",H32," ",I32," ",J32," ",K32," ",L32," ",M32," ",N32," ",O32," ",P32," ",Q32," ",R32) -> Take away: 30 – 17 | U32: =G32-I32 -> 13 | AD32: =IF(OR(ISNA(U32),ISNA(V32),ISNA(W32),ISNA(X32),ISNA(Y32),ISNA(Z32),ISNA(AA32),ISNA(AB32),ISNA(AC32)),NA(),CONCATENATE(U32,V32,W32,X32,Y32,Z32,AA32,AB32)) -> 13 | AE32: =IF(ISNA(AD32),FALSE,IF(C32=$B$1,Worksheet!$B$3,IF(C32=$C$1,Worksheet!$B$4,IF(C32=$D$1,Worksheet!$B$5,IF(C32=$E$1,Worksheet!$B$6,IF(C32=$B$2,Worksheet!$B$7,IF(C32=$C$2,Worksheet!$D$3,IF(C32=$D$2,Worksheet!$D$4,IF(C32=$E$2,Worksheet!$D$5,IF(C32=$C$3,Worksheet!$D$6,IF(C32=$B$3,Worksheet!$D$7,FALSE))))))))))) -> TRUE | AF32: =IF(AE32,D32,"") -> Hard | AG32: =IF(AE32,COUNTIF($AF$5:AF32,AF32),"X") -> 7 | AH32: =CONCATENATE(AE32,AF32) -> TRUEHard
A33: =CONCATENATE(AE33,D33,AG33) -> TRUEMedium11 | B33: =RAND() -> 0.6502049891 | C33: Choose | D33: Medium | E33: 105 | F33: Out of a class of | G33: =RANDBETWEEN(15,30) -> 23 | H33: pupils, | I33: =RANDBETWEEN(6,12) -> 12 | J33: are off. How many pupils are in class? | T33: =CONCATENATE(F33," ",G33," ",H33," ",I33," ",J33," ",K33," ",L33," ",M33," ",N33," ",O33," ",P33," ",Q33," ",R33) -> Out of a class of 23 pupils, 12 are off. How many pupils are in class? | U33: =G33-I33 -> 11 | AD33: =IF(OR(ISNA(U33),ISNA(V33),ISNA(W33),ISNA(X33),ISNA(Y33),ISNA(Z33),ISNA(AA33),ISNA(AB33),ISNA(AC33)),NA(),CONCATENATE(U33,V33,W33,X33,Y33,Z33,AA33,AB33)) -> 11 | AE33: =IF(ISNA(AD33),FALSE,IF(C33=$B$1,Worksheet!$B$3,IF(C33=$C$1,Worksheet!$B$4,IF(C33=$D$1,Worksheet!$B$5,IF(C33=$E$1,Worksheet!$B$6,IF(C33=$B$2,Worksheet!$B$7,IF(C33=$C$2,Worksheet!$D$3,IF(C33=$D$2,Worksheet!$D$4,IF(C33=$E$2,Worksheet!$D$5,IF(C33=$C$3,Worksheet!$D$6,IF(C33=$B$3,Worksheet!$D$7,FALSE))))))))))) -> TRUE | AF33: =IF(AE33,D33,"") -> Medium | AG33: =IF(AE33,COUNTIF($AF$5:AF33,AF33),"X") -> 11 | AH33: =CONCATENATE(AE33,AF33) -> TRUEMedium
A34: =CONCATENATE(AE34,D34,AG34) -> TRUEMedium12 | B34: =RAND() -> 0.078565286 | C34: % | D34: Medium | E34: 152 | F34: What is | G34: 0% | H34: of £ | I34: =RANDBETWEEN(1,100) -> 29 | J34: ? | T34: =CONCATENATE(F34," ",G34," ",H34,"",I34,"",J34," ",K34," ",L34," ",M34," ",N34," ",O34," ",P34," ",Q34," ",R34) -> What is 0% of £29? | U34: £ | V34: 0 | AD34: =IF(OR(ISNA(U34),ISNA(V34),ISNA(W34),ISNA(X34),ISNA(Y34),ISNA(Z34),ISNA(AA34),ISNA(AB34),ISNA(AC34)),NA(),CONCATENATE(U34,V34,W34,X34,Y34,Z34,AA34,AB34)) -> £0 | AE34: =IF(ISNA(AD34),FALSE,IF(C34=$B$1,Worksheet!$B$3,IF(C34=$C$1,Worksheet!$B$4,IF(C34=$D$1,Worksheet!$B$5,IF(C34=$E$1,Worksheet!$B$6,IF(C34=$B$2,Worksheet!$B$7,IF(C34=$C$2,Worksheet!$D$3,IF(C34=$D$2,Worksheet!$D$4,IF(C34=$E$2,Worksheet!$D$5,IF(C34=$C$3,Worksheet!$D$6,IF(C34=$B$3,Worksheet!$D$7,FALSE))))))))))) -> TRUE | AF34: =IF(AE34,D34,"") -> Medium | AG34: =IF(AE34,COUNTIF($AF$5:AF34,AF34),"X") -> 12 | AH34: =CONCATENATE(AE34,AF34) -> TRUEMedium
A35: =CONCATENATE(AE35,D35,AG35) -> TRUEMedium13 | B35: =RAND() -> 0.1053694177 | C35: Num | D35: Medium | E35: 28 | F35: Continue the pattern for three more numbers: | G35: =RANDBETWEEN(7,9)*100+RANDBETWEEN(1,99) -> 867 | H35: =G35+S35 -> 767 | I35: =H35+S35 -> 667 | J35: =I35+S35 -> 567 | K35: ____ | L35: ____ | M35: ____ | S35: -100 | T35: =CONCATENATE(F35," ",G35,", ",H35,", ",I35,", ",J35,", ",K35,", ",L35,", ",M35," ",N35," ",O35," ",P35," ",Q35," ",R35) -> Continue the pattern for three more numbers: 867, 767, 667, 567, ____, ____, ____ | U35: =J35+S35 -> 467 | V35: =U35+S35 -> 367 | AD35: =IF(OR(ISNA(U35),ISNA(V35),ISNA(W35),ISNA(X35),ISNA(Y35),ISNA(Z35),ISNA(AA35),ISNA(AB35),ISNA(AC35)),NA(),CONCATENATE(U35,", ",V35,W35,X35,Y35,Z35,AA35,AB35)) -> 467, 367 | AE35: =IF(ISNA(AD35),FALSE,IF(C35=$B$1,Worksheet!$B$3,IF(C35=$C$1,Worksheet!$B$4,IF(C35=$D$1,Worksheet!$B$5,IF(C35=$E$1,Worksheet!$B$6,IF(C35=$B$2,Worksheet!$B$7,IF(C35=$C$2,Worksheet!$D$3,IF(C35=$D$2,Worksheet!$D$4,IF(C35=$E$2,Worksheet!$D$5,IF(C35=$C$3,Worksheet!$D$6,IF(C35=$B$3,Worksheet!$D$7,FALSE))))))))))) -> TRUE | AF35: =IF(AE35,D35,"") -> Medium | AG35: =IF(AE35,COUNTIF($AF$5:AF35,AF35),"X") -> 13 | AH35: =CONCATENATE(AE35,AF35) -> TRUEMedium
A36: =CONCATENATE(AE36,D36,AG36) -> TRUEMedium14 | B36: =RAND() -> 0.2540777753 | C36: Neg | D36: Medium | E36: 171 | F36: Circle the | G36: =IF(RAND()<0.5,"WARMEST","COLDEST") -> WARMEST | H36: temperature: | I36: =RANDBETWEEN(-5,5) -> 5 | J36: 0 | T36: =CONCATENATE(F36," ",G36," ",H36," ",I36,"°C ",J36,"°C ",K36," ",L36," ",M36," ",N36," ",O36," ",P36," ",Q36," ",R36) -> Circle the WARMEST temperature: 5°C 0°C | U36: =IF(G36="WARMEST",MAX(I36:J36),MIN(I36:J36)) -> 5 | V36: °C | Z36: =IF(I36=J36,NA(),"") ->  | AD36: =IF(OR(ISNA(U36),ISNA(V36),ISNA(W36),ISNA(X36),ISNA(Y36),ISNA(Z36),ISNA(AA36),ISNA(AB36),ISNA(AC36)),NA(),CONCATENATE(U36,V36,W36,X36,Y36,Z36,AA36,AB36)) -> 5°C | AE36: =IF(ISNA(AD36),FALSE,IF(C36=$B$1,Worksheet!$B$3,IF(C36=$C$1,Worksheet!$B$4,IF(C36=$D$1,Worksheet!$B$5,IF(C36=$E$1,Worksheet!$B$6,IF(C36=$B$2,Worksheet!$B$7,IF(C36=$C$2,Worksheet!$D$3,IF(C36=$D$2,Worksheet!$D$4,IF(C36=$E$2,Worksheet!$D$5,IF(C36=$C$3,Worksheet!$D$6,IF(C36=$B$3,Worksheet!$D$7,FALSE))))))))))) -> TRUE | AF36: =IF(AE36,D36,"") -> Medium | AG36: =IF(AE36,COUNTIF($AF$5:AF36,AF36),"X") -> 14 | AH36: =CONCATENATE(AE36,AF36) -> TRUEMedium
A37: =CONCATENATE(AE37,D37,AG37) -> TRUEHard8 | B37: =RAND() -> 0.3535904468 | C37: Mult | D37: Hard | E37: 32 | F37: Write out all the numbers in the | G37: =RANDBETWEEN(6,9) -> 6 | H37: times table going backwards: | I37: =CONCATENATE(10*G37,", ",G37*9,", ",G37*8) -> 60, 54, 48 | J37: , ___, ___, ___, ___, ___, ___, ___ | T37: =CONCATENATE(F37," ",G37," ",H37," ",I37," ",J37," ",K37," ",L37," ",M37," ",N37," ",O37," ",P37," ",Q37," ",R37) -> Write out all the numbers in the 6 times table going backwards: 60, 54, 48 , ___, ___, ___, ___, ___, ___, ___ | U37: =CONCATENATE(G37*4,", ",G37*5,", ",G37*6,", ",G37*7,", ",G37*8,", ",G37*9,", ",G37*10) -> 24, 30, 36, 42, 48, 54, 60 | AD37: =IF(OR(ISNA(U37),ISNA(V37),ISNA(W37),ISNA(X37),ISNA(Y37),ISNA(Z37),ISNA(AA37),ISNA(AB37),ISNA(AC37)),NA(),CONCATENATE(U37,V37,W37,X37,Y37,Z37,AA37,AB37)) -> 24, 30, 36, 42, 48, 54, 60 | AE37: =IF(ISNA(AD37),FALSE,IF(C37=$B$1,Worksheet!$B$3,IF(C37=$C$1,Worksheet!$B$4,IF(C37=$D$1,Worksheet!$B$5,IF(C37=$E$1,Worksheet!$B$6,IF(C37=$B$2,Worksheet!$B$7,IF(C37=$C$2,Worksheet!$D$3,IF(C37=$D$2,Worksheet!$D$4,IF(C37=$E$2,Worksheet!$D$5,IF(C37=$C$3,Worksheet!$D$6,IF(C37=$B$3,Worksheet!$D$7,FALSE))))))))))) -> TRUE | AF37: =IF(AE37,D37,"") -> Hard | AG37: =IF(AE37,COUNTIF($AF$5:AF37,AF37),"X") -> 8 | AH37: =CONCATENATE(AE37,AF37) -> TRUEHard
A38: =CONCATENATE(AE38,D38,AG38) -> TRUEMedium15 | B38: =RAND() -> 0.5161046087 | C38: Mult | D38: Medium | E38: 82 | F38: Multiply | G38: 10 | H38: × | I38: =RANDBETWEEN(11,99) -> 24 | T38: =CONCATENATE(F38," ",G38," ",H38," ",I38," ",J38," ",K38," ",L38," ",M38," ",N38," ",O38," ",P38," ",Q38," ",R38) -> Multiply 10 × 24 | U38: =G38*I38 -> 240 | AD38: =IF(OR(ISNA(U38),ISNA(V38),ISNA(W38),ISNA(X38),ISNA(Y38),ISNA(Z38),ISNA(AA38),ISNA(AB38),ISNA(AC38)),NA(),CONCATENATE(U38,V38,W38,X38,Y38,Z38,AA38,AB38)) -> 240 | AE38: =IF(ISNA(AD38),FALSE,IF(C38=$B$1,Worksheet!$B$3,IF(C38=$C$1,Worksheet!$B$4,IF(C38=$D$1,Worksheet!$B$5,IF(C38=$E$1,Worksheet!$B$6,IF(C38=$B$2,Worksheet!$B$7,IF(C38=$C$2,Worksheet!$D$3,IF(C38=$D$2,Worksheet!$D$4,IF(C38=$E$2,Worksheet!$D$5,IF(C38=$C$3,Worksheet!$D$6,IF(C38=$B$3,Worksheet!$D$7,FALSE))))))))))) -> TRUE | AF38: =IF(AE38,D38,"") -> Medium | AG38: =IF(AE38,COUNTIF($AF$5:AF38,AF38),"X") -> 15 | AH38: =CONCATENATE(AE38,AF38) -> TRUEMedium
A39: =CONCATENATE(AE39,D39,AG39) -> TRUEMedium16 | B39: =RAND() -> 0.98426576 | C39: +- | D39: Medium | E39: 65 | F39: Write down a chimney sum to add: | G39: =RANDBETWEEN(150,899) -> 522 | H39: + | I39: =RANDBETWEEN(150,899) -> 865 | T39: =CONCATENATE(F39," ",G39," ",H39," ",I39," ",J39," ",K39," ",L39," ",M39," ",N39," ",O39," ",P39," ",Q39," ",R39) -> Write down a chimney sum to add: 522 + 865 | U39: =G39+I39 -> 1387 | AD39: =IF(OR(ISNA(U39),ISNA(V39),ISNA(W39),ISNA(X39),ISNA(Y39),ISNA(Z39),ISNA(AA39),ISNA(AB39),ISNA(AC39)),NA(),CONCATENATE(U39,V39,W39,X39,Y39,Z39,AA39,AB39)) -> 1387 | AE39: =IF(ISNA(AD39),FALSE,IF(C39=$B$1,Worksheet!$B$3,IF(C39=$C$1,Worksheet!$B$4,IF(C39=$D$1,Worksheet!$B$5,IF(C39=$E$1,Worksheet!$B$6,IF(C39=$B$2,Worksheet!$B$7,IF(C39=$C$2,Worksheet!$D$3,IF(C39=$D$2,Worksheet!$D$4,IF(C39=$E$2,Worksheet!$D$5,IF(C39=$C$3,Worksheet!$D$6,IF(C39=$B$3,Worksheet!$D$7,FALSE))))))))))) -> TRUE | AF39: =IF(AE39,D39,"") -> Medium | AG39: =IF(AE39,COUNTIF($AF$5:AF39,AF39),"X") -> 16 | AH39: =CONCATENATE(AE39,AF39) -> TRUEMedium
A40: =CONCATENATE(AE40,D40,AG40) -> TRUEEasy12 | B40: =RAND() -> 0.8636449511 | C40: Round | D40: Easy | E40: 174 | F40: What is the number before | G40: =RANDBETWEEN(2,10)*100 -> 600 | H40: ? | T40: =CONCATENATE(F40," ",G40,"",H40," ",I40," ",J40," ",K40," ",L40," ",M40," ",N40," ",O40," ",P40," ",Q40," ",R40) -> What is the number before 600? | U40: =G40-1 -> 599 | AD40: =IF(OR(ISNA(U40),ISNA(V40),ISNA(W40),ISNA(X40),ISNA(Y40),ISNA(Z40),ISNA(AA40),ISNA(AB40),ISNA(AC40)),NA(),CONCATENATE(U40,V40,W40,X40,Y40,Z40,AA40,AB40)) -> 599 | AE40: =IF(ISNA(AD40),FALSE,IF(C40=$B$1,Worksheet!$B$3,IF(C40=$C$1,Worksheet!$B$4,IF(C40=$D$1,Worksheet!$B$5,IF(C40=$E$1,Worksheet!$B$6,IF(C40=$B$2,Worksheet!$B$7,IF(C40=$C$2,Worksheet!$D$3,IF(C40=$D$2,Worksheet!$D$4,IF(C40=$E$2,Worksheet!$D$5,IF(C40=$C$3,Worksheet!$D$6,IF(C40=$B$3,Worksheet!$D$7,FALSE))))))))))) -> TRUE | AF40: =IF(AE40,D40,"") -> Easy | AG40: =IF(AE40,COUNTIF($AF$5:AF40,AF40),"X") -> 12 | AH40: =CONCATENATE(AE40,AF40) -> TRUEEasy
A41: =CONCATENATE(AE41,D41,AG41) -> TRUEEasy13 | B41: =RAND() -> 0.3663060968 | C41: Mult | D41: Easy | E41: 79 | F41: Multiply | G41: =RANDBETWEEN(2,10) -> 8 | H41: × | I41: 10 | T41: =CONCATENATE(F41," ",G41," ",H41," ",I41," ",J41," ",K41," ",L41," ",M41," ",N41," ",O41," ",P41," ",Q41," ",R41) -> Multiply 8 × 10 | U41: =G41*I41 -> 80 | AD41: =IF(OR(ISNA(U41),ISNA(V41),ISNA(W41),ISNA(X41),ISNA(Y41),ISNA(Z41),ISNA(AA41),ISNA(AB41),ISNA(AC41)),NA(),CONCATENATE(U41,V41,W41,X41,Y41,Z41,AA41,AB41)) -> 80 | AE41: =IF(ISNA(AD41),FALSE,IF(C41=$B$1,Worksheet!$B$3,IF(C41=$C$1,Worksheet!$B$4,IF(C41=$D$1,Worksheet!$B$5,IF(C41=$E$1,Worksheet!$B$6,IF(C41=$B$2,Worksheet!$B$7,IF(C41=$C$2,Worksheet!$D$3,IF(C41=$D$2,Worksheet!$D$4,IF(C41=$E$2,Worksheet!$D$5,IF(C41=$C$3,Worksheet!$D$6,IF(C41=$B$3,Worksheet!$D$7,FALSE))))))))))) -> TRUE | AF41: =IF(AE41,D41,"") -> Easy | AG41: =IF(AE41,COUNTIF($AF$5:AF41,AF41),"X") -> 13 | AH41: =CONCATENATE(AE41,AF41) -> TRUEEasy
A42: =CONCATENATE(AE42,D42,AG42) -> TRUEHard9 | B42: =RAND() -> 0.900476775 | C42: Num | D42: Hard | E42: 6 | F42: Write the number " | G42: =CHOOSE(RANDBETWEEN(1,10),"ten","eleven","twelve","thirteen","fourteen","fifteen","sixteen","seventeen","eighteen","nineteen") -> fifteen | H42: thousand, and | I42: =CHOOSE(S42,CHOOSE(RANDBETWEEN(1,10),"ten","eleven","twelve","thirteen","fourteen","fifteen","sixteen","seventeen","eighteen","nineteen"),"twenty","thirty","forty","fifty","sixty","seventy","eighty","ninety") -> seventy | J42: =IF(S42=1,"",CHOOSE(RANDBETWEEN(1,9),"one","two","three","four","five","six","seven","eight","nine")) -> six | K42: " in figures | S42: =RANDBETWEEN(1,9) -> 7 | T42: =CONCATENATE(F42,"",G42," ",H42," ",I42," ",J42,"",K42," ",L42," ",M42," ",N42," ",O42," ",P42," ",Q42," ",R42) -> Write the number "fifteen thousand, and seventy six" in figures | U42: =IF(G42="ten",10,IF(G42="eleven",11,IF(G42="twelve",12,IF(G42="thirteen",13,IF(G42="fourteen",14,IF(G42="fifteen",15,IF(G42="sixteen",16,IF(G42="seventeen",17,IF(G42="eighteen",18,19))))))))) -> 15 | V42: 0 | W42: =S42 -> 7 | X42: =IF(S42=1,IF(I42="ten",0,IF(I42="eleven",1,IF(I42="twelve",2,IF(I42="thirteen",3,IF(I42="fourteen",4,IF(I42="fifteen",5,IF(I42="sixteen",6,IF(I42="seventeen",7,IF(I42="eighteen",8,9))))))))),"") ->  | Y42: =IF(S42<>1,IF(J42="one",1,IF(J42="two",2,IF(J42="three",3,IF(J42="four",4,IF(J42="five",5,IF(J42="six",6,IF(J42="seven",7,IF(J42="eight",8,9)))))))),"") -> 6 | AD42: =IF(OR(ISNA(U42),ISNA(V42),ISNA(W42),ISNA(X42),ISNA(Y42),ISNA(Z42),ISNA(AA42),ISNA(AB42),ISNA(AC42)),NA(),TEXT(CONCATENATE(U42,V42,W42,X42,Y42,Z42,AA42,AB42),"#,###")) -> 15,076 | AE42: =IF(ISNA(AD42),FALSE,IF(C42=$B$1,Worksheet!$B$3,IF(C42=$C$1,Worksheet!$B$4,IF(C42=$D$1,Worksheet!$B$5,IF(C42=$E$1,Worksheet!$B$6,IF(C42=$B$2,Worksheet!$B$7,IF(C42=$C$2,Worksheet!$D$3,IF(C42=$D$2,Worksheet!$D$4,IF(C42=$E$2,Worksheet!$D$5,IF(C42=$C$3,Worksheet!$D$6,IF(C42=$B$3,Worksheet!$D$7,FALSE))))))))))) -> TRUE | AF42: =IF(AE42,D42,"") -> Hard | AG42: =IF(AE42,COUNTIF($AF$5:AF42,AF42),"X") -> 9 | AH42: =CONCATENATE(AE42,AF42) -> TRUEHard
A43: =CONCATENATE(AE43,D43,AG43) -> TRUEMedium17 | B43: =RAND() -> 0.7411893812 | C43: Num | D43: Medium | E43: 35 | F43: Write these numbers in order from | G43: =CHOOSE(RANDBETWEEN(1,2),"smallest to biggest:","biggest to smallest:") -> smallest to biggest: | H43: =R43*1000+S43*10^RANDBETWEEN(1,2) -> 9020 | I43: =S43*1000+R43*10^RANDBETWEEN(0,1) -> 2009 | J43: =R43*1000+S43*10^RANDBETWEEN(0,1) -> 9002 | K43: =S43*1000+R43*10^RANDBETWEEN(1,2) -> 2900 | R43: =RANDBETWEEN(1,9) -> 9 | S43: =RANDBETWEEN(1,9) -> 2 | T43: =CONCATENATE(F43," ",G43," ",H43,", ",I43,", ",J43,", ",K43," ",L43," ",M43," ",N43," ",O43," ",P43," ",Q43) -> Write these numbers in order from smallest to biggest: 9020, 2009, 9002, 2900 | U43: =IF($G43="smallest to biggest:",LARGE($H43:$K43,4),LARGE($H43:$K43,1)) -> 2009 | V43: =IF($G43="smallest to biggest:",LARGE($H43:$K43,3),LARGE($H43:$K43,2)) -> 2900 | W43: =IF($G43="smallest to biggest:",LARGE($H43:$K43,2),LARGE($H43:$K43,3)) -> 9002 | X43: =IF($G43="smallest to biggest:",LARGE($H43:$K43,1),LARGE($H43:$K43,4)) -> 9020 | Z43: =IF(OR(H43=I43,H43=J43,H43=K43,I43=J43,I43=K43,J43=K43),NA(),"") ->  | AD43: =IF(OR(ISNA(U43),ISNA(V43),ISNA(W43),ISNA(X43),ISNA(Y43),ISNA(Z43),ISNA(AA43),ISNA(AB43),ISNA(AC43)),NA(),CONCATENATE(U43,", ",V43,", ",W43,", ",X43,Y43,Z43,AA43,AB43)) -> 2009, 2900, 9002, 9020 | AE43: =IF(ISNA(AD43),FALSE,IF(C43=$B$1,Worksheet!$B$3,IF(C43=$C$1,Worksheet!$B$4,IF(C43=$D$1,Worksheet!$B$5,IF(C43=$E$1,Worksheet!$B$6,IF(C43=$B$2,Worksheet!$B$7,IF(C43=$C$2,Worksheet!$D$3,IF(C43=$D$2,Worksheet!$D$4,IF(C43=$E$2,Worksheet!$D$5,IF(C43=$C$3,Worksheet!$D$6,IF(C43=$B$3,Worksheet!$D$7,FALSE))))))))))) -> TRUE | AF43: =IF(AE43,D43,"") -> Medium | AG43: =IF(AE43,COUNTIF($AF$5:AF43,AF43),"X") -> 17 | AH43: =CONCATENATE(AE43,AF43) -> TRUEMedium
A44: =CONCATENATE(AE44,D44,AG44) -> TRUEEasy14 | B44: =RAND() -> 0.03366366204 | C44: Dec | D44: Easy | E44: 140 | F44: Fill in the blank: | G44: £ | H44: =RANDBETWEEN(1,9) -> 1 | I44: . | J44: 0 | K44: =RANDBETWEEN(1,9) -> 9 | L44: = | M44: _____ pounds and ______ pence | T44: =CONCATENATE(F44," ",G44,"",H44,"",I44,"",J44,"",K44," ",L44," ",M44," ",N44," ",O44," ",P44," ",Q44," ",R44) -> Fill in the blank: £1.09 = _____ pounds and ______ pence | U44: =H44 -> 1 | V44: pounds and | W44: =K44 -> 9 | X44: pence | AD44: =IF(OR(ISNA(U44),ISNA(V44),ISNA(W44),ISNA(X44),ISNA(Y44),ISNA(Z44),ISNA(AA44),ISNA(AB44),ISNA(AC44)),NA(),CONCATENATE(U44,V44,W44,X44,Y44,Z44,AA44,AB44)) -> 1 pounds and 9 pence | AE44: =IF(ISNA(AD44),FALSE,IF(C44=$B$1,Worksheet!$B$3,IF(C44=$C$1,Worksheet!$B$4,IF(C44=$D$1,Worksheet!$B$5,IF(C44=$E$1,Worksheet!$B$6,IF(C44=$B$2,Worksheet!$B$7,IF(C44=$C$2,Worksheet!$D$3,IF(C44=$D$2,Worksheet!$D$4,IF(C44=$E$2,Worksheet!$D$5,IF(C44=$C$3,Worksheet!$D$6,IF(C44=$B$3,Worksheet!$D$7,FALSE))))))))))) -> TRUE | AF44: =IF(AE44,D44,"") -> Easy | AG44: =IF(AE44,COUNTIF($AF$5:AF44,AF44),"X") -> 14 | AH44: =CONCATENATE(AE44,AF44) -> TRUEEasy
A45: =CONCATENATE(AE45,D45,AG45) -> TRUEEasy15 | B45: =RAND() -> 0.09505078276 | C45: Neg | D45: Easy | E45: 168 | F45: Circle the | G45: =IF(RAND()<0.5,"WARMEST","COLDEST") -> WARMEST | H45: temperature: | I45: =RANDBETWEEN(1,5) -> 4 | J45: =RANDBETWEEN(-5,-1) -> -5 | T45: =CONCATENATE(F45," ",G45," ",H45," ",I45,"°C ",J45,"°C ",K45," ",L45," ",M45," ",N45," ",O45," ",P45," ",Q45," ",R45) -> Circle the WARMEST temperature: 4°C -5°C | U45: =IF(G45="WARMEST",MAX(I45:J45),MIN(I45:J45)) -> 4 | V45: °C | Z45: =IF(I45=J45,NA(),"") ->  | AD45: =IF(OR(ISNA(U45),ISNA(V45),ISNA(W45),ISNA(X45),ISNA(Y45),ISNA(Z45),ISNA(AA45),ISNA(AB45),ISNA(AC45)),NA(),CONCATENATE(U45,V45,W45,X45,Y45,Z45,AA45,AB45)) -> 4°C | AE45: =IF(ISNA(AD45),FALSE,IF(C45=$B$1,Worksheet!$B$3,IF(C45=$C$1,Worksheet!$B$4,IF(C45=$D$1,Worksheet!$B$5,IF(C45=$E$1,Worksheet!$B$6,IF(C45=$B$2,Worksheet!$B$7,IF(C45=$C$2,Worksheet!$D$3,IF(C45=$D$2,Worksheet!$D$4,IF(C45=$E$2,Worksheet!$D$5,IF(C45=$C$3,Worksheet!$D$6,IF(C45=$B$3,Worksheet!$D$7,FALSE))))))))))) -> TRUE | AF45: =IF(AE45,D45,"") -> Easy | AG45: =IF(AE45,COUNTIF($AF$5:AF45,AF45),"X") -> 15 | AH45: =CONCATENATE(AE45,AF45) -> TRUEEasy
A46: =CONCATENATE(AE46,D46,AG46) -> TRUEMedium18 | B46: =RAND() -> 0.2503058341 | C46: Num | D46: Medium | E46: 36 | F46: Write these numbers in order from | G46: =CHOOSE(RANDBETWEEN(1,2),"smallest to biggest:","biggest to smallest:") -> smallest to biggest: | H46: =R46*1000+S46*10^RANDBETWEEN(1,2) -> 8060 | I46: =S46*1000+R46*10^RANDBETWEEN(0,1) -> 6080 | J46: =R46*1000+S46*10^RANDBETWEEN(0,1) -> 8006 | K46: =S46*1000+R46*10^RANDBETWEEN(1,2) -> 6800 | R46: =RANDBETWEEN(1,9) -> 8 | S46: =RANDBETWEEN(1,9) -> 6 | T46: =CONCATENATE(F46," ",G46," ",H46,", ",I46,", ",J46,", ",K46," ",L46," ",M46," ",N46," ",O46," ",P46," ",Q46) -> Write these numbers in order from smallest to biggest: 8060, 6080, 8006, 6800 | U46: =IF($G46="smallest to biggest:",LARGE($H46:$K46,4),LARGE($H46:$K46,1)) -> 6080 | V46: =IF($G46="smallest to biggest:",LARGE($H46:$K46,3),LARGE($H46:$K46,2)) -> 6800 | W46: =IF($G46="smallest to biggest:",LARGE($H46:$K46,2),LARGE($H46:$K46,3)) -> 8006 | X46: =IF($G46="smallest to biggest:",LARGE($H46:$K46,1),LARGE($H46:$K46,4)) -> 8060 | Z46: =IF(OR(H46=I46,H46=J46,H46=K46,I46=J46,I46=K46,J46=K46),NA(),"") ->  | AD46: =IF(OR(ISNA(U46),ISNA(V46),ISNA(W46),ISNA(X46),ISNA(Y46),ISNA(Z46),ISNA(AA46),ISNA(AB46),ISNA(AC46)),NA(),CONCATENATE(U46,", ",V46,", ",W46,", ",X46,Y46,Z46,AA46,AB46)) -> 6080, 6800, 8006, 8060 | AE46: =IF(ISNA(AD46),FALSE,IF(C46=$B$1,Worksheet!$B$3,IF(C46=$C$1,Worksheet!$B$4,IF(C46=$D$1,Worksheet!$B$5,IF(C46=$E$1,Worksheet!$B$6,IF(C46=$B$2,Worksheet!$B$7,IF(C46=$C$2,Worksheet!$D$3,IF(C46=$D$2,Worksheet!$D$4,IF(C46=$E$2,Worksheet!$D$5,IF(C46=$C$3,Worksheet!$D$6,IF(C46=$B$3,Worksheet!$D$7,FALSE))))))))))) -> TRUE | AF46: =IF(AE46,D46,"") -> Medium | AG46: =IF(AE46,COUNTIF($AF$5:AF46,AF46),"X") -> 18 | AH46: =CONCATENATE(AE46,AF46) -> TRUEMedium
A47: =CONCATENATE(AE47,D47,AG47) -> TRUEEasy16 | B47: =RAND() -> 0.434494975 | C47: Divide | D47: Easy | E47: 86 | F47: What is half of | G47: =2*RANDBETWEEN(3,5) -> 10 | H47: ? | T47: =CONCATENATE(F47," ",G47,"",H47," ",I47," ",J47," ",K47," ",L47," ",M47," ",N47," ",O47," ",P47," ",Q47," ",R47) -> What is half of 10? | U47: =G47/2 -> 5 | AD47: =IF(OR(ISNA(U47),ISNA(V47),ISNA(W47),ISNA(X47),ISNA(Y47),ISNA(Z47),ISNA(AA47),ISNA(AB47),ISNA(AC47)),NA(),CONCATENATE(U47,V47,W47,X47,Y47,Z47,AA47,AB47)) -> 5 | AE47: =IF(ISNA(AD47),FALSE,IF(C47=$B$1,Worksheet!$B$3,IF(C47=$C$1,Worksheet!$B$4,IF(C47=$D$1,Worksheet!$B$5,IF(C47=$E$1,Worksheet!$B$6,IF(C47=$B$2,Worksheet!$B$7,IF(C47=$C$2,Worksheet!$D$3,IF(C47=$D$2,Worksheet!$D$4,IF(C47=$E$2,Worksheet!$D$5,IF(C47=$C$3,Worksheet!$D$6,IF(C47=$B$3,Worksheet!$D$7,FALSE))))))))))) -> TRUE | AF47: =IF(AE47,D47,"") -> Easy | AG47: =IF(AE47,COUNTIF($AF$5:AF47,AF47),"X") -> 16 | AH47: =CONCATENATE(AE47,AF47) -> TRUEEasy
A48: =CONCATENATE(AE48,D48,AG48) -> TRUEEasy17 | B48: =RAND() -> 0.3808890073 | C48: +- | D48: Easy | E48: 64 | F48: Write down a chimney sum to add: | G48: =RANDBETWEEN(50,99) -> 84 | H48: + | I48: =RANDBETWEEN(50,99) -> 92 | T48: =CONCATENATE(F48," ",G48," ",H48," ",I48," ",J48," ",K48," ",L48," ",M48," ",N48," ",O48," ",P48," ",Q48," ",R48) -> Write down a chimney sum to add: 84 + 92 | U48: =G48+I48 -> 176 | AD48: =IF(OR(ISNA(U48),ISNA(V48),ISNA(W48),ISNA(X48),ISNA(Y48),ISNA(Z48),ISNA(AA48),ISNA(AB48),ISNA(AC48)),NA(),CONCATENATE(U48,V48,W48,X48,Y48,Z48,AA48,AB48)) -> 176 | AE48: =IF(ISNA(AD48),FALSE,IF(C48=$B$1,Worksheet!$B$3,IF(C48=$C$1,Worksheet!$B$4,IF(C48=$D$1,Worksheet!$B$5,IF(C48=$E$1,Worksheet!$B$6,IF(C48=$B$2,Worksheet!$B$7,IF(C48=$C$2,Worksheet!$D$3,IF(C48=$D$2,Worksheet!$D$4,IF(C48=$E$2,Worksheet!$D$5,IF(C48=$C$3,Worksheet!$D$6,IF(C48=$B$3,Worksheet!$D$7,FALSE))))))))))) -> TRUE | AF48: =IF(AE48,D48,"") -> Easy | AG48: =IF(AE48,COUNTIF($AF$5:AF48,AF48),"X") -> 17 | AH48: =CONCATENATE(AE48,AF48) -> TRUEEasy
A49: =CONCATENATE(AE49,D49,AG49) -> TRUEEasy18 | B49: =RAND() -> 0.5105099188 | C49: Mult | D49: Easy | E49: 72 | F49: What is double | G49: =RANDBETWEEN(6,10) -> 7 | H49: ? | T49: =CONCATENATE(F49," ",G49,"",H49," ",I49," ",J49," ",K49," ",L49," ",M49," ",N49," ",O49," ",P49," ",Q49," ",R49) -> What is double 7? | U49: =G49*2 -> 14 | AD49: =IF(OR(ISNA(U49),ISNA(V49),ISNA(W49),ISNA(X49),ISNA(Y49),ISNA(Z49),ISNA(AA49),ISNA(AB49),ISNA(AC49)),NA(),CONCATENATE(U49,V49,W49,X49,Y49,Z49,AA49,AB49)) -> 14 | AE49: =IF(ISNA(AD49),FALSE,IF(C49=$B$1,Worksheet!$B$3,IF(C49=$C$1,Worksheet!$B$4,IF(C49=$D$1,Worksheet!$B$5,IF(C49=$E$1,Worksheet!$B$6,IF(C49=$B$2,Worksheet!$B$7,IF(C49=$C$2,Worksheet!$D$3,IF(C49=$D$2,Worksheet!$D$4,IF(C49=$E$2,Worksheet!$D$5,IF(C49=$C$3,Worksheet!$D$6,IF(C49=$B$3,Worksheet!$D$7,FALSE))))))))))) -> TRUE | AF49: =IF(AE49,D49,"") -> Easy | AG49: =IF(AE49,COUNTIF($AF$5:AF49,AF49),"X") -> 18 | AH49: =CONCATENATE(AE49,AF49) -> TRUEEasy
A50: =CONCATENATE(AE50,D50,AG50) -> TRUEHard10 | B50: =RAND() -> 0.947003073 | C50: Choose | D50: Hard | E50: 116 | F50: One | G50: =CHOOSE(RANDBETWEEN(1,3),"chair","table","desk") -> table | H50: costs | I50: =RANDBETWEEN(2,5)*10 -> 20 | J50: How much do | K50: =RANDBETWEEN(2,5) -> 5 | L50: =CONCATENATE(G50,"s") -> tables | M50: cost? | T50: =CONCATENATE(F50," ",G50," ",H50," £",I50,". ",J50," ",K50," ",L50," ",M50," ",N50," ",O50," ",P50," ",Q50," ",R50) -> One table costs £20. How much do 5 tables cost? | U50: £ | V50: =I50*K50 -> 100 | AD50: =IF(OR(ISNA(U50),ISNA(V50),ISNA(W50),ISNA(X50),ISNA(Y50),ISNA(Z50),ISNA(AA50),ISNA(AB50),ISNA(AC50)),NA(),CONCATENATE(U50,V50,W50,X50,Y50,Z50,AA50,AB50)) -> £100 | AE50: =IF(ISNA(AD50),FALSE,IF(C50=$B$1,Worksheet!$B$3,IF(C50=$C$1,Worksheet!$B$4,IF(C50=$D$1,Worksheet!$B$5,IF(C50=$E$1,Worksheet!$B$6,IF(C50=$B$2,Worksheet!$B$7,IF(C50=$C$2,Worksheet!$D$3,IF(C50=$D$2,Worksheet!$D$4,IF(C50=$E$2,Worksheet!$D$5,IF(C50=$C$3,Worksheet!$D$6,IF(C50=$B$3,Worksheet!$D$7,FALSE))))))))))) -> TRUE | AF50: =IF(AE50,D50,"") -> Hard | AG50: =IF(AE50,COUNTIF($AF$5:AF50,AF50),"X") -> 10 | AH50: =CONCATENATE(AE50,AF50) -> TRUEHard
A51: =CONCATENATE(AE51,D51,AG51) -> TRUEHard11 | B51: =RAND() -> 0.3159713322 | C51: Num | D51: Hard | E51: 37 | F51: Write these numbers in order from | G51: =CHOOSE(RANDBETWEEN(1,2),"smallest to biggest:","biggest to smallest:") -> smallest to biggest: | H51: =IF($O51=1,$P51*1000,IF($O51=2,$Q51*1000,IF($O51=3,$R51*1000,$S51*1000)))+IF(RAND()<0.5,$R51,$S51)*100+IF(RAND()<0.5,$P51,$Q51)*10+CHOOSE(RANDBETWEEN(1,4),$P51,$Q51,$R51,$S51) -> 6699 | I51: =IF($O51=1,$P51*1000,IF($O51=2,$Q51*1000,IF($O51=3,$R51*1000,$S51*1000)))+IF(RAND()<0.5,$R51,$S51)*100+IF(RAND()<0.5,$P51,$Q51)*10+CHOOSE(RANDBETWEEN(1,4),$P51,$Q51,$R51,$S51) -> 6999 | J51: =IF($O51=1,$P51*1000,IF($O51=2,$Q51*1000,IF($O51=3,$R51*1000,$S51*1000)))+IF(RAND()<0.5,$R51,$S51)*100+IF(RAND()<0.5,$P51,$Q51)*10+CHOOSE(RANDBETWEEN(1,4),$P51,$Q51,$R51,$S51) -> 6639 | K51: =IF($O51=1,$P51*1000,IF($O51=2,$Q51*1000,IF($O51=3,$R51*1000,$S51*1000)))+IF(RAND()<0.5,$R51,$S51)*100+IF(RAND()<0.5,$P51,$Q51)*10+CHOOSE(RANDBETWEEN(1,4),$P51,$Q51,$R51,$S51) -> 6939 | O51: =RANDBETWEEN(1,4) -> 3 | P51: =RANDBETWEEN(1,9) -> 3 | Q51: =RANDBETWEEN(1,9) -> 9 | R51: =RANDBETWEEN(1,9) -> 6 | S51: =RANDBETWEEN(1,9) -> 9 | T51: =CONCATENATE(F51," ",G51," ",H51,", ",I51,", ",J51,", ",K51," ",L51," ",M51," ",N51) -> Write these numbers in order from smallest to biggest: 6699, 6999, 6639, 6939 | U51: =IF($G51="smallest to biggest:",LARGE($H51:$K51,4),LARGE($H51:$K51,1)) -> 6639 | V51: =IF($G51="smallest to biggest:",LARGE($H51:$K51,3),LARGE($H51:$K51,2)) -> 6699 | W51: =IF($G51="smallest to biggest:",LARGE($H51:$K51,2),LARGE($H51:$K51,3)) -> 6939 | X51: =IF($G51="smallest to biggest:",LARGE($H51:$K51,1),LARGE($H51:$K51,4)) -> 6999 | Z51: =IF(OR(H51=I51,H51=J51,H51=K51,I51=J51,I51=K51,J51=K51),NA(),"") ->  | AD51: =IF(OR(ISNA(U51),ISNA(V51),ISNA(W51),ISNA(X51),ISNA(Y51),ISNA(Z51),ISNA(AA51),ISNA(AB51),ISNA(AC51)),NA(),CONCATENATE(U51,", ",V51,", ",W51,", ",X51,Y51,Z51,AA51,AB51)) -> 6639, 6699, 6939, 6999 | AE51: =IF(ISNA(AD51),FALSE,IF(C51=$B$1,Worksheet!$B$3,IF(C51=$C$1,Worksheet!$B$4,IF(C51=$D$1,Worksheet!$B$5,IF(C51=$E$1,Worksheet!$B$6,IF(C51=$B$2,Worksheet!$B$7,IF(C51=$C$2,Worksheet!$D$3,IF(C51=$D$2,Worksheet!$D$4,IF(C51=$E$2,Worksheet!$D$5,IF(C51=$C$3,Worksheet!$D$6,IF(C51=$B$3,Worksheet!$D$7,FALSE))))))))))) -> TRUE | AF51: =IF(AE51,D51,"") -> Hard | AG51: =IF(AE51,COUNTIF($AF$5:AF51,AF51),"X") -> 11 | AH51: =CONCATENATE(AE51,AF51) -> TRUEHard
A52: =CONCATENATE(AE52,D52,AG52) -> TRUEEasy19 | B52: =RAND() -> 0.25357684 | C52: Frac | D52: Easy | E52: 122 | F52: Fractions. What is | G52: 1/10 | H52: of | I52: =10*RANDBETWEEN(2,5) -> 30 | J52: ? | T52: =CONCATENATE(F52," ",G52," ",H52," ",I52," ",J52," ",K52," ",L52," ",M52," ",N52," ",O52," ",P52," ",Q52," ",R52) -> Fractions. What is 1/10 of 30 ? | U52: =I52/10 -> 3 | AD52: =IF(OR(ISNA(U52),ISNA(V52),ISNA(W52),ISNA(X52),ISNA(Y52),ISNA(Z52),ISNA(AA52),ISNA(AB52),ISNA(AC52)),NA(),CONCATENATE(U52,V52,W52,X52,Y52,Z52,AA52,AB52)) -> 3 | AE52: =IF(ISNA(AD52),FALSE,IF(C52=$B$1,Worksheet!$B$3,IF(C52=$C$1,Worksheet!$B$4,IF(C52=$D$1,Worksheet!$B$5,IF(C52=$E$1,Worksheet!$B$6,IF(C52=$B$2,Worksheet!$B$7,IF(C52=$C$2,Worksheet!$D$3,IF(C52=$D$2,Worksheet!$D$4,IF(C52=$E$2,Worksheet!$D$5,IF(C52=$C$3,Worksheet!$D$6,IF(C52=$B$3,Worksheet!$D$7,FALSE))))))))))) -> TRUE | AF52: =IF(AE52,D52,"") -> Easy | AG52: =IF(AE52,COUNTIF($AF$5:AF52,AF52),"X") -> 19 | AH52: =CONCATENATE(AE52,AF52) -> TRUEEasy
A53: =CONCATENATE(AE53,D53,AG53) -> TRUEMedium19 | B53: =RAND() -> 0.1524459898 | C53: Mult | D53: Medium | E53: 30 | F53: Write out all the numbers in the | G53: =RANDBETWEEN(6,9) -> 6 | H53: times table: | I53: =CONCATENATE(G53,", ",G53*2,", ",G53*3) -> 6, 12, 18 | J53: , ___, ___, ___, ___, ___, ___, ___ | T53: =CONCATENATE(F53," ",G53," ",H53," ",I53," ",J53," ",K53," ",L53," ",M53," ",N53," ",O53," ",P53," ",Q53," ",R53) -> Write out all the numbers in the 6 times table: 6, 12, 18 , ___, ___, ___, ___, ___, ___, ___ | U53: =CONCATENATE(G53*4,", ",G53*5,", ",G53*6,", ",G53*7,", ",G53*8,", ",G53*9,", ",G53*10) -> 24, 30, 36, 42, 48, 54, 60 | AD53: =IF(OR(ISNA(U53),ISNA(V53),ISNA(W53),ISNA(X53),ISNA(Y53),ISNA(Z53),ISNA(AA53),ISNA(AB53),ISNA(AC53)),NA(),CONCATENATE(U53,V53,W53,X53,Y53,Z53,AA53,AB53)) -> 24, 30, 36, 42, 48, 54, 60 | AE53: =IF(ISNA(AD53),FALSE,IF(C53=$B$1,Worksheet!$B$3,IF(C53=$C$1,Worksheet!$B$4,IF(C53=$D$1,Worksheet!$B$5,IF(C53=$E$1,Worksheet!$B$6,IF(C53=$B$2,Worksheet!$B$7,IF(C53=$C$2,Worksheet!$D$3,IF(C53=$D$2,Worksheet!$D$4,IF(C53=$E$2,Worksheet!$D$5,IF(C53=$C$3,Worksheet!$D$6,IF(C53=$B$3,Worksheet!$D$7,FALSE))))))))))) -> TRUE | AF53: =IF(AE53,D53,"") -> Medium | AG53: =IF(AE53,COUNTIF($AF$5:AF53,AF53),"X") -> 19 | AH53: =CONCATENATE(AE53,AF53) -> TRUEMedium
A54: =CONCATENATE(AE54,D54,AG54) -> TRUEEasy20 | B54: =RAND() -> 0.286679731 | C54: Num | D54: Easy | E54: 9 | F54: Fill in the missing numbers: | G54: =RANDBETWEEN(11,95)*10 -> 590 | H54: =G54+S54 -> 600 | I54: =H54+S54 -> 610 | J54: ____ | K54: ____ | L54: =V54+S54 -> 640 | M54: =L54+S54 -> 650 | S54: 10 | T54: =CONCATENATE(F54," ",G54,", ",H54,", ",I54,", ",J54,", ",K54,", ",L54,", ",M54," ",N54," ",O54," ",P54," ",Q54," ",R54) -> Fill in the missing numbers: 590, 600, 610, ____, ____, 640, 650 | U54: =I54+S54 -> 620 | V54: =U54+S54 -> 630 | AD54: =IF(OR(ISNA(U54),ISNA(V54),ISNA(W54),ISNA(X54),ISNA(Y54),ISNA(Z54),ISNA(AA54),ISNA(AB54),ISNA(AC54)),NA(),CONCATENATE(U54,", ",V54,W54,X54,Y54,Z54,AA54,AB54)) -> 620, 630 | AE54: =IF(ISNA(AD54),FALSE,IF(C54=$B$1,Worksheet!$B$3,IF(C54=$C$1,Worksheet!$B$4,IF(C54=$D$1,Worksheet!$B$5,IF(C54=$E$1,Worksheet!$B$6,IF(C54=$B$2,Worksheet!$B$7,IF(C54=$C$2,Worksheet!$D$3,IF(C54=$D$2,Worksheet!$D$4,IF(C54=$E$2,Worksheet!$D$5,IF(C54=$C$3,Worksheet!$D$6,IF(C54=$B$3,Worksheet!$D$7,FALSE))))))))))) -> TRUE | AF54: =IF(AE54,D54,"") -> Easy | AG54: =IF(AE54,COUNTIF($AF$5:AF54,AF54),"X") -> 20 | AH54: =CONCATENATE(AE54,AF54) -> TRUEEasy
A55: =CONCATENATE(AE55,D55,AG55) -> TRUEMedium20 | B55: =RAND() -> 0.03064849755 | C55: Num | D55: Medium | E55: 150 | F55: Write these amounts of money in order from | G55: =CHOOSE(RANDBETWEEN(1,2),"smallest to biggest:","biggest to smallest:") -> biggest to smallest: | H55: =R55+S55/100 -> 6.02 | I55: =R55+S55/10 -> 6.2 | J55: =R55+S55/10+S55/100 -> 6.22 | K55: =R55+S55/10+R55/100 -> 6.26 | R55: =RANDBETWEEN(1,9) -> 6 | S55: =RANDBETWEEN(1,9) -> 2 | T55: =CONCATENATE(F55," ",G55," £ ",H55,", £",I55,", £",J55,", £",K55," ",L55," ",M55," ",N55," ",O55," ",P55," ",Q55) -> Write these amounts of money in order from biggest to smallest: £ 6.02, £6.2, £6.22, £6.26 | U55: =IF($G55="smallest to biggest:",LARGE($H55:$K55,4),LARGE($H55:$K55,1)) -> 6.26 | V55: =IF($G55="smallest to biggest:",LARGE($H55:$K55,3),LARGE($H55:$K55,2)) -> 6.22 | W55: =IF($G55="smallest to biggest:",LARGE($H55:$K55,2),LARGE($H55:$K55,3)) -> 6.2 | X55: =IF($G55="smallest to biggest:",LARGE($H55:$K55,1),LARGE($H55:$K55,4)) -> 6.02 | Z55: =IF(OR(H55=I55,H55=J55,H55=K55,I55=J55,I55=K55,J55=K55),NA(),"") ->  | AD55: =IF(OR(ISNA(U55),ISNA(V55),ISNA(W55),ISNA(X55),ISNA(Y55),ISNA(Z55),ISNA(AA55),ISNA(AB55),ISNA(AC55)),NA(),CONCATENATE("£",U55,", £",V55,", £",W55,", £",X55,Y55,Z55,AA55,AB55)) -> £6.26, £6.22, £6.2, £6.02 | AE55: =IF(ISNA(AD55),FALSE,IF(C55=$B$1,Worksheet!$B$3,IF(C55=$C$1,Worksheet!$B$4,IF(C55=$D$1,Worksheet!$B$5,IF(C55=$E$1,Worksheet!$B$6,IF(C55=$B$2,Worksheet!$B$7,IF(C55=$C$2,Worksheet!$D$3,IF(C55=$D$2,Worksheet!$D$4,IF(C55=$E$2,Worksheet!$D$5,IF(C55=$C$3,Worksheet!$D$6,IF(C55=$B$3,Worksheet!$D$7,FALSE))))))))))) -> TRUE | AF55: =IF(AE55,D55,"") -> Medium | AG55: =IF(AE55,COUNTIF($AF$5:AF55,AF55),"X") -> 20 | AH55: =CONCATENATE(AE55,AF55) -> TRUEMedium
A56: =CONCATENATE(AE56,D56,AG56) -> TRUEMedium21 | B56: =RAND() -> 0.03982543462 | C56: +- | D56: Medium | E56: 53 | F56: Fill in the missing number: | G56: =RANDBETWEEN(6,9) -> 8 | H56: + | I56: _____ | J56: = | K56: =RANDBETWEEN(11,19) -> 16 | T56: =CONCATENATE(F56," ",G56," ",H56," ",I56," ",J56," ",K56," ",L56," ",M56," ",N56," ",O56," ",P56," ",Q56," ",R56) -> Fill in the missing number: 8 + _____ = 16 | U56: =K56-G56 -> 8 | AD56: =IF(OR(ISNA(U56),ISNA(V56),ISNA(W56),ISNA(X56),ISNA(Y56),ISNA(Z56),ISNA(AA56),ISNA(AB56),ISNA(AC56)),NA(),CONCATENATE(U56,V56,W56,X56,Y56,Z56,AA56,AB56)) -> 8 | AE56: =IF(ISNA(AD56),FALSE,IF(C56=$B$1,Worksheet!$B$3,IF(C56=$C$1,Worksheet!$B$4,IF(C56=$D$1,Worksheet!$B$5,IF(C56=$E$1,Worksheet!$B$6,IF(C56=$B$2,Worksheet!$B$7,IF(C56=$C$2,Worksheet!$D$3,IF(C56=$D$2,Worksheet!$D$4,IF(C56=$E$2,Worksheet!$D$5,IF(C56=$C$3,Worksheet!$D$6,IF(C56=$B$3,Worksheet!$D$7,FALSE))))))))))) -> TRUE | AF56: =IF(AE56,D56,"") -> Medium | AG56: =IF(AE56,COUNTIF($AF$5:AF56,AF56),"X") -> 21 | AH56: =CONCATENATE(AE56,AF56) -> TRUEMedium
A57: =CONCATENATE(AE57,D57,AG57) -> TRUEMedium22 | B57: =RAND() -> 0.2715415536 | C57: Neg | D57: Medium | E57: 170 | F57: Circle the | G57: =IF(RAND()<0.5,"WARMEST","COLDEST") -> WARMEST | H57: temperature: | I57: =RANDBETWEEN(-5,5) -> 0 | J57: =RANDBETWEEN(-5,5) -> -1 | T57: =CONCATENATE(F57," ",G57," ",H57," ",I57,"°C ",J57,"°C ",K57," ",L57," ",M57," ",N57," ",O57," ",P57," ",Q57," ",R57) -> Circle the WARMEST temperature: 0°C -1°C | U57: =IF(G57="WARMEST",MAX(I57:J57),MIN(I57:J57)) -> 0 | V57: °C | Z57: =IF(I57=J57,NA(),"") ->  | AD57: =IF(OR(ISNA(U57),ISNA(V57),ISNA(W57),ISNA(X57),ISNA(Y57),ISNA(Z57),ISNA(AA57),ISNA(AB57),ISNA(AC57)),NA(),CONCATENATE(U57,V57,W57,X57,Y57,Z57,AA57,AB57)) -> 0°C | AE57: =IF(ISNA(AD57),FALSE,IF(C57=$B$1,Worksheet!$B$3,IF(C57=$C$1,Worksheet!$B$4,IF(C57=$D$1,Worksheet!$B$5,IF(C57=$E$1,Worksheet!$B$6,IF(C57=$B$2,Worksheet!$B$7,IF(C57=$C$2,Worksheet!$D$3,IF(C57=$D$2,Worksheet!$D$4,IF(C57=$E$2,Worksheet!$D$5,IF(C57=$C$3,Worksheet!$D$6,IF(C57=$B$3,Worksheet!$D$7,FALSE))))))))))) -> TRUE | AF57: =IF(AE57,D57,"") -> Medium | AG57: =IF(AE57,COUNTIF($AF$5:AF57,AF57),"X") -> 22 | AH57: =CONCATENATE(AE57,AF57) -> TRUEMedium
A58: =CONCATENATE(AE58,D58,AG58) -> TRUEMedium23 | B58: =RAND() -> 0.5470292733 | C58: +- | D58: Medium | E58: 54 | F58: Fill in the missing number: | G58: =RANDBETWEEN(6,9) -> 9 | H58: + | I58: _____ | J58: = | K58: =RANDBETWEEN(11,19) -> 17 | T58: =CONCATENATE(F58," ",G58," ",H58," ",I58," ",J58," ",K58," ",L58," ",M58," ",N58," ",O58," ",P58," ",Q58," ",R58) -> Fill in the missing number: 9 + _____ = 17 | U58: =K58-G58 -> 8 | AD58: =IF(OR(ISNA(U58),ISNA(V58),ISNA(W58),ISNA(X58),ISNA(Y58),ISNA(Z58),ISNA(AA58),ISNA(AB58),ISNA(AC58)),NA(),CONCATENATE(U58,V58,W58,X58,Y58,Z58,AA58,AB58)) -> 8 | AE58: =IF(ISNA(AD58),FALSE,IF(C58=$B$1,Worksheet!$B$3,IF(C58=$C$1,Worksheet!$B$4,IF(C58=$D$1,Worksheet!$B$5,IF(C58=$E$1,Worksheet!$B$6,IF(C58=$B$2,Worksheet!$B$7,IF(C58=$C$2,Worksheet!$D$3,IF(C58=$D$2,Worksheet!$D$4,IF(C58=$E$2,Worksheet!$D$5,IF(C58=$C$3,Worksheet!$D$6,IF(C58=$B$3,Worksheet!$D$7,FALSE))))))))))) -> TRUE | AF58: =IF(AE58,D58,"") -> Medium | AG58: =IF(AE58,COUNTIF($AF$5:AF58,AF58),"X") -> 23 | AH58: =CONCATENATE(AE58,AF58) -> TRUEMedium
A59: =CONCATENATE(AE59,D59,AG59) -> TRUEEasy21 | B59: =RAND() -> 0.09866895883 | C59: +- | D59: Easy | E59: 43 | F59: Fill in the missing number: | G59: ____ + | H59: =90+RANDBETWEEN(1,9) -> 94 | I59: = | J59: 100 | T59: =CONCATENATE(F59," ",G59," ",H59," ",I59," ",J59," ",K59," ",L59," ",M59," ",N59," ",O59," ",P59," ",Q59," ",R59) -> Fill in the missing number: ____ + 94 = 100 | U59: =J59-H59 -> 6 | AD59: =IF(OR(ISNA(U59),ISNA(V59),ISNA(W59),ISNA(X59),ISNA(Y59),ISNA(Z59),ISNA(AA59),ISNA(AB59),ISNA(AC59)),NA(),CONCATENATE(U59,V59,W59,X59,Y59,Z59,AA59,AB59)) -> 6 | AE59: =IF(ISNA(AD59),FALSE,IF(C59=$B$1,Worksheet!$B$3,IF(C59=$C$1,Worksheet!$B$4,IF(C59=$D$1,Worksheet!$B$5,IF(C59=$E$1,Worksheet!$B$6,IF(C59=$B$2,Worksheet!$B$7,IF(C59=$C$2,Worksheet!$D$3,IF(C59=$D$2,Worksheet!$D$4,IF(C59=$E$2,Worksheet!$D$5,IF(C59=$C$3,Worksheet!$D$6,IF(C59=$B$3,Worksheet!$D$7,FALSE))))))))))) -> TRUE | AF59: =IF(AE59,D59,"") -> Easy | AG59: =IF(AE59,COUNTIF($AF$5:AF59,AF59),"X") -> 21 | AH59: =CONCATENATE(AE59,AF59) -> TRUEEasy
A60: =CONCATENATE(AE60,D60,AG60) -> TRUEMedium24 | B60: =RAND() -> 0.3997941904 | C60: +- | D60: Medium | E60: 41 | F60: Fill in the missing number: | G60: ____ + | H60: =RANDBETWEEN(1,8)*10+RANDBETWEEN(1,9) -> 62 | I60: = | J60: 100 | T60: =CONCATENATE(F60," ",G60," ",H60," ",I60," ",J60," ",K60," ",L60," ",M60," ",N60," ",O60," ",P60," ",Q60," ",R60) -> Fill in the missing number: ____ + 62 = 100 | U60: =J60-H60 -> 38 | AD60: =IF(OR(ISNA(U60),ISNA(V60),ISNA(W60),ISNA(X60),ISNA(Y60),ISNA(Z60),ISNA(AA60),ISNA(AB60),ISNA(AC60)),NA(),CONCATENATE(U60,V60,W60,X60,Y60,Z60,AA60,AB60)) -> 38 | AE60: =IF(ISNA(AD60),FALSE,IF(C60=$B$1,Worksheet!$B$3,IF(C60=$C$1,Worksheet!$B$4,IF(C60=$D$1,Worksheet!$B$5,IF(C60=$E$1,Worksheet!$B$6,IF(C60=$B$2,Worksheet!$B$7,IF(C60=$C$2,Worksheet!$D$3,IF(C60=$D$2,Worksheet!$D$4,IF(C60=$E$2,Worksheet!$D$5,IF(C60=$C$3,Worksheet!$D$6,IF(C60=$B$3,Worksheet!$D$7,FALSE))))))))))) -> TRUE | AF60: =IF(AE60,D60,"") -> Medium | AG60: =IF(AE60,COUNTIF($AF$5:AF60,AF60),"X") -> 24 | AH60: =CONCATENATE(AE60,AF60) -> TRUEMedium
A61: =CONCATENATE(AE61,D61,AG61) -> TRUEEasy22 | B61: =RAND() -> 0.3315294879 | C61: +- | D61: Easy | E61: 42 | F61: Fill in the missing number: | G61: =90+RANDBETWEEN(1,9) -> 93 | H61: + ____ = | I61: 100 | T61: =CONCATENATE(F61," ",G61," ",H61," ",I61," ",J61," ",K61," ",L61," ",M61," ",N61," ",O61," ",P61," ",Q61," ",R61) -> Fill in the missing number: 93 + ____ = 100 | U61: =I61-G61 -> 7 | AD61: =IF(OR(ISNA(U61),ISNA(V61),ISNA(W61),ISNA(X61),ISNA(Y61),ISNA(Z61),ISNA(AA61),ISNA(AB61),ISNA(AC61)),NA(),CONCATENATE(U61,V61,W61,X61,Y61,Z61,AA61,AB61)) -> 7 | AE61: =IF(ISNA(AD61),FALSE,IF(C61=$B$1,Worksheet!$B$3,IF(C61=$C$1,Worksheet!$B$4,IF(C61=$D$1,Worksheet!$B$5,IF(C61=$E$1,Worksheet!$B$6,IF(C61=$B$2,Worksheet!$B$7,IF(C61=$C$2,Worksheet!$D$3,IF(C61=$D$2,Worksheet!$D$4,IF(C61=$E$2,Worksheet!$D$5,IF(C61=$C$3,Worksheet!$D$6,IF(C61=$B$3,Worksheet!$D$7,FALSE))))))))))) -> TRUE | AF61: =IF(AE61,D61,"") -> Easy | AG61: =IF(AE61,COUNTIF($AF$5:AF61,AF61),"X") -> 22 | AH61: =CONCATENATE(AE61,AF61) -> TRUEEasy
A62: =CONCATENATE(AE62,D62,AG62) -> TRUEMedium25 | B62: =RAND() -> 0.1801413163 | C62: Neg | D62: Medium | E62: 169 | F62: Circle the | G62: =IF(RAND()<0.5,"WARMEST","COLDEST") -> COLDEST | H62: temperature: | I62: =RANDBETWEEN(-5,5) -> -5 | J62: =RANDBETWEEN(-5,5) -> -2 | T62: =CONCATENATE(F62," ",G62," ",H62," ",I62,"°C ",J62,"°C ",K62," ",L62," ",M62," ",N62," ",O62," ",P62," ",Q62," ",R62) -> Circle the COLDEST temperature: -5°C -2°C | U62: =IF(G62="WARMEST",MAX(I62:J62),MIN(I62:J62)) -> -5 | V62: °C | Z62: =IF(I62=J62,NA(),"") ->  | AD62: =IF(OR(ISNA(U62),ISNA(V62),ISNA(W62),ISNA(X62),ISNA(Y62),ISNA(Z62),ISNA(AA62),ISNA(AB62),ISNA(AC62)),NA(),CONCATENATE(U62,V62,W62,X62,Y62,Z62,AA62,AB62)) -> -5°C | AE62: =IF(ISNA(AD62),FALSE,IF(C62=$B$1,Worksheet!$B$3,IF(C62=$C$1,Worksheet!$B$4,IF(C62=$D$1,Worksheet!$B$5,IF(C62=$E$1,Worksheet!$B$6,IF(C62=$B$2,Worksheet!$B$7,IF(C62=$C$2,Worksheet!$D$3,IF(C62=$D$2,Worksheet!$D$4,IF(C62=$E$2,Worksheet!$D$5,IF(C62=$C$3,Worksheet!$D$6,IF(C62=$B$3,Worksheet!$D$7,FALSE))))))))))) -> TRUE | AF62: =IF(AE62,D62,"") -> Medium | AG62: =IF(AE62,COUNTIF($AF$5:AF62,AF62),"X") -> 25 | AH62: =CONCATENATE(AE62,AF62) -> TRUEMedium
A63: =CONCATENATE(AE63,D63,AG63) -> TRUEMedium26 | B63: =RAND() -> 0.8902684618 | C63: +- | D63: Medium | E63: 62 | F63: Add: | G63: =RANDBETWEEN(5,9)*10+RANDBETWEEN(1,9) -> 67 | H63: – | I63: =RANDBETWEEN(2,5)*10 -> 30 | T63: =CONCATENATE(F63," ",G63," ",H63," ",I63," ",J63," ",K63," ",L63," ",M63," ",N63," ",O63," ",P63," ",Q63," ",R63) -> Add: 67 – 30 | U63: =G63-I63 -> 37 | AD63: =IF(OR(ISNA(U63),ISNA(V63),ISNA(W63),ISNA(X63),ISNA(Y63),ISNA(Z63),ISNA(AA63),ISNA(AB63),ISNA(AC63)),NA(),CONCATENATE(U63,V63,W63,X63,Y63,Z63,AA63,AB63)) -> 37 | AE63: =IF(ISNA(AD63),FALSE,IF(C63=$B$1,Worksheet!$B$3,IF(C63=$C$1,Worksheet!$B$4,IF(C63=$D$1,Worksheet!$B$5,IF(C63=$E$1,Worksheet!$B$6,IF(C63=$B$2,Worksheet!$B$7,IF(C63=$C$2,Worksheet!$D$3,IF(C63=$D$2,Worksheet!$D$4,IF(C63=$E$2,Worksheet!$D$5,IF(C63=$C$3,Worksheet!$D$6,IF(C63=$B$3,Worksheet!$D$7,FALSE))))))))))) -> TRUE | AF63: =IF(AE63,D63,"") -> Medium | AG63: =IF(AE63,COUNTIF($AF$5:AF63,AF63),"X") -> 26 | AH63: =CONCATENATE(AE63,AF63) -> TRUEMedium
A64: =CONCATENATE(AE64,D64,AG64) -> TRUEMedium27 | B64: =RAND() -> 0.8224185378 | C64: Mult | D64: Medium | E64: 76 | F64: What is | G64: =RANDBETWEEN(5,9) -> 7 | H64: × | I64: =RANDBETWEEN(2,5) -> 3 | J64: ? | T64: =CONCATENATE(F64," ",G64," ",H64," ",I64," ",J64," ",K64," ",L64," ",M64," ",N64," ",O64," ",P64," ",Q64," ",R64) -> What is 7 × 3 ? | U64: =G64*I64 -> 21 | AD64: =IF(OR(ISNA(U64),ISNA(V64),ISNA(W64),ISNA(X64),ISNA(Y64),ISNA(Z64),ISNA(AA64),ISNA(AB64),ISNA(AC64)),NA(),CONCATENATE(U64,V64,W64,X64,Y64,Z64,AA64,AB64)) -> 21 | AE64: =IF(ISNA(AD64),FALSE,IF(C64=$B$1,Worksheet!$B$3,IF(C64=$C$1,Worksheet!$B$4,IF(C64=$D$1,Worksheet!$B$5,IF(C64=$E$1,Worksheet!$B$6,IF(C64=$B$2,Worksheet!$B$7,IF(C64=$C$2,Worksheet!$D$3,IF(C64=$D$2,Worksheet!$D$4,IF(C64=$E$2,Worksheet!$D$5,IF(C64=$C$3,Worksheet!$D$6,IF(C64=$B$3,Worksheet!$D$7,FALSE))))))))))) -> TRUE | AF64: =IF(AE64,D64,"") -> Medium | AG64: =IF(AE64,COUNTIF($AF$5:AF64,AF64),"X") -> 27 | AH64: =CONCATENATE(AE64,AF64) -> TRUEMedium
A65: =CONCATENATE(AE65,D65,AG65) -> TRUEEasy23 | B65: =RAND() -> 0.1942252015 | C65: Num | D65: Easy | E65: 1 | F65: Write the number " | G65: =CHOOSE(RANDBETWEEN(1,9),"one","two","three","four","five","six","seven","eight","nine") -> four | H65: hundred and | I65: =CHOOSE(RANDBETWEEN(1,9),"one","two","three","four","five","six","seven","eight","nine") -> six | J65: " in figures | T65: =CONCATENATE(F65,"",G65," ",H65," ",I65,"",J65," ",K65," ",L65," ",M65," ",N65," ",O65," ",P65," ",Q65," ",R65) -> Write the number "four hundred and six" in figures | U65: =IF(G65="one",1,IF(G65="two",2,IF(G65="three",3,IF(G65="four",4,IF(G65="five",5,IF(G65="six",6,IF(G65="seven",7,IF(G65="eight",8,9)))))))) -> 4 | V65: 0 | W65: =IF(I65="one",1,IF(I65="two",2,IF(I65="three",3,IF(I65="four",4,IF(I65="five",5,IF(I65="six",6,IF(I65="seven",7,IF(I65="eight",8,9)))))))) -> 6 | AD65: =IF(OR(ISNA(U65),ISNA(V65),ISNA(W65),ISNA(X65),ISNA(Y65),ISNA(Z65),ISNA(AA65),ISNA(AB65),ISNA(AC65)),NA(),CONCATENATE(U65,V65,W65,X65,Y65,Z65,AA65,AB65)) -> 406 | AE65: =IF(ISNA(AD65),FALSE,IF(C65=$B$1,Worksheet!$B$3,IF(C65=$C$1,Worksheet!$B$4,IF(C65=$D$1,Worksheet!$B$5,IF(C65=$E$1,Worksheet!$B$6,IF(C65=$B$2,Worksheet!$B$7,IF(C65=$C$2,Worksheet!$D$3,IF(C65=$D$2,Worksheet!$D$4,IF(C65=$E$2,Worksheet!$D$5,IF(C65=$C$3,Worksheet!$D$6,IF(C65=$B$3,Worksheet!$D$7,FALSE))))))))))) -> TRUE | AF65: =IF(AE65,D65,"") -> Easy | AG65: =IF(AE65,COUNTIF($AF$5:AF65,AF65),"X") -> 23 | AH65: =CONCATENATE(AE65,AF65) -> TRUEEasy
A66: =CONCATENATE(AE66,D66,AG66) -> TRUEEasy24 | B66: =RAND() -> 0.4704451841 | C66: +- | D66: Easy | E66: 46 | F66: Fill in the missing number: | G66: =RANDBETWEEN(1,9)*100 -> 200 | H66: + ____ = | I66: 1000 | T66: =CONCATENATE(F66," ",G66," ",H66," ",I66," ",J66," ",K66," ",L66," ",M66," ",N66," ",O66," ",P66," ",Q66," ",R66) -> Fill in the missing number: 200 + ____ = 1000 | U66: =I66-G66 -> 800 | AD66: =IF(OR(ISNA(U66),ISNA(V66),ISNA(W66),ISNA(X66),ISNA(Y66),ISNA(Z66),ISNA(AA66),ISNA(AB66),ISNA(AC66)),NA(),CONCATENATE(U66,V66,W66,X66,Y66,Z66,AA66,AB66)) -> 800 | AE66: =IF(ISNA(AD66),FALSE,IF(C66=$B$1,Worksheet!$B$3,IF(C66=$C$1,Worksheet!$B$4,IF(C66=$D$1,Worksheet!$B$5,IF(C66=$E$1,Worksheet!$B$6,IF(C66=$B$2,Worksheet!$B$7,IF(C66=$C$2,Worksheet!$D$3,IF(C66=$D$2,Worksheet!$D$4,IF(C66=$E$2,Worksheet!$D$5,IF(C66=$C$3,Worksheet!$D$6,IF(C66=$B$3,Worksheet!$D$7,FALSE))))))))))) -> TRUE | AF66: =IF(AE66,D66,"") -> Easy | AG66: =IF(AE66,COUNTIF($AF$5:AF66,AF66),"X") -> 24 | AH66: =CONCATENATE(AE66,AF66) -> TRUEEasy
A67: =CONCATENATE(AE67,D67,AG67) -> TRUEHard12 | B67: =RAND() -> 0.3581439544 | C67: % | D67: Hard | E67: 154 | F67: What is | G67: 0% | H67: of £ | I67: =RANDBETWEEN(100,1000) -> 689 | J67: ? | T67: =CONCATENATE(F67," ",G67," ",H67,"",I67,"",J67," ",K67," ",L67," ",M67," ",N67," ",O67," ",P67," ",Q67," ",R67) -> What is 0% of £689? | U67: £ | V67: 0 | AD67: =IF(OR(ISNA(U67),ISNA(V67),ISNA(W67),ISNA(X67),ISNA(Y67),ISNA(Z67),ISNA(AA67),ISNA(AB67),ISNA(AC67)),NA(),CONCATENATE(U67,V67,W67,X67,Y67,Z67,AA67,AB67)) -> £0 | AE67: =IF(ISNA(AD67),FALSE,IF(C67=$B$1,Worksheet!$B$3,IF(C67=$C$1,Worksheet!$B$4,IF(C67=$D$1,Worksheet!$B$5,IF(C67=$E$1,Worksheet!$B$6,IF(C67=$B$2,Worksheet!$B$7,IF(C67=$C$2,Worksheet!$D$3,IF(C67=$D$2,Worksheet!$D$4,IF(C67=$E$2,Worksheet!$D$5,IF(C67=$C$3,Worksheet!$D$6,IF(C67=$B$3,Worksheet!$D$7,FALSE))))))))))) -> TRUE | AF67: =IF(AE67,D67,"") -> Hard | AG67: =IF(AE67,COUNTIF($AF$5:AF67,AF67),"X") -> 12 | AH67: =CONCATENATE(AE67,AF67) -> TRUEHard
A68: =CONCATENATE(AE68,D68,AG68) -> TRUEMedium28 | B68: =RAND() -> 0.3246887307 | C68: Num | D68: Medium | E68: 13 | F68: Fill in the missing numbers: | G68: =RANDBETWEEN(11,93)*10+RANDBETWEEN(1,9) -> 399 | H68: =G68+S68 -> 394 | I68: =H68+S68 -> 389 | J68: ____ | K68: ____ | L68: =V68+S68 -> 374 | M68: =L68+S68 -> 369 | S68: =RANDBETWEEN(2,5)*(-1) -> -5 | T68: =CONCATENATE(F68," ",G68,", ",H68,", ",I68,", ",J68,", ",K68,", ",L68,", ",M68," ",N68," ",O68," ",P68," ",Q68," ",R68) -> Fill in the missing numbers: 399, 394, 389, ____, ____, 374, 369 | U68: =I68+S68 -> 384 | V68: =U68+S68 -> 379 | AD68: =IF(OR(ISNA(U68),ISNA(V68),ISNA(W68),ISNA(X68),ISNA(Y68),ISNA(Z68),ISNA(AA68),ISNA(AB68),ISNA(AC68)),NA(),CONCATENATE(U68,", ",V68,W68,X68,Y68,Z68,AA68,AB68)) -> 384, 379 | AE68: =IF(ISNA(AD68),FALSE,IF(C68=$B$1,Worksheet!$B$3,IF(C68=$C$1,Worksheet!$B$4,IF(C68=$D$1,Worksheet!$B$5,IF(C68=$E$1,Worksheet!$B$6,IF(C68=$B$2,Worksheet!$B$7,IF(C68=$C$2,Worksheet!$D$3,IF(C68=$D$2,Worksheet!$D$4,IF(C68=$E$2,Worksheet!$D$5,IF(C68=$C$3,Worksheet!$D$6,IF(C68=$B$3,Worksheet!$D$7,FALSE))))))))))) -> TRUE | AF68: =IF(AE68,D68,"") -> Medium | AG68: =IF(AE68,COUNTIF($AF$5:AF68,AF68),"X") -> 28 | AH68: =CONCATENATE(AE68,AF68) -> TRUEMedium
A69: =CONCATENATE(AE69,D69,AG69) -> TRUEMedium29 | B69: =RAND() -> 0.8884289956 | C69: Choose | D69: Medium | E69: 114 | F69: =RANDBETWEEN(2,5) -> 3 | G69: =CHOOSE(RANDBETWEEN(1,3),"apples","oranges","bananas") -> apples | H69: cost | I69: =U69*F69 -> 9 | J69: p. What does one | K69: =IF(G69="bananas","banana",IF(G69="apples","apple","orange")) -> apple | L69: cost? | T69: =CONCATENATE(F69," ",G69," ",H69," ",I69,"",J69," ",K69," ",L69," ",M69," ",N69," ",O69," ",P69," ",Q69," ",R69) -> 3 apples cost 9p. What does one apple cost? | U69: =RANDBETWEEN(2,10) -> 3 | V69: p | AD69: =IF(OR(ISNA(U69),ISNA(V69),ISNA(W69),ISNA(X69),ISNA(Y69),ISNA(Z69),ISNA(AA69),ISNA(AB69),ISNA(AC69)),NA(),CONCATENATE(U69,V69,W69,X69,Y69,Z69,AA69,AB69)) -> 3p | AE69: =IF(ISNA(AD69),FALSE,IF(C69=$B$1,Worksheet!$B$3,IF(C69=$C$1,Worksheet!$B$4,IF(C69=$D$1,Worksheet!$B$5,IF(C69=$E$1,Worksheet!$B$6,IF(C69=$B$2,Worksheet!$B$7,IF(C69=$C$2,Worksheet!$D$3,IF(C69=$D$2,Worksheet!$D$4,IF(C69=$E$2,Worksheet!$D$5,IF(C69=$C$3,Worksheet!$D$6,IF(C69=$B$3,Worksheet!$D$7,FALSE))))))))))) -> TRUE | AF69: =IF(AE69,D69,"") -> Medium | AG69: =IF(AE69,COUNTIF($AF$5:AF69,AF69),"X") -> 29 | AH69: =CONCATENATE(AE69,AF69) -> TRUEMedium
A70: =CONCATENATE(AE70,D70,AG70) -> TRUEEasy25 | B70: =RAND() -> 0.8930615874 | C70: Choose | D70: Easy | E70: 104 | F70: Out of a class of | G70: =RANDBETWEEN(15,30) -> 15 | H70: pupils, | I70: =RANDBETWEEN(1,5) -> 5 | J70: are off. How many pupils are in class? | T70: =CONCATENATE(F70," ",G70," ",H70," ",I70," ",J70," ",K70," ",L70," ",M70," ",N70," ",O70," ",P70," ",Q70," ",R70) -> Out of a class of 15 pupils, 5 are off. How many pupils are in class? | U70: =G70-I70 -> 10 | AD70: =IF(OR(ISNA(U70),ISNA(V70),ISNA(W70),ISNA(X70),ISNA(Y70),ISNA(Z70),ISNA(AA70),ISNA(AB70),ISNA(AC70)),NA(),CONCATENATE(U70,V70,W70,X70,Y70,Z70,AA70,AB70)) -> 10 | AE70: =IF(ISNA(AD70),FALSE,IF(C70=$B$1,Worksheet!$B$3,IF(C70=$C$1,Worksheet!$B$4,IF(C70=$D$1,Worksheet!$B$5,IF(C70=$E$1,Worksheet!$B$6,IF(C70=$B$2,Worksheet!$B$7,IF(C70=$C$2,Worksheet!$D$3,IF(C70=$D$2,Worksheet!$D$4,IF(C70=$E$2,Worksheet!$D$5,IF(C70=$C$3,Worksheet!$D$6,IF(C70=$B$3,Worksheet!$D$7,FALSE))))))))))) -> TRUE | AF70: =IF(AE70,D70,"") -> Easy | AG70: =IF(AE70,COUNTIF($AF$5:AF70,AF70),"X") -> 25 | AH70: =CONCATENATE(AE70,AF70) -> TRUEEasy
A71: =CONCATENATE(AE71,D71,AG71) -> TRUEMedium30 | B71: =RAND() -> 0.9140209653 | C71: Round | D71: Medium | E71: 163 | F71: Round | G71: =RANDBETWEEN(10,99)*10+RANDBETWEEN(1,9) -> 271 | H71: to the nearest ten | T71: =CONCATENATE(F71," ",G71," ",H71," ",I71," ",J71," ",K71," ",L71," ",M71," ",N71," ",O71," ",P71," ",Q71," ",R71) -> Round 271 to the nearest ten | U71: =MROUND(G71,10) -> 270 | AD71: =IF(OR(ISNA(U71),ISNA(V71),ISNA(W71),ISNA(X71),ISNA(Y71),ISNA(Z71),ISNA(AA71),ISNA(AB71),ISNA(AC71)),NA(),CONCATENATE(U71,V71,W71,X71,Y71,Z71,AA71,AB71)) -> 270 | AE71: =IF(ISNA(AD71),FALSE,IF(C71=$B$1,Worksheet!$B$3,IF(C71=$C$1,Worksheet!$B$4,IF(C71=$D$1,Worksheet!$B$5,IF(C71=$E$1,Worksheet!$B$6,IF(C71=$B$2,Worksheet!$B$7,IF(C71=$C$2,Worksheet!$D$3,IF(C71=$D$2,Worksheet!$D$4,IF(C71=$E$2,Worksheet!$D$5,IF(C71=$C$3,Worksheet!$D$6,IF(C71=$B$3,Worksheet!$D$7,FALSE))))))))))) -> TRUE | AF71: =IF(AE71,D71,"") -> Medium | AG71: =IF(AE71,COUNTIF($AF$5:AF71,AF71),"X") -> 30 | AH71: =CONCATENATE(AE71,AF71) -> TRUEMedium
A72: =CONCATENATE(AE72,D72,AG72) -> TRUEMedium31 | B72: =RAND() -> 0.415156289 | C72: Divide | D72: Medium | E72: 91 | F72: What is half of | G72: =200*RANDBETWEEN(1,5) -> 200 | H72: ? | T72: =CONCATENATE(F72," ",G72,"",H72," ",I72," ",J72," ",K72," ",L72," ",M72," ",N72," ",O72," ",P72," ",Q72," ",R72) -> What is half of 200? | U72: =G72/2 -> 100 | AD72: =IF(OR(ISNA(U72),ISNA(V72),ISNA(W72),ISNA(X72),ISNA(Y72),ISNA(Z72),ISNA(AA72),ISNA(AB72),ISNA(AC72)),NA(),CONCATENATE(U72,V72,W72,X72,Y72,Z72,AA72,AB72)) -> 100 | AE72: =IF(ISNA(AD72),FALSE,IF(C72=$B$1,Worksheet!$B$3,IF(C72=$C$1,Worksheet!$B$4,IF(C72=$D$1,Worksheet!$B$5,IF(C72=$E$1,Worksheet!$B$6,IF(C72=$B$2,Worksheet!$B$7,IF(C72=$C$2,Worksheet!$D$3,IF(C72=$D$2,Worksheet!$D$4,IF(C72=$E$2,Worksheet!$D$5,IF(C72=$C$3,Worksheet!$D$6,IF(C72=$B$3,Worksheet!$D$7,FALSE))))))))))) -> TRUE | AF72: =IF(AE72,D72,"") -> Medium | AG72: =IF(AE72,COUNTIF($AF$5:AF72,AF72),"X") -> 31 | AH72: =CONCATENATE(AE72,AF72) -> TRUEMedium
A73: =CONCATENATE(AE73,D73,AG73) -> TRUEMedium32 | B73: =RAND() -> 0.6358950314 | C73: Divide | D73: Medium | E73: 96 | F73: Divide: | G73: =5*RANDBETWEEN(1,10) -> 45 | H73: ÷ | I73: 5 | T73: =CONCATENATE(F73," ",G73," ",H73," ",I73," ",J73," ",K73," ",L73," ",M73," ",N73," ",O73," ",P73," ",Q73," ",R73) -> Divide: 45 ÷ 5 | U73: =G73/I73 -> 9 | AD73: =IF(OR(ISNA(U73),ISNA(V73),ISNA(W73),ISNA(X73),ISNA(Y73),ISNA(Z73),ISNA(AA73),ISNA(AB73),ISNA(AC73)),NA(),CONCATENATE(U73,V73,W73,X73,Y73,Z73,AA73,AB73)) -> 9 | AE73: =IF(ISNA(AD73),FALSE,IF(C73=$B$1,Worksheet!$B$3,IF(C73=$C$1,Worksheet!$B$4,IF(C73=$D$1,Worksheet!$B$5,IF(C73=$E$1,Worksheet!$B$6,IF(C73=$B$2,Worksheet!$B$7,IF(C73=$C$2,Worksheet!$D$3,IF(C73=$D$2,Worksheet!$D$4,IF(C73=$E$2,Worksheet!$D$5,IF(C73=$C$3,Worksheet!$D$6,IF(C73=$B$3,Worksheet!$D$7,FALSE))))))))))) -> TRUE | AF73: =IF(AE73,D73,"") -> Medium | AG73: =IF(AE73,COUNTIF($AF$5:AF73,AF73),"X") -> 32 | AH73: =CONCATENATE(AE73,AF73) -> TRUEMedium
A74: =CONCATENATE(AE74,D74,AG74) -> TRUEMedium33 | B74: =RAND() -> 0.09910171567 | C74: Dec | D74: Medium | E74: 139 | F74: How many pence are there in £ | G74: =TEXT(RANDBETWEEN(1,9)+RANDBETWEEN(1,99)/100,"#.00") -> 6.45 | H74: ? | T74: =CONCATENATE(F74,"",G74,"",H74," ",I74," ",J74," ",K74," ",L74," ",M74," ",N74," ",O74," ",P74," ",Q74," ",R74) -> How many pence are there in £6.45? | U74: =G74*100 -> 645 | V74: p | AD74: =IF(OR(ISNA(U74),ISNA(V74),ISNA(W74),ISNA(X74),ISNA(Y74),ISNA(Z74),ISNA(AA74),ISNA(AB74),ISNA(AC74)),NA(),CONCATENATE(U74,V74,W74,X74,Y74,Z74,AA74,AB74)) -> 645p | AE74: =IF(ISNA(AD74),FALSE,IF(C74=$B$1,Worksheet!$B$3,IF(C74=$C$1,Worksheet!$B$4,IF(C74=$D$1,Worksheet!$B$5,IF(C74=$E$1,Worksheet!$B$6,IF(C74=$B$2,Worksheet!$B$7,IF(C74=$C$2,Worksheet!$D$3,IF(C74=$D$2,Worksheet!$D$4,IF(C74=$E$2,Worksheet!$D$5,IF(C74=$C$3,Worksheet!$D$6,IF(C74=$B$3,Worksheet!$D$7,FALSE))))))))))) -> TRUE | AF74: =IF(AE74,D74,"") -> Medium | AG74: =IF(AE74,COUNTIF($AF$5:AF74,AF74),"X") -> 33 | AH74: =CONCATENATE(AE74,AF74) -> TRUEMedium
A75: =CONCATENATE(AE75,D75,AG75) -> TRUEMedium34 | B75: =RAND() -> 0.6931605418 | C75: +- | D75: Medium | E75: 57 | F75: Add: | G75: =RANDBETWEEN(2,5)*10 -> 30 | H75: + | I75: =RANDBETWEEN(1,5)*10+RANDBETWEEN(1,9) -> 15 | T75: =CONCATENATE(F75," ",G75," ",H75," ",I75," ",J75," ",K75," ",L75," ",M75," ",N75," ",O75," ",P75," ",Q75," ",R75) -> Add: 30 + 15 | U75: =G75+I75 -> 45 | AD75: =IF(OR(ISNA(U75),ISNA(V75),ISNA(W75),ISNA(X75),ISNA(Y75),ISNA(Z75),ISNA(AA75),ISNA(AB75),ISNA(AC75)),NA(),CONCATENATE(U75,V75,W75,X75,Y75,Z75,AA75,AB75)) -> 45 | AE75: =IF(ISNA(AD75),FALSE,IF(C75=$B$1,Worksheet!$B$3,IF(C75=$C$1,Worksheet!$B$4,IF(C75=$D$1,Worksheet!$B$5,IF(C75=$E$1,Worksheet!$B$6,IF(C75=$B$2,Worksheet!$B$7,IF(C75=$C$2,Worksheet!$D$3,IF(C75=$D$2,Worksheet!$D$4,IF(C75=$E$2,Worksheet!$D$5,IF(C75=$C$3,Worksheet!$D$6,IF(C75=$B$3,Worksheet!$D$7,FALSE))))))))))) -> TRUE | AF75: =IF(AE75,D75,"") -> Medium | AG75: =IF(AE75,COUNTIF($AF$5:AF75,AF75),"X") -> 34 | AH75: =CONCATENATE(AE75,AF75) -> TRUEMedium
A76: =CONCATENATE(AE76,D76,AG76) -> TRUEMedium35 | B76: =RAND() -> 0.5725801591 | C76: Num | D76: Medium | E76: 4 | F76: Write the number " | G76: =CHOOSE(RANDBETWEEN(1,9),"one","two","three","four","five","six","seven","eight","nine") -> one | H76: thousand, | I76: =CHOOSE(RANDBETWEEN(1,9),"one","two","three","four","five","six","seven","eight","nine") -> five | J76: hundred and | L76: =CHOOSE(RANDBETWEEN(1,9),"one","two","three","four","five","six","seven","eight","nine") -> three | M76: " in figures | T76: =CONCATENATE(F76,"",G76," ",H76," ",I76," ",J76," ",K76," ",L76,"",M76," ",N76," ",O76," ",P76," ",Q76," ",R76) -> Write the number "one thousand, five hundred and three" in figures | U76: =IF(G76="one",1,IF(G76="two",2,IF(G76="three",3,IF(G76="four",4,IF(G76="five",5,IF(G76="six",6,IF(G76="seven",7,IF(G76="eight",8,9)))))))) -> 1 | V76: =IF(I76="one",1,IF(I76="two",2,IF(I76="three",3,IF(I76="four",4,IF(I76="five",5,IF(I76="six",6,IF(I76="seven",7,IF(I76="eight",8,9)))))))) -> 5 | W76: 0 | X76: =IF(S76<>1,IF(L76="one",1,IF(L76="two",2,IF(L76="three",3,IF(L76="four",4,IF(L76="five",5,IF(L76="six",6,IF(L76="seven",7,IF(L76="eight",8,9)))))))),"") -> 3 | AD76: =IF(OR(ISNA(U76),ISNA(V76),ISNA(W76),ISNA(X76),ISNA(Y76),ISNA(Z76),ISNA(AA76),ISNA(AB76),ISNA(AC76)),NA(),TEXT(CONCATENATE(U76,V76,W76,X76,Y76,Z76,AA76,AB76),"#,###")) -> 1,503 | AE76: =IF(ISNA(AD76),FALSE,IF(C76=$B$1,Worksheet!$B$3,IF(C76=$C$1,Worksheet!$B$4,IF(C76=$D$1,Worksheet!$B$5,IF(C76=$E$1,Worksheet!$B$6,IF(C76=$B$2,Worksheet!$B$7,IF(C76=$C$2,Worksheet!$D$3,IF(C76=$D$2,Worksheet!$D$4,IF(C76=$E$2,Worksheet!$D$5,IF(C76=$C$3,Worksheet!$D$6,IF(C76=$B$3,Worksheet!$D$7,FALSE))))))))))) -> TRUE | AF76: =IF(AE76,D76,"") -> Medium | AG76: =IF(AE76,COUNTIF($AF$5:AF76,AF76),"X") -> 35 | AH76: =CONCATENATE(AE76,AF76) -> TRUEMedium
A77: =CONCATENATE(AE77,D77,AG77) -> TRUEEasy26 | B77: =RAND() -> 0.484051621 | C77: Frac | D77: Easy | E77: 118 | F77: Fractions. What is | G77: 1/2 | H77: of | I77: =2*RANDBETWEEN(2,5) -> 6 | J77: ? | T77: =CONCATENATE(F77," ",G77," ",H77," ",I77," ",J77," ",K77," ",L77," ",M77," ",N77," ",O77," ",P77," ",Q77," ",R77) -> Fractions. What is 1/2 of 6 ? | U77: =I77/2 -> 3 | AD77: =IF(OR(ISNA(U77),ISNA(V77),ISNA(W77),ISNA(X77),ISNA(Y77),ISNA(Z77),ISNA(AA77),ISNA(AB77),ISNA(AC77)),NA(),CONCATENATE(U77,V77,W77,X77,Y77,Z77,AA77,AB77)) -> 3 | AE77: =IF(ISNA(AD77),FALSE,IF(C77=$B$1,Worksheet!$B$3,IF(C77=$C$1,Worksheet!$B$4,IF(C77=$D$1,Worksheet!$B$5,IF(C77=$E$1,Worksheet!$B$6,IF(C77=$B$2,Worksheet!$B$7,IF(C77=$C$2,Worksheet!$D$3,IF(C77=$D$2,Worksheet!$D$4,IF(C77=$E$2,Worksheet!$D$5,IF(C77=$C$3,Worksheet!$D$6,IF(C77=$B$3,Worksheet!$D$7,FALSE))))))))))) -> TRUE | AF77: =IF(AE77,D77,"") -> Easy | AG77: =IF(AE77,COUNTIF($AF$5:AF77,AF77),"X") -> 26 | AH77: =CONCATENATE(AE77,AF77) -> TRUEEasy
A78: =CONCATENATE(AE78,D78,AG78) -> TRUEEasy27 | B78: =RAND() -> 0.8547588071 | C78: Round | D78: Easy | E78: 162 | F78: Round | G78: =RANDBETWEEN(1,9)*10+RANDBETWEEN(1,9) -> 52 | H78: to the nearest ten | T78: =CONCATENATE(F78," ",G78," ",H78," ",I78," ",J78," ",K78," ",L78," ",M78," ",N78," ",O78," ",P78," ",Q78," ",R78) -> Round 52 to the nearest ten | U78: =MROUND(G78,10) -> 50 | AD78: =IF(OR(ISNA(U78),ISNA(V78),ISNA(W78),ISNA(X78),ISNA(Y78),ISNA(Z78),ISNA(AA78),ISNA(AB78),ISNA(AC78)),NA(),CONCATENATE(U78,V78,W78,X78,Y78,Z78,AA78,AB78)) -> 50 | AE78: =IF(ISNA(AD78),FALSE,IF(C78=$B$1,Worksheet!$B$3,IF(C78=$C$1,Worksheet!$B$4,IF(C78=$D$1,Worksheet!$B$5,IF(C78=$E$1,Worksheet!$B$6,IF(C78=$B$2,Worksheet!$B$7,IF(C78=$C$2,Worksheet!$D$3,IF(C78=$D$2,Worksheet!$D$4,IF(C78=$E$2,Worksheet!$D$5,IF(C78=$C$3,Worksheet!$D$6,IF(C78=$B$3,Worksheet!$D$7,FALSE))))))))))) -> TRUE | AF78: =IF(AE78,D78,"") -> Easy | AG78: =IF(AE78,COUNTIF($AF$5:AF78,AF78),"X") -> 27 | AH78: =CONCATENATE(AE78,AF78) -> TRUEEasy
A79: =CONCATENATE(AE79,D79,AG79) -> TRUEEasy28 | B79: =RAND() -> 0.6322665417 | C79: Choose | D79: Easy | E79: 112 | F79: One | G79: =CHOOSE(RANDBETWEEN(1,3),"sweet","pencil","rubber") -> rubber | H79: costs | I79: =RANDBETWEEN(2,5) -> 4 | J79: p. How much do | K79: =RANDBETWEEN(2,10) -> 4 | L79: =CONCATENATE(G79,"s") -> rubbers | M79: cost? | T79: =CONCATENATE(F79," ",G79," ",H79," ",I79,"",J79," ",K79," ",L79," ",M79," ",N79," ",O79," ",P79," ",Q79," ",R79) -> One rubber costs 4p. How much do 4 rubbers cost? | U79: =I79*K79 -> 16 | V79: p | AD79: =IF(OR(ISNA(U79),ISNA(V79),ISNA(W79),ISNA(X79),ISNA(Y79),ISNA(Z79),ISNA(AA79),ISNA(AB79),ISNA(AC79)),NA(),CONCATENATE(U79,V79,W79,X79,Y79,Z79,AA79,AB79)) -> 16p | AE79: =IF(ISNA(AD79),FALSE,IF(C79=$B$1,Worksheet!$B$3,IF(C79=$C$1,Worksheet!$B$4,IF(C79=$D$1,Worksheet!$B$5,IF(C79=$E$1,Worksheet!$B$6,IF(C79=$B$2,Worksheet!$B$7,IF(C79=$C$2,Worksheet!$D$3,IF(C79=$D$2,Worksheet!$D$4,IF(C79=$E$2,Worksheet!$D$5,IF(C79=$C$3,Worksheet!$D$6,IF(C79=$B$3,Worksheet!$D$7,FALSE))))))))))) -> TRUE | AF79: =IF(AE79,D79,"") -> Easy | AG79: =IF(AE79,COUNTIF($AF$5:AF79,AF79),"X") -> 28 | AH79: =CONCATENATE(AE79,AF79) -> TRUEEasy
A80: =CONCATENATE(AE80,D80,AG80) -> TRUEMedium36 | B80: =RAND() -> 0.2034979187 | C80: Num | D80: Medium | E80: 11 | F80: Fill in the missing numbers: | G80: =RANDBETWEEN(11,95)*10+RANDBETWEEN(1,9) -> 451 | H80: =G80+S80 -> 461 | I80: =H80+S80 -> 471 | J80: ____ | K80: ____ | L80: =V80+S80 -> 501 | M80: =L80+S80 -> 511 | S80: 10 | T80: =CONCATENATE(F80," ",G80,", ",H80,", ",I80,", ",J80,", ",K80,", ",L80,", ",M80," ",N80," ",O80," ",P80," ",Q80," ",R80) -> Fill in the missing numbers: 451, 461, 471, ____, ____, 501, 511 | U80: =I80+S80 -> 481 | V80: =U80+S80 -> 491 | AD80: =IF(OR(ISNA(U80),ISNA(V80),ISNA(W80),ISNA(X80),ISNA(Y80),ISNA(Z80),ISNA(AA80),ISNA(AB80),ISNA(AC80)),NA(),CONCATENATE(U80,", ",V80,W80,X80,Y80,Z80,AA80,AB80)) -> 481, 491 | AE80: =IF(ISNA(AD80),FALSE,IF(C80=$B$1,Worksheet!$B$3,IF(C80=$C$1,Worksheet!$B$4,IF(C80=$D$1,Worksheet!$B$5,IF(C80=$E$1,Worksheet!$B$6,IF(C80=$B$2,Worksheet!$B$7,IF(C80=$C$2,Worksheet!$D$3,IF(C80=$D$2,Worksheet!$D$4,IF(C80=$E$2,Worksheet!$D$5,IF(C80=$C$3,Worksheet!$D$6,IF(C80=$B$3,Worksheet!$D$7,FALSE))))))))))) -> TRUE | AF80: =IF(AE80,D80,"") -> Medium | AG80: =IF(AE80,COUNTIF($AF$5:AF80,AF80),"X") -> 36 | AH80: =CONCATENATE(AE80,AF80) -> TRUEMedium
A81: =CONCATENATE(AE81,D81,AG81) -> TRUEEasy29 | B81: =RAND() -> 0.8614677703 | C81: Dec | D81: Easy | E81: 137 | F81: How many pence are there in £ | G81: =RANDBETWEEN(1,9) -> 1 | H81: ? | T81: =CONCATENATE(F81,"",G81,"",H81," ",I81," ",J81," ",K81," ",L81," ",M81," ",N81," ",O81," ",P81," ",Q81," ",R81) -> How many pence are there in £1? | U81: =G81*100 -> 100 | V81: p | AD81: =IF(OR(ISNA(U81),ISNA(V81),ISNA(W81),ISNA(X81),ISNA(Y81),ISNA(Z81),ISNA(AA81),ISNA(AB81),ISNA(AC81)),NA(),CONCATENATE(U81,V81,W81,X81,Y81,Z81,AA81,AB81)) -> 100p | AE81: =IF(ISNA(AD81),FALSE,IF(C81=$B$1,Worksheet!$B$3,IF(C81=$C$1,Worksheet!$B$4,IF(C81=$D$1,Worksheet!$B$5,IF(C81=$E$1,Worksheet!$B$6,IF(C81=$B$2,Worksheet!$B$7,IF(C81=$C$2,Worksheet!$D$3,IF(C81=$D$2,Worksheet!$D$4,IF(C81=$E$2,Worksheet!$D$5,IF(C81=$C$3,Worksheet!$D$6,IF(C81=$B$3,Worksheet!$D$7,FALSE))))))))))) -> TRUE | AF81: =IF(AE81,D81,"") -> Easy | AG81: =IF(AE81,COUNTIF($AF$5:AF81,AF81),"X") -> 29 | AH81: =CONCATENATE(AE81,AF81) -> TRUEEasy
A82: =CONCATENATE(AE82,D82,AG82) -> TRUEMedium37 | B82: =RAND() -> 0.85370861 | C82: +- | D82: Medium | E82: 56 | F82: Add: | G82: =RANDBETWEEN(1,5)*10+RANDBETWEEN(1,9) -> 42 | H82: + | I82: =RANDBETWEEN(2,5)*10 -> 50 | T82: =CONCATENATE(F82," ",G82," ",H82," ",I82," ",J82," ",K82," ",L82," ",M82," ",N82," ",O82," ",P82," ",Q82," ",R82) -> Add: 42 + 50 | U82: =G82+I82 -> 92 | AD82: =IF(OR(ISNA(U82),ISNA(V82),ISNA(W82),ISNA(X82),ISNA(Y82),ISNA(Z82),ISNA(AA82),ISNA(AB82),ISNA(AC82)),NA(),CONCATENATE(U82,V82,W82,X82,Y82,Z82,AA82,AB82)) -> 92 | AE82: =IF(ISNA(AD82),FALSE,IF(C82=$B$1,Worksheet!$B$3,IF(C82=$C$1,Worksheet!$B$4,IF(C82=$D$1,Worksheet!$B$5,IF(C82=$E$1,Worksheet!$B$6,IF(C82=$B$2,Worksheet!$B$7,IF(C82=$C$2,Worksheet!$D$3,IF(C82=$D$2,Worksheet!$D$4,IF(C82=$E$2,Worksheet!$D$5,IF(C82=$C$3,Worksheet!$D$6,IF(C82=$B$3,Worksheet!$D$7,FALSE))))))))))) -> TRUE | AF82: =IF(AE82,D82,"") -> Medium | AG82: =IF(AE82,COUNTIF($AF$5:AF82,AF82),"X") -> 37 | AH82: =CONCATENATE(AE82,AF82) -> TRUEMedium
A83: =CONCATENATE(AE83,D83,AG83) -> TRUEMedium38 | B83: =RAND() -> 0.7439833526 | C83: Divide | D83: Medium | E83: 94 | F83: Divide: | G83: =3*RANDBETWEEN(1,10) -> 24 | H83: ÷ | I83: 3 | T83: =CONCATENATE(F83," ",G83," ",H83," ",I83," ",J83," ",K83," ",L83," ",M83," ",N83," ",O83," ",P83," ",Q83," ",R83) -> Divide: 24 ÷ 3 | U83: =G83/I83 -> 8 | AD83: =IF(OR(ISNA(U83),ISNA(V83),ISNA(W83),ISNA(X83),ISNA(Y83),ISNA(Z83),ISNA(AA83),ISNA(AB83),ISNA(AC83)),NA(),CONCATENATE(U83,V83,W83,X83,Y83,Z83,AA83,AB83)) -> 8 | AE83: =IF(ISNA(AD83),FALSE,IF(C83=$B$1,Worksheet!$B$3,IF(C83=$C$1,Worksheet!$B$4,IF(C83=$D$1,Worksheet!$B$5,IF(C83=$E$1,Worksheet!$B$6,IF(C83=$B$2,Worksheet!$B$7,IF(C83=$C$2,Worksheet!$D$3,IF(C83=$D$2,Worksheet!$D$4,IF(C83=$E$2,Worksheet!$D$5,IF(C83=$C$3,Worksheet!$D$6,IF(C83=$B$3,Worksheet!$D$7,FALSE))))))))))) -> TRUE | AF83: =IF(AE83,D83,"") -> Medium | AG83: =IF(AE83,COUNTIF($AF$5:AF83,AF83),"X") -> 38 | AH83: =CONCATENATE(AE83,AF83) -> TRUEMedium
A84: =CONCATENATE(AE84,D84,AG84) -> TRUEMedium39 | B84: =RAND() -> 0.1665324828 | C84: Divide | D84: Medium | E84: 97 | F84: Divide: | G84: =10*RANDBETWEEN(1,10) -> 80 | H84: ÷ | I84: 10 | T84: =CONCATENATE(F84," ",G84," ",H84," ",I84," ",J84," ",K84," ",L84," ",M84," ",N84," ",O84," ",P84," ",Q84," ",R84) -> Divide: 80 ÷ 10 | U84: =G84/I84 -> 8 | AD84: =IF(OR(ISNA(U84),ISNA(V84),ISNA(W84),ISNA(X84),ISNA(Y84),ISNA(Z84),ISNA(AA84),ISNA(AB84),ISNA(AC84)),NA(),CONCATENATE(U84,V84,W84,X84,Y84,Z84,AA84,AB84)) -> 8 | AE84: =IF(ISNA(AD84),FALSE,IF(C84=$B$1,Worksheet!$B$3,IF(C84=$C$1,Worksheet!$B$4,IF(C84=$D$1,Worksheet!$B$5,IF(C84=$E$1,Worksheet!$B$6,IF(C84=$B$2,Worksheet!$B$7,IF(C84=$C$2,Worksheet!$D$3,IF(C84=$D$2,Worksheet!$D$4,IF(C84=$E$2,Worksheet!$D$5,IF(C84=$C$3,Worksheet!$D$6,IF(C84=$B$3,Worksheet!$D$7,FALSE))))))))))) -> TRUE | AF84: =IF(AE84,D84,"") -> Medium | AG84: =IF(AE84,COUNTIF($AF$5:AF84,AF84),"X") -> 39 | AH84: =CONCATENATE(AE84,AF84) -> TRUEMedium
A85: =CONCATENATE(AE85,D85,AG85) -> TRUEMedium40 | B85: =RAND() -> 0.9897575252 | C85: Num | D85: Medium | E85: 12 | F85: Fill in the missing numbers: | G85: =RANDBETWEEN(11,95)*10+RANDBETWEEN(1,9) -> 721 | H85: =G85+S85 -> 711 | I85: =H85+S85 -> 701 | J85: ____ | K85: ____ | L85: =V85+S85 -> 671 | M85: =L85+S85 -> 661 | S85: -10 | T85: =CONCATENATE(F85," ",G85,", ",H85,", ",I85,", ",J85,", ",K85,", ",L85,", ",M85," ",N85," ",O85," ",P85," ",Q85," ",R85) -> Fill in the missing numbers: 721, 711, 701, ____, ____, 671, 661 | U85: =I85+S85 -> 691 | V85: =U85+S85 -> 681 | AD85: =IF(OR(ISNA(U85),ISNA(V85),ISNA(W85),ISNA(X85),ISNA(Y85),ISNA(Z85),ISNA(AA85),ISNA(AB85),ISNA(AC85)),NA(),CONCATENATE(U85,", ",V85,W85,X85,Y85,Z85,AA85,AB85)) -> 691, 681 | AE85: =IF(ISNA(AD85),FALSE,IF(C85=$B$1,Worksheet!$B$3,IF(C85=$C$1,Worksheet!$B$4,IF(C85=$D$1,Worksheet!$B$5,IF(C85=$E$1,Worksheet!$B$6,IF(C85=$B$2,Worksheet!$B$7,IF(C85=$C$2,Worksheet!$D$3,IF(C85=$D$2,Worksheet!$D$4,IF(C85=$E$2,Worksheet!$D$5,IF(C85=$C$3,Worksheet!$D$6,IF(C85=$B$3,Worksheet!$D$7,FALSE))))))))))) -> TRUE | AF85: =IF(AE85,D85,"") -> Medium | AG85: =IF(AE85,COUNTIF($AF$5:AF85,AF85),"X") -> 40 | AH85: =CONCATENATE(AE85,AF85) -> TRUEMedium
A86: =CONCATENATE(AE86,D86,AG86) -> TRUEEasy30 | B86: =RAND() -> 0.4253725682 | C86: +- | D86: Easy | E86: 45 | F86: Fill in the missing number: | G86: ____ + | H86: =RANDBETWEEN(1,8)*10+RANDBETWEEN(1,9) -> 81 | I86: = | J86: =INT(H86/10)*10+10 -> 90 | T86: =CONCATENATE(F86," ",G86," ",H86," ",I86," ",J86," ",K86," ",L86," ",M86," ",N86," ",O86," ",P86," ",Q86," ",R86) -> Fill in the missing number: ____ + 81 = 90 | U86: =J86-H86 -> 9 | AD86: =IF(OR(ISNA(U86),ISNA(V86),ISNA(W86),ISNA(X86),ISNA(Y86),ISNA(Z86),ISNA(AA86),ISNA(AB86),ISNA(AC86)),NA(),CONCATENATE(U86,V86,W86,X86,Y86,Z86,AA86,AB86)) -> 9 | AE86: =IF(ISNA(AD86),FALSE,IF(C86=$B$1,Worksheet!$B$3,IF(C86=$C$1,Worksheet!$B$4,IF(C86=$D$1,Worksheet!$B$5,IF(C86=$E$1,Worksheet!$B$6,IF(C86=$B$2,Worksheet!$B$7,IF(C86=$C$2,Worksheet!$D$3,IF(C86=$D$2,Worksheet!$D$4,IF(C86=$E$2,Worksheet!$D$5,IF(C86=$C$3,Worksheet!$D$6,IF(C86=$B$3,Worksheet!$D$7,FALSE))))))))))) -> TRUE | AF86: =IF(AE86,D86,"") -> Easy | AG86: =IF(AE86,COUNTIF($AF$5:AF86,AF86),"X") -> 30 | AH86: =CONCATENATE(AE86,AF86) -> TRUEEasy
A87: =CONCATENATE(AE87,D87,AG87) -> TRUEEasy31 | B87: =RAND() -> 0.3783703931 | C87: % | D87: Easy | E87: 148 | F87: What does 0% mean? | T87: =CONCATENATE(F87," ",G87," ",H87," ",I87," ",J87," ",K87," ",L87," ",M87," ",N87," ",O87," ",P87," ",Q87," ",R87) -> What does 0% mean? | U87: none | AD87: =IF(OR(ISNA(U87),ISNA(V87),ISNA(W87),ISNA(X87),ISNA(Y87),ISNA(Z87),ISNA(AA87),ISNA(AB87),ISNA(AC87)),NA(),CONCATENATE(U87,V87,W87,X87,Y87,Z87,AA87,AB87)) -> none | AE87: =IF(ISNA(AD87),FALSE,IF(C87=$B$1,Worksheet!$B$3,IF(C87=$C$1,Worksheet!$B$4,IF(C87=$D$1,Worksheet!$B$5,IF(C87=$E$1,Worksheet!$B$6,IF(C87=$B$2,Worksheet!$B$7,IF(C87=$C$2,Worksheet!$D$3,IF(C87=$D$2,Worksheet!$D$4,IF(C87=$E$2,Worksheet!$D$5,IF(C87=$C$3,Worksheet!$D$6,IF(C87=$B$3,Worksheet!$D$7,FALSE))))))))))) -> TRUE | AF87: =IF(AE87,D87,"") -> Easy | AG87: =IF(AE87,COUNTIF($AF$5:AF87,AF87),"X") -> 31 | AH87: =CONCATENATE(AE87,AF87) -> TRUEEasy
A88: =CONCATENATE(AE88,D88,AG88) -> TRUEEasy32 | B88: =RAND() -> 0.6480364023 | C88: Num | D88: Easy | E88: 173 | F88: What is the number before | G88: =RANDBETWEEN(2,10)*100 -> 200 | H88: ? | T88: =CONCATENATE(F88," ",G88,"",H88," ",I88," ",J88," ",K88," ",L88," ",M88," ",N88," ",O88," ",P88," ",Q88," ",R88) -> What is the number before 200? | U88: =G88-1 -> 199 | AD88: =IF(OR(ISNA(U88),ISNA(V88),ISNA(W88),ISNA(X88),ISNA(Y88),ISNA(Z88),ISNA(AA88),ISNA(AB88),ISNA(AC88)),NA(),CONCATENATE(U88,V88,W88,X88,Y88,Z88,AA88,AB88)) -> 199 | AE88: =IF(ISNA(AD88),FALSE,IF(C88=$B$1,Worksheet!$B$3,IF(C88=$C$1,Worksheet!$B$4,IF(C88=$D$1,Worksheet!$B$5,IF(C88=$E$1,Worksheet!$B$6,IF(C88=$B$2,Worksheet!$B$7,IF(C88=$C$2,Worksheet!$D$3,IF(C88=$D$2,Worksheet!$D$4,IF(C88=$E$2,Worksheet!$D$5,IF(C88=$C$3,Worksheet!$D$6,IF(C88=$B$3,Worksheet!$D$7,FALSE))))))))))) -> TRUE | AF88: =IF(AE88,D88,"") -> Easy | AG88: =IF(AE88,COUNTIF($AF$5:AF88,AF88),"X") -> 32 | AH88: =CONCATENATE(AE88,AF88) -> TRUEEasy
A89: =CONCATENATE(AE89,D89,AG89) -> TRUEEasy33 | B89: =RAND() -> 0.6744043815 | C89: Num | D89: Easy | E89: 14 | F89: Fill in the missing numbers: | G89: =RANDBETWEEN(1,3)*100 -> 300 | H89: =G89+S89 -> 400 | I89: =H89+S89 -> 500 | J89: ____ | K89: ____ | L89: =V89+S89 -> 800 | M89: =L89+S89 -> 900 | S89: 100 | T89: =CONCATENATE(F89," ",G89,", ",H89,", ",I89,", ",J89,", ",K89,", ",L89,", ",M89," ",N89," ",O89," ",P89," ",Q89," ",R89) -> Fill in the missing numbers: 300, 400, 500, ____, ____, 800, 900 | U89: =I89+S89 -> 600 | V89: =U89+S89 -> 700 | AD89: =IF(OR(ISNA(U89),ISNA(V89),ISNA(W89),ISNA(X89),ISNA(Y89),ISNA(Z89),ISNA(AA89),ISNA(AB89),ISNA(AC89)),NA(),CONCATENATE(U89,", ",V89,W89,X89,Y89,Z89,AA89,AB89)) -> 600, 700 | AE89: =IF(ISNA(AD89),FALSE,IF(C89=$B$1,Worksheet!$B$3,IF(C89=$C$1,Worksheet!$B$4,IF(C89=$D$1,Worksheet!$B$5,IF(C89=$E$1,Worksheet!$B$6,IF(C89=$B$2,Worksheet!$B$7,IF(C89=$C$2,Worksheet!$D$3,IF(C89=$D$2,Worksheet!$D$4,IF(C89=$E$2,Worksheet!$D$5,IF(C89=$C$3,Worksheet!$D$6,IF(C89=$B$3,Worksheet!$D$7,FALSE))))))))))) -> TRUE | AF89: =IF(AE89,D89,"") -> Easy | AG89: =IF(AE89,COUNTIF($AF$5:AF89,AF89),"X") -> 33 | AH89: =CONCATENATE(AE89,AF89) -> TRUEEasy
A90: =CONCATENATE(AE90,D90,AG90) -> TRUEEasy34 | B90: =RAND() -> 0.6316130484 | C90: Mult | D90: Easy | E90: 75 | F90: What is | G90: =RANDBETWEEN(2,5) -> 4 | H90: × | I90: =RANDBETWEEN(2,5) -> 4 | J90: ? | T90: =CONCATENATE(F90," ",G90," ",H90," ",I90," ",J90," ",K90," ",L90," ",M90," ",N90," ",O90," ",P90," ",Q90," ",R90) -> What is 4 × 4 ? | U90: =G90*I90 -> 16 | AD90: =IF(OR(ISNA(U90),ISNA(V90),ISNA(W90),ISNA(X90),ISNA(Y90),ISNA(Z90),ISNA(AA90),ISNA(AB90),ISNA(AC90)),NA(),CONCATENATE(U90,V90,W90,X90,Y90,Z90,AA90,AB90)) -> 16 | AE90: =IF(ISNA(AD90),FALSE,IF(C90=$B$1,Worksheet!$B$3,IF(C90=$C$1,Worksheet!$B$4,IF(C90=$D$1,Worksheet!$B$5,IF(C90=$E$1,Worksheet!$B$6,IF(C90=$B$2,Worksheet!$B$7,IF(C90=$C$2,Worksheet!$D$3,IF(C90=$D$2,Worksheet!$D$4,IF(C90=$E$2,Worksheet!$D$5,IF(C90=$C$3,Worksheet!$D$6,IF(C90=$B$3,Worksheet!$D$7,FALSE))))))))))) -> TRUE | AF90: =IF(AE90,D90,"") -> Easy | AG90: =IF(AE90,COUNTIF($AF$5:AF90,AF90),"X") -> 34 | AH90: =CONCATENATE(AE90,AF90) -> TRUEEasy
A91: =CONCATENATE(AE91,D91,AG91) -> TRUEMedium41 | B91: =RAND() -> 0.9294142147 | C91: +- | D91: Medium | E91: 60 | F91: Add: | G91: =RANDBETWEEN(2,8)*10+RANDBETWEEN(5,9) -> 85 | H91: + | I91: =RANDBETWEEN(5,9) -> 7 | T91: =CONCATENATE(F91," ",G91," ",H91," ",I91," ",J91," ",K91," ",L91," ",M91," ",N91," ",O91," ",P91," ",Q91," ",R91) -> Add: 85 + 7 | U91: =G91+I91 -> 92 | AD91: =IF(OR(ISNA(U91),ISNA(V91),ISNA(W91),ISNA(X91),ISNA(Y91),ISNA(Z91),ISNA(AA91),ISNA(AB91),ISNA(AC91)),NA(),CONCATENATE(U91,V91,W91,X91,Y91,Z91,AA91,AB91)) -> 92 | AE91: =IF(ISNA(AD91),FALSE,IF(C91=$B$1,Worksheet!$B$3,IF(C91=$C$1,Worksheet!$B$4,IF(C91=$D$1,Worksheet!$B$5,IF(C91=$E$1,Worksheet!$B$6,IF(C91=$B$2,Worksheet!$B$7,IF(C91=$C$2,Worksheet!$D$3,IF(C91=$D$2,Worksheet!$D$4,IF(C91=$E$2,Worksheet!$D$5,IF(C91=$C$3,Worksheet!$D$6,IF(C91=$B$3,Worksheet!$D$7,FALSE))))))))))) -> TRUE | AF91: =IF(AE91,D91,"") -> Medium | AG91: =IF(AE91,COUNTIF($AF$5:AF91,AF91),"X") -> 41 | AH91: =CONCATENATE(AE91,AF91) -> TRUEMedium
A92: =CONCATENATE(AE92,D92,AG92) -> TRUEMedium42 | B92: =RAND() -> 0.9950751189 | C92: Num | D92: Medium | E92: 19 | F92: Continue the pattern for three more numbers: | G92: =RANDBETWEEN(30,80) -> 69 | H92: =G92+S92 -> 64 | I92: =H92+S92 -> 59 | J92: =I92+S92 -> 54 | K92: ____ | L92: ____ | M92: ____ | S92: =RANDBETWEEN(2,5)*(-1) -> -5 | T92: =CONCATENATE(F92," ",G92,", ",H92,", ",I92,", ",J92,", ",K92,", ",L92,", ",M92," ",N92," ",O92," ",P92," ",Q92," ",R92) -> Continue the pattern for three more numbers: 69, 64, 59, 54, ____, ____, ____ | U92: =J92+S92 -> 49 | V92: =U92+S92 -> 44 | AD92: =IF(OR(ISNA(U92),ISNA(V92),ISNA(W92),ISNA(X92),ISNA(Y92),ISNA(Z92),ISNA(AA92),ISNA(AB92),ISNA(AC92)),NA(),CONCATENATE(U92,", ",V92,W92,X92,Y92,Z92,AA92,AB92)) -> 49, 44 | AE92: =IF(ISNA(AD92),FALSE,IF(C92=$B$1,Worksheet!$B$3,IF(C92=$C$1,Worksheet!$B$4,IF(C92=$D$1,Worksheet!$B$5,IF(C92=$E$1,Worksheet!$B$6,IF(C92=$B$2,Worksheet!$B$7,IF(C92=$C$2,Worksheet!$D$3,IF(C92=$D$2,Worksheet!$D$4,IF(C92=$E$2,Worksheet!$D$5,IF(C92=$C$3,Worksheet!$D$6,IF(C92=$B$3,Worksheet!$D$7,FALSE))))))))))) -> TRUE | AF92: =IF(AE92,D92,"") -> Medium | AG92: =IF(AE92,COUNTIF($AF$5:AF92,AF92),"X") -> 42 | AH92: =CONCATENATE(AE92,AF92) -> TRUEMedium
A93: =CONCATENATE(AE93,D93,AG93) -> TRUEMedium43 | B93: =RAND() -> 0.6657505667 | C93: Divide | D93: Medium | E93: 101 | F93: Divide: | G93: =3*RANDBETWEEN(1,10)+RANDBETWEEN(1,2) -> 32 | H93: ÷ | I93: 3 | J93: , showing the remainder | T93: =CONCATENATE(F93," ",G93," ",H93," ",I93," ",J93," ",K93," ",L93," ",M93," ",N93," ",O93," ",P93," ",Q93," ",R93) -> Divide: 32 ÷ 3 , showing the remainder | U93: =INT(G93/I93) -> 10 | V93: r | W93: =MOD(G93,I93) -> 2 | AD93: =IF(OR(ISNA(U93),ISNA(V93),ISNA(W93),ISNA(X93),ISNA(Y93),ISNA(Z93),ISNA(AA93),ISNA(AB93),ISNA(AC93)),NA(),CONCATENATE(U93,V93,W93,X93,Y93,Z93,AA93,AB93)) -> 10r2 | AE93: =IF(ISNA(AD93),FALSE,IF(C93=$B$1,Worksheet!$B$3,IF(C93=$C$1,Worksheet!$B$4,IF(C93=$D$1,Worksheet!$B$5,IF(C93=$E$1,Worksheet!$B$6,IF(C93=$B$2,Worksheet!$B$7,IF(C93=$C$2,Worksheet!$D$3,IF(C93=$D$2,Worksheet!$D$4,IF(C93=$E$2,Worksheet!$D$5,IF(C93=$C$3,Worksheet!$D$6,IF(C93=$B$3,Worksheet!$D$7,FALSE))))))))))) -> TRUE | AF93: =IF(AE93,D93,"") -> Medium | AG93: =IF(AE93,COUNTIF($AF$5:AF93,AF93),"X") -> 43 | AH93: =CONCATENATE(AE93,AF93) -> TRUEMedium
A94: =CONCATENATE(AE94,D94,AG94) -> TRUEHard13 | B94: =RAND() -> 0.9794400823 | C94: Round | D94: Hard | E94: 166 | F94: Round | G94: =RANDBETWEEN(10,99)*10+RANDBETWEEN(1,9) -> 634 | H94: to the nearest ten | T94: =CONCATENATE(F94," ",G94," ",H94," ",I94," ",J94," ",K94," ",L94," ",M94," ",N94," ",O94," ",P94," ",Q94," ",R94) -> Round 634 to the nearest ten | U94: =MROUND(G94,10) -> 630 | AD94: =IF(OR(ISNA(U94),ISNA(V94),ISNA(W94),ISNA(X94),ISNA(Y94),ISNA(Z94),ISNA(AA94),ISNA(AB94),ISNA(AC94)),NA(),CONCATENATE(U94,V94,W94,X94,Y94,Z94,AA94,AB94)) -> 630 | AE94: =IF(ISNA(AD94),FALSE,IF(C94=$B$1,Worksheet!$B$3,IF(C94=$C$1,Worksheet!$B$4,IF(C94=$D$1,Worksheet!$B$5,IF(C94=$E$1,Worksheet!$B$6,IF(C94=$B$2,Worksheet!$B$7,IF(C94=$C$2,Worksheet!$D$3,IF(C94=$D$2,Worksheet!$D$4,IF(C94=$E$2,Worksheet!$D$5,IF(C94=$C$3,Worksheet!$D$6,IF(C94=$B$3,Worksheet!$D$7,FALSE))))))))))) -> TRUE | AF94: =IF(AE94,D94,"") -> Hard | AG94: =IF(AE94,COUNTIF($AF$5:AF94,AF94),"X") -> 13 | AH94: =CONCATENATE(AE94,AF94) -> TRUEHard
A95: =CONCATENATE(AE95,D95,AG95) -> TRUEEasy35 | B95: =RAND() -> 0.6007914741 | C95: Num | D95: Easy | E95: 2 | F95: Write the number " | G95: =CHOOSE(RANDBETWEEN(1,9),"one","two","three","four","five","six","seven","eight","nine") -> one | H95: thousand, | I95: =CHOOSE(RANDBETWEEN(1,9),"one","two","three","four","five","six","seven","eight","nine") -> five | J95: hundred and | L95: =CHOOSE(S95,CHOOSE(RANDBETWEEN(1,10),"ten","eleven","twelve","thirteen","fourteen","fifteen","sixteen","seventeen","eighteen","nineteen"),"twenty","thirty","forty","fifty","sixty","seventy","eighty","ninety") -> seventy | M95: =IF(S95=1,"",CHOOSE(RANDBETWEEN(1,9),"one","two","three","four","five","six","seven","eight","nine")) -> one | N95: " in figures | S95: =RANDBETWEEN(1,9) -> 7 | T95: =CONCATENATE(F95,"",G95," ",H95," ",I95," ",J95," ",K95," ",L95," ",M95,"",N95," ",O95," ",P95," ",Q95," ",R95) -> Write the number "one thousand, five hundred and seventy one" in figures | U95: =IF(G95="one",1,IF(G95="two",2,IF(G95="three",3,IF(G95="four",4,IF(G95="five",5,IF(G95="six",6,IF(G95="seven",7,IF(G95="eight",8,9)))))))) -> 1 | V95: =IF(I95="one",1,IF(I95="two",2,IF(I95="three",3,IF(I95="four",4,IF(I95="five",5,IF(I95="six",6,IF(I95="seven",7,IF(I95="eight",8,9)))))))) -> 5 | W95: =S95 -> 7 | X95: =IF(S95=1,IF(L95="ten",0,IF(L95="eleven",1,IF(L95="twelve",2,IF(L95="thirteen",3,IF(L95="fourteen",4,IF(L95="fifteen",5,IF(L95="sixteen",6,IF(L95="seventeen",7,IF(L95="eighteen",8,9))))))))),"") ->  | Y95: =IF(S95<>1,IF(M95="one",1,IF(M95="two",2,IF(M95="three",3,IF(M95="four",4,IF(M95="five",5,IF(M95="six",6,IF(M95="seven",7,IF(M95="eight",8,9)))))))),"") -> 1 | AD95: =IF(OR(ISNA(U95),ISNA(V95),ISNA(W95),ISNA(X95),ISNA(Y95),ISNA(Z95),ISNA(AA95),ISNA(AB95),ISNA(AC95)),NA(),TEXT(CONCATENATE(U95,V95,W95,X95,Y95,Z95,AA95,AB95),"#,###")) -> 1,571 | AE95: =IF(ISNA(AD95),FALSE,IF(C95=$B$1,Worksheet!$B$3,IF(C95=$C$1,Worksheet!$B$4,IF(C95=$D$1,Worksheet!$B$5,IF(C95=$E$1,Worksheet!$B$6,IF(C95=$B$2,Worksheet!$B$7,IF(C95=$C$2,Worksheet!$D$3,IF(C95=$D$2,Worksheet!$D$4,IF(C95=$E$2,Worksheet!$D$5,IF(C95=$C$3,Worksheet!$D$6,IF(C95=$B$3,Worksheet!$D$7,FALSE))))))))))) -> TRUE | AF95: =IF(AE95,D95,"") -> Easy | AG95: =IF(AE95,COUNTIF($AF$5:AF95,AF95),"X") -> 35 | AH95: =CONCATENATE(AE95,AF95) -> TRUEEasy
A96: =CONCATENATE(AE96,D96,AG96) -> TRUEMedium44 | B96: =RAND() -> 0.3690132151 | C96: % | D96: Medium | E96: 159 | F96: =RANDBETWEEN(1,9)*10 -> 90 | G96: of the children at a | H96: =CHOOSE(RANDBETWEEN(1,3),"youth club","party","school trip") -> youth club | I96: are | J96: =IF(RAND()<0.5,"girls","boys") -> girls | K96: . What percentage are | L96: =IF(I96="girls","boys","girls") -> girls | M96: ? | T96: =CONCATENATE(F96,"% ",G96," ",H96," ",I96," ",J96,"",K96," ",L96,"",M96," ",N96," ",O96," ",P96," ",Q96," ",R96) -> 90% of the children at a youth club are girls. What percentage are girls? | U96: =100-F96 -> 10 | V96: % | AD96: =IF(OR(ISNA(U96),ISNA(V96),ISNA(W96),ISNA(X96),ISNA(Y96),ISNA(Z96),ISNA(AA96),ISNA(AB96),ISNA(AC96)),NA(),CONCATENATE(U96,V96,W96,X96,Y96,Z96,AA96,AB96)) -> 10% | AE96: =IF(ISNA(AD96),FALSE,IF(C96=$B$1,Worksheet!$B$3,IF(C96=$C$1,Worksheet!$B$4,IF(C96=$D$1,Worksheet!$B$5,IF(C96=$E$1,Worksheet!$B$6,IF(C96=$B$2,Worksheet!$B$7,IF(C96=$C$2,Worksheet!$D$3,IF(C96=$D$2,Worksheet!$D$4,IF(C96=$E$2,Worksheet!$D$5,IF(C96=$C$3,Worksheet!$D$6,IF(C96=$B$3,Worksheet!$D$7,FALSE))))))))))) -> TRUE | AF96: =IF(AE96,D96,"") -> Medium | AG96: =IF(AE96,COUNTIF($AF$5:AF96,AF96),"X") -> 44 | AH96: =CONCATENATE(AE96,AF96) -> TRUEMedium
A97: =CONCATENATE(AE97,D97,AG97) -> TRUEEasy36 | B97: =RAND() -> 0.3188725035 | C97: Dec | D97: Easy | E97: 134 | F97: A | G97: =CHOOSE(RANDBETWEEN(1,3),"chocolate bar","card","cake") -> card | H97: costs | I97: =RANDBETWEEN(3,9)*10 -> 80 | J97: p. How much change do you get from £1? | T97: =CONCATENATE(F97," ",G97," ",H97," ",I97,"",J97,"",K97," ",L97," ",M97," ",N97," ",O97," ",P97," ",Q97," ",R97) -> A card costs 80p. How much change do you get from £1? | U97: =100-I97 -> 20 | V97: p | AD97: =IF(OR(ISNA(U97),ISNA(V97),ISNA(W97),ISNA(X97),ISNA(Y97),ISNA(Z97),ISNA(AA97),ISNA(AB97),ISNA(AC97)),NA(),CONCATENATE(U97,V97,W97,X97,Y97,Z97,AA97,AB97)) -> 20p | AE97: =IF(ISNA(AD97),FALSE,IF(C97=$B$1,Worksheet!$B$3,IF(C97=$C$1,Worksheet!$B$4,IF(C97=$D$1,Worksheet!$B$5,IF(C97=$E$1,Worksheet!$B$6,IF(C97=$B$2,Worksheet!$B$7,IF(C97=$C$2,Worksheet!$D$3,IF(C97=$D$2,Worksheet!$D$4,IF(C97=$E$2,Worksheet!$D$5,IF(C97=$C$3,Worksheet!$D$6,IF(C97=$B$3,Worksheet!$D$7,FALSE))))))))))) -> TRUE | AF97: =IF(AE97,D97,"") -> Easy | AG97: =IF(AE97,COUNTIF($AF$5:AF97,AF97),"X") -> 36 | AH97: =CONCATENATE(AE97,AF97) -> TRUEEasy
A98: =CONCATENATE(AE98,D98,AG98) -> TRUEHard14 | B98: =RAND() -> 0.3832956669 | C98: Num | D98: Hard | E98: 38 | F98: Write these numbers in order from | G98: =CHOOSE(RANDBETWEEN(1,2),"smallest to biggest:","biggest to smallest:") -> smallest to biggest: | H98: =IF($O98=1,$P98*1000,IF($O98=2,$Q98*1000,IF($O98=3,$R98*1000,$S98*1000)))+IF(RAND()<0.5,$R98,$S98)*100+IF(RAND()<0.5,$P98,$Q98)*10+CHOOSE(RANDBETWEEN(1,4),$P98,$Q98,$R98,$S98) -> 5855 | I98: =IF($O98=1,$P98*1000,IF($O98=2,$Q98*1000,IF($O98=3,$R98*1000,$S98*1000)))+IF(RAND()<0.5,$R98,$S98)*100+IF(RAND()<0.5,$P98,$Q98)*10+CHOOSE(RANDBETWEEN(1,4),$P98,$Q98,$R98,$S98) -> 5888 | J98: =IF($O98=1,$P98*1000,IF($O98=2,$Q98*1000,IF($O98=3,$R98*1000,$S98*1000)))+IF(RAND()<0.5,$R98,$S98)*100+IF(RAND()<0.5,$P98,$Q98)*10+CHOOSE(RANDBETWEEN(1,4),$P98,$Q98,$R98,$S98) -> 5858 | K98: =IF($O98=1,$P98*1000,IF($O98=2,$Q98*1000,IF($O98=3,$R98*1000,$S98*1000)))+IF(RAND()<0.5,$R98,$S98)*100+IF(RAND()<0.5,$P98,$Q98)*10+CHOOSE(RANDBETWEEN(1,4),$P98,$Q98,$R98,$S98) -> 5787 | O98: =RANDBETWEEN(1,4) -> 1 | P98: =RANDBETWEEN(1,9) -> 5 | Q98: =RANDBETWEEN(1,9) -> 8 | R98: =RANDBETWEEN(1,9) -> 8 | S98: =RANDBETWEEN(1,9) -> 7 | T98: =CONCATENATE(F98," ",G98," ",H98,", ",I98,", ",J98,", ",K98," ",L98," ",M98," ",N98) -> Write these numbers in order from smallest to biggest: 5855, 5888, 5858, 5787 | U98: =IF($G98="smallest to biggest:",LARGE($H98:$K98,4),LARGE($H98:$K98,1)) -> 5787 | V98: =IF($G98="smallest to biggest:",LARGE($H98:$K98,3),LARGE($H98:$K98,2)) -> 5855 | W98: =IF($G98="smallest to biggest:",LARGE($H98:$K98,2),LARGE($H98:$K98,3)) -> 5858 | X98: =IF($G98="smallest to biggest:",LARGE($H98:$K98,1),LARGE($H98:$K98,4)) -> 5888 | Z98: =IF(OR(H98=I98,H98=J98,H98=K98,I98=J98,I98=K98,J98=K98),NA(),"") ->  | AD98: =IF(OR(ISNA(U98),ISNA(V98),ISNA(W98),ISNA(X98),ISNA(Y98),ISNA(Z98),ISNA(AA98),ISNA(AB98),ISNA(AC98)),NA(),CONCATENATE(U98,", ",V98,", ",W98,", ",X98,Y98,Z98,AA98,AB98)) -> 5787, 5855, 5858, 5888 | AE98: =IF(ISNA(AD98),FALSE,IF(C98=$B$1,Worksheet!$B$3,IF(C98=$C$1,Worksheet!$B$4,IF(C98=$D$1,Worksheet!$B$5,IF(C98=$E$1,Worksheet!$B$6,IF(C98=$B$2,Worksheet!$B$7,IF(C98=$C$2,Worksheet!$D$3,IF(C98=$D$2,Worksheet!$D$4,IF(C98=$E$2,Worksheet!$D$5,IF(C98=$C$3,Worksheet!$D$6,IF(C98=$B$3,Worksheet!$D$7,FALSE))))))))))) -> TRUE | AF98: =IF(AE98,D98,"") -> Hard | AG98: =IF(AE98,COUNTIF($AF$5:AF98,AF98),"X") -> 14 | AH98: =CONCATENATE(AE98,AF98) -> TRUEHard
A99: =CONCATENATE(AE99,D99,AG99) -> TRUEHard15 | B99: =RAND() -> 0.1090885487 | C99: Divide | D99: Hard | E99: 92 | F99: What is half of | G99: =200*RANDBETWEEN(1,4)+100 -> 700 | H99: ? | T99: =CONCATENATE(F99," ",G99,"",H99," ",I99," ",J99," ",K99," ",L99," ",M99," ",N99," ",O99," ",P99," ",Q99," ",R99) -> What is half of 700? | U99: =G99/2 -> 350 | AD99: =IF(OR(ISNA(U99),ISNA(V99),ISNA(W99),ISNA(X99),ISNA(Y99),ISNA(Z99),ISNA(AA99),ISNA(AB99),ISNA(AC99)),NA(),CONCATENATE(U99,V99,W99,X99,Y99,Z99,AA99,AB99)) -> 350 | AE99: =IF(ISNA(AD99),FALSE,IF(C99=$B$1,Worksheet!$B$3,IF(C99=$C$1,Worksheet!$B$4,IF(C99=$D$1,Worksheet!$B$5,IF(C99=$E$1,Worksheet!$B$6,IF(C99=$B$2,Worksheet!$B$7,IF(C99=$C$2,Worksheet!$D$3,IF(C99=$D$2,Worksheet!$D$4,IF(C99=$E$2,Worksheet!$D$5,IF(C99=$C$3,Worksheet!$D$6,IF(C99=$B$3,Worksheet!$D$7,FALSE))))))))))) -> TRUE | AF99: =IF(AE99,D99,"") -> Hard | AG99: =IF(AE99,COUNTIF($AF$5:AF99,AF99),"X") -> 15 | AH99: =CONCATENATE(AE99,AF99) -> TRUEHard
A100: =CONCATENATE(AE100,D100,AG100) -> TRUEMedium45 | B100: =RAND() -> 0.3871182844 | C100: Round | D100: Medium | E100: 164 | F100: Round | G100: =RANDBETWEEN(10,99)*10+RANDBETWEEN(1,9) -> 101 | H100: to the nearest ten | T100: =CONCATENATE(F100," ",G100," ",H100," ",I100," ",J100," ",K100," ",L100," ",M100," ",N100," ",O100," ",P100," ",Q100," ",R100) -> Round 101 to the nearest ten | U100: =MROUND(G100,10) -> 100 | AD100: =IF(OR(ISNA(U100),ISNA(V100),ISNA(W100),ISNA(X100),ISNA(Y100),ISNA(Z100),ISNA(AA100),ISNA(AB100),ISNA(AC100)),NA(),CONCATENATE(U100,V100,W100,X100,Y100,Z100,AA100,AB100)) -> 100 | AE100: =IF(ISNA(AD100),FALSE,IF(C100=$B$1,Worksheet!$B$3,IF(C100=$C$1,Worksheet!$B$4,IF(C100=$D$1,Worksheet!$B$5,IF(C100=$E$1,Worksheet!$B$6,IF(C100=$B$2,Worksheet!$B$7,IF(C100=$C$2,Worksheet!$D$3,IF(C100=$D$2,Worksheet!$D$4,IF(C100=$E$2,Worksheet!$D$5,IF(C100=$C$3,Worksheet!$D$6,IF(C100=$B$3,Worksheet!$D$7,FALSE))))))))))) -> TRUE | AF100: =IF(AE100,D100,"") -> Medium | AG100: =IF(AE100,COUNTIF($AF$5:AF100,AF100),"X") -> 45 | AH100: =CONCATENATE(AE100,AF100) -> TRUEMedium
A101: =CONCATENATE(AE101,D101,AG101) -> TRUEEasy37 | B101: =RAND() -> 0.9186707193 | C101: Frac | D101: Easy | E101: 121 | F101: Fractions. What is | G101: 1/5 | H101: of | I101: =5*RANDBETWEEN(2,5) -> 10 | J101: ? | T101: =CONCATENATE(F101," ",G101," ",H101," ",I101," ",J101," ",K101," ",L101," ",M101," ",N101," ",O101," ",P101," ",Q101," ",R101) -> Fractions. What is 1/5 of 10 ? | U101: =I101/5 -> 2 | AD101: =IF(OR(ISNA(U101),ISNA(V101),ISNA(W101),ISNA(X101),ISNA(Y101),ISNA(Z101),ISNA(AA101),ISNA(AB101),ISNA(AC101)),NA(),CONCATENATE(U101,V101,W101,X101,Y101,Z101,AA101,AB101)) -> 2 | AE101: =IF(ISNA(AD101),FALSE,IF(C101=$B$1,Worksheet!$B$3,IF(C101=$C$1,Worksheet!$B$4,IF(C101=$D$1,Worksheet!$B$5,IF(C101=$E$1,Worksheet!$B$6,IF(C101=$B$2,Worksheet!$B$7,IF(C101=$C$2,Worksheet!$D$3,IF(C101=$D$2,Worksheet!$D$4,IF(C101=$E$2,Worksheet!$D$5,IF(C101=$C$3,Worksheet!$D$6,IF(C101=$B$3,Worksheet!$D$7,FALSE))))))))))) -> TRUE | AF101: =IF(AE101,D101,"") -> Easy | AG101: =IF(AE101,COUNTIF($AF$5:AF101,AF101),"X") -> 37 | AH101: =CONCATENATE(AE101,AF101) -> TRUEEasy
A102: =CONCATENATE(AE102,D102,AG102) -> TRUEHard16 | B102: =RAND() -> 0.5664238811 | C102: Mult | D102: Hard | E102: 85 | F102: Multiply by writing down a chimney sum: | G102: =RANDBETWEEN(1,9)*10+RANDBETWEEN(1,9) -> 29 | H102: × | I102: =RANDBETWEEN(2,5) -> 3 | T102: =CONCATENATE(F102," ",G102," ",H102," ",I102," ",J102," ",K102," ",L102," ",M102," ",N102," ",O102," ",P102," ",Q102," ",R102) -> Multiply by writing down a chimney sum: 29 × 3 | U102: =G102*I102 -> 87 | AD102: =IF(OR(ISNA(U102),ISNA(V102),ISNA(W102),ISNA(X102),ISNA(Y102),ISNA(Z102),ISNA(AA102),ISNA(AB102),ISNA(AC102)),NA(),CONCATENATE(U102,V102,W102,X102,Y102,Z102,AA102,AB102)) -> 87 | AE102: =IF(ISNA(AD102),FALSE,IF(C102=$B$1,Worksheet!$B$3,IF(C102=$C$1,Worksheet!$B$4,IF(C102=$D$1,Worksheet!$B$5,IF(C102=$E$1,Worksheet!$B$6,IF(C102=$B$2,Worksheet!$B$7,IF(C102=$C$2,Worksheet!$D$3,IF(C102=$D$2,Worksheet!$D$4,IF(C102=$E$2,Worksheet!$D$5,IF(C102=$C$3,Worksheet!$D$6,IF(C102=$B$3,Worksheet!$D$7,FALSE))))))))))) -> TRUE | AF102: =IF(AE102,D102,"") -> Hard | AG102: =IF(AE102,COUNTIF($AF$5:AF102,AF102),"X") -> 16 | AH102: =CONCATENATE(AE102,AF102) -> TRUEHard
A103: =CONCATENATE(AE103,D103,AG103) -> TRUEMedium46 | B103: =RAND() -> 0.8901814109 | C103: +- | D103: Medium | E103: 55 | F103: What do you add on to | G103: =RANDBETWEEN(1,9)+RANDBETWEEN(1,9)*10 -> 19 | H103: to make 100? | T103: =CONCATENATE(F103," ",G103," ",H103," ",I103," ",J103," ",K103," ",L103," ",M103," ",N103," ",O103," ",P103," ",Q103," ",R103) -> What do you add on to 19 to make 100? | U103: =100-G103 -> 81 | AD103: =IF(OR(ISNA(U103),ISNA(V103),ISNA(W103),ISNA(X103),ISNA(Y103),ISNA(Z103),ISNA(AA103),ISNA(AB103),ISNA(AC103)),NA(),CONCATENATE(U103,V103,W103,X103,Y103,Z103,AA103,AB103)) -> 81 | AE103: =IF(ISNA(AD103),FALSE,IF(C103=$B$1,Worksheet!$B$3,IF(C103=$C$1,Worksheet!$B$4,IF(C103=$D$1,Worksheet!$B$5,IF(C103=$E$1,Worksheet!$B$6,IF(C103=$B$2,Worksheet!$B$7,IF(C103=$C$2,Worksheet!$D$3,IF(C103=$D$2,Worksheet!$D$4,IF(C103=$E$2,Worksheet!$D$5,IF(C103=$C$3,Worksheet!$D$6,IF(C103=$B$3,Worksheet!$D$7,FALSE))))))))))) -> TRUE | AF103: =IF(AE103,D103,"") -> Medium | AG103: =IF(AE103,COUNTIF($AF$5:AF103,AF103),"X") -> 46 | AH103: =CONCATENATE(AE103,AF103) -> TRUEMedium
A104: =CONCATENATE(AE104,D104,AG104) -> TRUEEasy38 | B104: =RAND() -> 0.7989733196 | C104: +- | D104: Easy | E104: 58 | F104: Add: | G104: =RANDBETWEEN(2,8)*10+RANDBETWEEN(1,5) -> 81 | H104: + | I104: =RANDBETWEEN(5,9) -> 9 | T104: =CONCATENATE(F104," ",G104," ",H104," ",I104," ",J104," ",K104," ",L104," ",M104," ",N104," ",O104," ",P104," ",Q104," ",R104) -> Add: 81 + 9 | U104: =G104+I104 -> 90 | AD104: =IF(OR(ISNA(U104),ISNA(V104),ISNA(W104),ISNA(X104),ISNA(Y104),ISNA(Z104),ISNA(AA104),ISNA(AB104),ISNA(AC104)),NA(),CONCATENATE(U104,V104,W104,X104,Y104,Z104,AA104,AB104)) -> 90 | AE104: =IF(ISNA(AD104),FALSE,IF(C104=$B$1,Worksheet!$B$3,IF(C104=$C$1,Worksheet!$B$4,IF(C104=$D$1,Worksheet!$B$5,IF(C104=$E$1,Worksheet!$B$6,IF(C104=$B$2,Worksheet!$B$7,IF(C104=$C$2,Worksheet!$D$3,IF(C104=$D$2,Worksheet!$D$4,IF(C104=$E$2,Worksheet!$D$5,IF(C104=$C$3,Worksheet!$D$6,IF(C104=$B$3,Worksheet!$D$7,FALSE))))))))))) -> TRUE | AF104: =IF(AE104,D104,"") -> Easy | AG104: =IF(AE104,COUNTIF($AF$5:AF104,AF104),"X") -> 38 | AH104: =CONCATENATE(AE104,AF104) -> TRUEEasy
A105: =CONCATENATE(AE105,D105,AG105) -> TRUEMedium47 | B105: =RAND() -> 0.9350746372 | C105: Dec | D105: Medium | E105: 135 | F105: A | G105: =CHOOSE(RANDBETWEEN(1,3),"chocolate bar","card","cake") -> cake | H105: costs | I105: =RANDBETWEEN(2,8)*10+RANDBETWEEN(1,9) -> 21 | J105: p. How much change do you get from £1? | T105: =CONCATENATE(F105," ",G105," ",H105," ",I105,"",J105,"",K105," ",L105," ",M105," ",N105," ",O105," ",P105," ",Q105," ",R105) -> A cake costs 21p. How much change do you get from £1? | U105: =100-I105 -> 79 | V105: p | AD105: =IF(OR(ISNA(U105),ISNA(V105),ISNA(W105),ISNA(X105),ISNA(Y105),ISNA(Z105),ISNA(AA105),ISNA(AB105),ISNA(AC105)),NA(),CONCATENATE(U105,V105,W105,X105,Y105,Z105,AA105,AB105)) -> 79p | AE105: =IF(ISNA(AD105),FALSE,IF(C105=$B$1,Worksheet!$B$3,IF(C105=$C$1,Worksheet!$B$4,IF(C105=$D$1,Worksheet!$B$5,IF(C105=$E$1,Worksheet!$B$6,IF(C105=$B$2,Worksheet!$B$7,IF(C105=$C$2,Worksheet!$D$3,IF(C105=$D$2,Worksheet!$D$4,IF(C105=$E$2,Worksheet!$D$5,IF(C105=$C$3,Worksheet!$D$6,IF(C105=$B$3,Worksheet!$D$7,FALSE))))))))))) -> TRUE | AF105: =IF(AE105,D105,"") -> Medium | AG105: =IF(AE105,COUNTIF($AF$5:AF105,AF105),"X") -> 47 | AH105: =CONCATENATE(AE105,AF105) -> TRUEMedium
A106: =CONCATENATE(AE106,D106,AG106) -> TRUEMedium48 | B106: =RAND() -> 0.2639065098 | C106: Choose | D106: Medium | E106: 110 | F106: =CHOOSE(RANDBETWEEN(1,4),"Alice","Louise","Emma","Caitlin") -> Louise | G106: earns | H106: =RANDBETWEEN(20,50) -> 33 | I106: on Monday and | J106: =RANDBETWEEN(20,50) -> 35 | K106: on Tuesday. How much does she earn in total? | T106: =CONCATENATE(F106," ",G106," £",H106," ",I106," £",J106," ",K106," ",L106," ",M106," ",N106," ",O106," ",P106," ",Q106," ",R106) -> Louise earns £33 on Monday and £35 on Tuesday. How much does she earn in total? | U106: £ | V106: =H106+J106 -> 68 | AD106: =IF(OR(ISNA(U106),ISNA(V106),ISNA(W106),ISNA(X106),ISNA(Y106),ISNA(Z106),ISNA(AA106),ISNA(AB106),ISNA(AC106)),NA(),CONCATENATE(U106,V106,W106,X106,Y106,Z106,AA106,AB106)) -> £68 | AE106: =IF(ISNA(AD106),FALSE,IF(C106=$B$1,Worksheet!$B$3,IF(C106=$C$1,Worksheet!$B$4,IF(C106=$D$1,Worksheet!$B$5,IF(C106=$E$1,Worksheet!$B$6,IF(C106=$B$2,Worksheet!$B$7,IF(C106=$C$2,Worksheet!$D$3,IF(C106=$D$2,Worksheet!$D$4,IF(C106=$E$2,Worksheet!$D$5,IF(C106=$C$3,Worksheet!$D$6,IF(C106=$B$3,Worksheet!$D$7,FALSE))))))))))) -> TRUE | AF106: =IF(AE106,D106,"") -> Medium | AG106: =IF(AE106,COUNTIF($AF$5:AF106,AF106),"X") -> 48 | AH106: =CONCATENATE(AE106,AF106) -> TRUEMedium
A107: =CONCATENATE(AE107,D107,AG107) -> TRUEMedium49 | B107: =RAND() -> 0.9587323313 | C107: Frac | D107: Medium | E107: 125 | F107: Fractions. What is | G107: 1/4 | H107: of | I107: =4*RANDBETWEEN(5,10) -> 24 | J107: ? | T107: =CONCATENATE(F107," ",G107," ",H107," ",I107," ",J107," ",K107," ",L107," ",M107," ",N107," ",O107," ",P107," ",Q107," ",R107) -> Fractions. What is 1/4 of 24 ? | U107: =I107/4 -> 6 | AD107: =IF(OR(ISNA(U107),ISNA(V107),ISNA(W107),ISNA(X107),ISNA(Y107),ISNA(Z107),ISNA(AA107),ISNA(AB107),ISNA(AC107)),NA(),CONCATENATE(U107,V107,W107,X107,Y107,Z107,AA107,AB107)) -> 6 | AE107: =IF(ISNA(AD107),FALSE,IF(C107=$B$1,Worksheet!$B$3,IF(C107=$C$1,Worksheet!$B$4,IF(C107=$D$1,Worksheet!$B$5,IF(C107=$E$1,Worksheet!$B$6,IF(C107=$B$2,Worksheet!$B$7,IF(C107=$C$2,Worksheet!$D$3,IF(C107=$D$2,Worksheet!$D$4,IF(C107=$E$2,Worksheet!$D$5,IF(C107=$C$3,Worksheet!$D$6,IF(C107=$B$3,Worksheet!$D$7,FALSE))))))))))) -> TRUE | AF107: =IF(AE107,D107,"") -> Medium | AG107: =IF(AE107,COUNTIF($AF$5:AF107,AF107),"X") -> 49 | AH107: =CONCATENATE(AE107,AF107) -> TRUEMedium
A108: =CONCATENATE(AE108,D108,AG108) -> TRUEMedium50 | B108: =RAND() -> 0.6110648037 | C108: Divide | D108: Medium | E108: 100 | F108: Divide: | G108: =2*RANDBETWEEN(1,10)+1 -> 21 | H108: ÷ | I108: 2 | J108: , showing the remainder | T108: =CONCATENATE(F108," ",G108," ",H108," ",I108," ",J108," ",K108," ",L108," ",M108," ",N108," ",O108," ",P108," ",Q108," ",R108) -> Divide: 21 ÷ 2 , showing the remainder | U108: =INT(G108/I108) -> 10 | V108: r | W108: =MOD(G108,I108) -> 1 | AD108: =IF(OR(ISNA(U108),ISNA(V108),ISNA(W108),ISNA(X108),ISNA(Y108),ISNA(Z108),ISNA(AA108),ISNA(AB108),ISNA(AC108)),NA(),CONCATENATE(U108,V108,W108,X108,Y108,Z108,AA108,AB108)) -> 10r1 | AE108: =IF(ISNA(AD108),FALSE,IF(C108=$B$1,Worksheet!$B$3,IF(C108=$C$1,Worksheet!$B$4,IF(C108=$D$1,Worksheet!$B$5,IF(C108=$E$1,Worksheet!$B$6,IF(C108=$B$2,Worksheet!$B$7,IF(C108=$C$2,Worksheet!$D$3,IF(C108=$D$2,Worksheet!$D$4,IF(C108=$E$2,Worksheet!$D$5,IF(C108=$C$3,Worksheet!$D$6,IF(C108=$B$3,Worksheet!$D$7,FALSE))))))))))) -> TRUE | AF108: =IF(AE108,D108,"") -> Medium | AG108: =IF(AE108,COUNTIF($AF$5:AF108,AF108),"X") -> 50 | AH108: =CONCATENATE(AE108,AF108) -> TRUEMedium
A109: =CONCATENATE(AE109,D109,AG109) -> TRUEEasy39 | B109: =RAND() -> 0.3308810334 | C109: Num | D109: Easy | E109: 7 | F109: Fill in the missing numbers: | G109: =RANDBETWEEN(30,80) -> 73 | H109: =G109+S109 -> 77 | I109: =H109+S109 -> 81 | J109: ____ | K109: ____ | L109: =V109+S109 -> 93 | M109: =L109+S109 -> 97 | S109: =RANDBETWEEN(2,5) -> 4 | T109: =CONCATENATE(F109," ",G109,", ",H109,", ",I109,", ",J109,", ",K109,", ",L109,", ",M109," ",N109," ",O109," ",P109," ",Q109," ",R109) -> Fill in the missing numbers: 73, 77, 81, ____, ____, 93, 97 | U109: =I109+S109 -> 85 | V109: =U109+S109 -> 89 | AD109: =IF(OR(ISNA(U109),ISNA(V109),ISNA(W109),ISNA(X109),ISNA(Y109),ISNA(Z109),ISNA(AA109),ISNA(AB109),ISNA(AC109)),NA(),CONCATENATE(U109,", ",V109,W109,X109,Y109,Z109,AA109,AB109)) -> 85, 89 | AE109: =IF(ISNA(AD109),FALSE,IF(C109=$B$1,Worksheet!$B$3,IF(C109=$C$1,Worksheet!$B$4,IF(C109=$D$1,Worksheet!$B$5,IF(C109=$E$1,Worksheet!$B$6,IF(C109=$B$2,Worksheet!$B$7,IF(C109=$C$2,Worksheet!$D$3,IF(C109=$D$2,Worksheet!$D$4,IF(C109=$E$2,Worksheet!$D$5,IF(C109=$C$3,Worksheet!$D$6,IF(C109=$B$3,Worksheet!$D$7,FALSE))))))))))) -> TRUE | AF109: =IF(AE109,D109,"") -> Easy | AG109: =IF(AE109,COUNTIF($AF$5:AF109,AF109),"X") -> 39 | AH109: =CONCATENATE(AE109,AF109) -> TRUEEasy
A110: =CONCATENATE(AE110,D110,AG110) -> TRUEHard17 | B110: =RAND() -> 0.4290098034 | C110: Frac | D110: Hard | E110: 129 | F110: Fractions. What is | G110: 1/3 | H110: of | I110: =3*RANDBETWEEN(8,12) -> 30 | J110: ? | T110: =CONCATENATE(F110," ",G110," ",H110," ",I110," ",J110," ",K110," ",L110," ",M110," ",N110," ",O110," ",P110," ",Q110," ",R110) -> Fractions. What is 1/3 of 30 ? | U110: =I110/3 -> 10 | AD110: =IF(OR(ISNA(U110),ISNA(V110),ISNA(W110),ISNA(X110),ISNA(Y110),ISNA(Z110),ISNA(AA110),ISNA(AB110),ISNA(AC110)),NA(),CONCATENATE(U110,V110,W110,X110,Y110,Z110,AA110,AB110)) -> 10 | AE110: =IF(ISNA(AD110),FALSE,IF(C110=$B$1,Worksheet!$B$3,IF(C110=$C$1,Worksheet!$B$4,IF(C110=$D$1,Worksheet!$B$5,IF(C110=$E$1,Worksheet!$B$6,IF(C110=$B$2,Worksheet!$B$7,IF(C110=$C$2,Worksheet!$D$3,IF(C110=$D$2,Worksheet!$D$4,IF(C110=$E$2,Worksheet!$D$5,IF(C110=$C$3,Worksheet!$D$6,IF(C110=$B$3,Worksheet!$D$7,FALSE))))))))))) -> TRUE | AF110: =IF(AE110,D110,"") -> Hard | AG110: =IF(AE110,COUNTIF($AF$5:AF110,AF110),"X") -> 17 | AH110: =CONCATENATE(AE110,AF110) -> TRUEHard
A111: =CONCATENATE(AE111,D111,AG111) -> TRUEHard18 | B111: =RAND() -> 0.2101269114 | C111: % | D111: Hard | E111: 160 | F111: =RANDBETWEEN(1,9)*10+RANDBETWEEN(1,9) -> 63 | G111: of the children at a | H111: =CHOOSE(RANDBETWEEN(1,3),"youth club","party","school trip") -> youth club | I111: are | J111: =IF(RAND()<0.5,"girls","boys") -> boys | K111: . What percentage are | L111: =IF(I111="girls","boys","girls") -> girls | M111: ? | T111: =CONCATENATE(F111,"% ",G111," ",H111," ",I111," ",J111,"",K111," ",L111,"",M111," ",N111," ",O111," ",P111," ",Q111," ",R111) -> 63% of the children at a youth club are boys. What percentage are girls? | U111: =100-F111 -> 37 | V111: % | AD111: =IF(OR(ISNA(U111),ISNA(V111),ISNA(W111),ISNA(X111),ISNA(Y111),ISNA(Z111),ISNA(AA111),ISNA(AB111),ISNA(AC111)),NA(),CONCATENATE(U111,V111,W111,X111,Y111,Z111,AA111,AB111)) -> 37% | AE111: =IF(ISNA(AD111),FALSE,IF(C111=$B$1,Worksheet!$B$3,IF(C111=$C$1,Worksheet!$B$4,IF(C111=$D$1,Worksheet!$B$5,IF(C111=$E$1,Worksheet!$B$6,IF(C111=$B$2,Worksheet!$B$7,IF(C111=$C$2,Worksheet!$D$3,IF(C111=$D$2,Worksheet!$D$4,IF(C111=$E$2,Worksheet!$D$5,IF(C111=$C$3,Worksheet!$D$6,IF(C111=$B$3,Worksheet!$D$7,FALSE))))))))))) -> TRUE | AF111: =IF(AE111,D111,"") -> Hard | AG111: =IF(AE111,COUNTIF($AF$5:AF111,AF111),"X") -> 18 | AH111: =CONCATENATE(AE111,AF111) -> TRUEHard
A112: =CONCATENATE(AE112,D112,AG112) -> TRUEMedium51 | B112: =RAND() -> 0.726344741 | C112: Num | D112: Medium | E112: 22 | F112: Continue the pattern for three more numbers: | G112: =RANDBETWEEN(11,95)*10+RANDBETWEEN(1,9) -> 772 | H112: =G112+S112 -> 782 | I112: =H112+S112 -> 792 | J112: =I112+S112 -> 802 | K112: ____ | L112: ____ | M112: ____ | S112: 10 | T112: =CONCATENATE(F112," ",G112,", ",H112,", ",I112,", ",J112,", ",K112,", ",L112,", ",M112," ",N112," ",O112," ",P112," ",Q112," ",R112) -> Continue the pattern for three more numbers: 772, 782, 792, 802, ____, ____, ____ | U112: =J112+S112 -> 812 | V112: =U112+S112 -> 822 | AD112: =IF(OR(ISNA(U112),ISNA(V112),ISNA(W112),ISNA(X112),ISNA(Y112),ISNA(Z112),ISNA(AA112),ISNA(AB112),ISNA(AC112)),NA(),CONCATENATE(U112,", ",V112,W112,X112,Y112,Z112,AA112,AB112)) -> 812, 822 | AE112: =IF(ISNA(AD112),FALSE,IF(C112=$B$1,Worksheet!$B$3,IF(C112=$C$1,Worksheet!$B$4,IF(C112=$D$1,Worksheet!$B$5,IF(C112=$E$1,Worksheet!$B$6,IF(C112=$B$2,Worksheet!$B$7,IF(C112=$C$2,Worksheet!$D$3,IF(C112=$D$2,Worksheet!$D$4,IF(C112=$E$2,Worksheet!$D$5,IF(C112=$C$3,Worksheet!$D$6,IF(C112=$B$3,Worksheet!$D$7,FALSE))))))))))) -> TRUE | AF112: =IF(AE112,D112,"") -> Medium | AG112: =IF(AE112,COUNTIF($AF$5:AF112,AF112),"X") -> 51 | AH112: =CONCATENATE(AE112,AF112) -> TRUEMedium
A113: =CONCATENATE(AE113,D113,AG113) -> TRUEMedium52 | B113: =RAND() -> 0.3042243861 | C113: Choose | D113: Medium | E113: 108 | F113: A girl buys three sweets costing | G113: =RANDBETWEEN(11,20) -> 19 | H113: =RANDBETWEEN(11,20) -> 16 | I113: and | J113: =RANDBETWEEN(11,20) -> 11 | K113: . How much do they cost in total? | T113: =CONCATENATE(F113," ",G113,"p, ",H113,"p ",I113," ",J113,"p. ",K113," ",L113," ",M113," ",N113," ",O113," ",P113," ",Q113," ",R113) -> A girl buys three sweets costing 19p, 16p and 11p. . How much do they cost in total? | U113: =G113+H113+J113 -> 46 | V113: p | AD113: =IF(OR(ISNA(U113),ISNA(V113),ISNA(W113),ISNA(X113),ISNA(Y113),ISNA(Z113),ISNA(AA113),ISNA(AB113),ISNA(AC113)),NA(),CONCATENATE(U113,V113,W113,X113,Y113,Z113,AA113,AB113)) -> 46p | AE113: =IF(ISNA(AD113),FALSE,IF(C113=$B$1,Worksheet!$B$3,IF(C113=$C$1,Worksheet!$B$4,IF(C113=$D$1,Worksheet!$B$5,IF(C113=$E$1,Worksheet!$B$6,IF(C113=$B$2,Worksheet!$B$7,IF(C113=$C$2,Worksheet!$D$3,IF(C113=$D$2,Worksheet!$D$4,IF(C113=$E$2,Worksheet!$D$5,IF(C113=$C$3,Worksheet!$D$6,IF(C113=$B$3,Worksheet!$D$7,FALSE))))))))))) -> TRUE | AF113: =IF(AE113,D113,"") -> Medium | AG113: =IF(AE113,COUNTIF($AF$5:AF113,AF113),"X") -> 52 | AH113: =CONCATENATE(AE113,AF113) -> TRUEMedium
A114: =CONCATENATE(AE114,D114,AG114) -> TRUEHard19 | B114: =RAND() -> 0.7118445453 | C114: Mult | D114: Hard | E114: 71 | F114: Circle all the | G114: =IF(RAND()<0.5,"odd","even") -> odd | H114: numbers in this list: | I114: =RANDBETWEEN(100,999) -> 327 | J114: =2*RANDBETWEEN(100,500)+1 -> 687 | K114: =RANDBETWEEN(100,999) -> 910 | L114: =2*RANDBETWEEN(50,499) -> 210 | M114: =RANDBETWEEN(100,999) -> 200 | T114: =CONCATENATE(F114," ",G114," ",H114," ",I114,", ",J114,", ",K114,", ",L114,", ",M114," ",N114," ",O114," ",P114," ",Q114," ",R114) -> Circle all the odd numbers in this list: 327, 687, 910, 210, 200 | U114: =IF(ISODD(I114),IF($G114="odd",I114,""),IF($G114="odd","",I114)) -> 327 | V114: =IF(ISODD(J114),IF($G114="odd",J114,""),IF($G114="odd","",J114)) -> 687 | W114: =IF(ISODD(K114),IF($G114="odd",K114,""),IF($G114="odd","",K114)) ->  | X114: =IF(ISODD(L114),IF($G114="odd",L114,""),IF($G114="odd","",L114)) ->  | Y114: =IF(ISODD(M114),IF($G114="odd",M114,""),IF($G114="odd","",M114)) ->  | AA114: =IF(OR(I114=J114,I114=K114,I114=L114,I114=M114,J114=K114,J114=L114,J114=M114,K114=L114,K114=M114,L114=M114),NA(),"") ->  | AD114: =IF(OR(ISNA(U114),ISNA(V114),ISNA(W114),ISNA(X114),ISNA(Y114),ISNA(Z114),ISNA(AA114),ISNA(AB114),ISNA(AC114)),NA(),CONCATENATE(U114," ",V114," ",W114," ",X114," ",Y114,Z114,AA114,AB114)) -> 327 687 | AE114: =IF(ISNA(AD114),FALSE,IF(C114=$B$1,Worksheet!$B$3,IF(C114=$C$1,Worksheet!$B$4,IF(C114=$D$1,Worksheet!$B$5,IF(C114=$E$1,Worksheet!$B$6,IF(C114=$B$2,Worksheet!$B$7,IF(C114=$C$2,Worksheet!$D$3,IF(C114=$D$2,Worksheet!$D$4,IF(C114=$E$2,Worksheet!$D$5,IF(C114=$C$3,Worksheet!$D$6,IF(C114=$B$3,Worksheet!$D$7,FALSE))))))))))) -> TRUE | AF114: =IF(AE114,D114,"") -> Hard | AG114: =IF(AE114,COUNTIF($AF$5:AF114,AF114),"X") -> 19 | AH114: =CONCATENATE(AE114,AF114) -> TRUEHard
A115: =CONCATENATE(AE115,D115,AG115) -> TRUEMedium53 | B115: =RAND() -> 0.6118072515 | C115: Dec | D115: Medium | E115: 143 | F115: How many pounds are there in | G115: =RANDBETWEEN(10,20)*100 -> 1900 | H115: p? | T115: =CONCATENATE(F115," ",G115,"",H115," ",I115," ",J115," ",K115," ",L115," ",M115," ",N115," ",O115," ",P115," ",Q115," ",R115) -> How many pounds are there in 1900p? | U115: £ | V115: =G115/100 -> 19 | AD115: =IF(OR(ISNA(U115),ISNA(V115),ISNA(W115),ISNA(X115),ISNA(Y115),ISNA(Z115),ISNA(AA115),ISNA(AB115),ISNA(AC115)),NA(),CONCATENATE(U115,V115,W115,X115,Y115,Z115,AA115,AB115)) -> £19 | AE115: =IF(ISNA(AD115),FALSE,IF(C115=$B$1,Worksheet!$B$3,IF(C115=$C$1,Worksheet!$B$4,IF(C115=$D$1,Worksheet!$B$5,IF(C115=$E$1,Worksheet!$B$6,IF(C115=$B$2,Worksheet!$B$7,IF(C115=$C$2,Worksheet!$D$3,IF(C115=$D$2,Worksheet!$D$4,IF(C115=$E$2,Worksheet!$D$5,IF(C115=$C$3,Worksheet!$D$6,IF(C115=$B$3,Worksheet!$D$7,FALSE))))))))))) -> TRUE | AF115: =IF(AE115,D115,"") -> Medium | AG115: =IF(AE115,COUNTIF($AF$5:AF115,AF115),"X") -> 53 | AH115: =CONCATENATE(AE115,AF115) -> TRUEMedium
A116: =CONCATENATE(AE116,D116,AG116) -> TRUEMedium54 | B116: =RAND() -> 0.4217903931 | C116: Num | D116: Medium | E116: 27 | F116: Continue the pattern for three more numbers: | G116: =RANDBETWEEN(1,3)*100+RANDBETWEEN(1,99) -> 142 | H116: =G116+S116 -> 242 | I116: =H116+S116 -> 342 | J116: =I116+S116 -> 442 | K116: ____ | L116: ____ | M116: ____ | S116: 100 | T116: =CONCATENATE(F116," ",G116,", ",H116,", ",I116,", ",J116,", ",K116,", ",L116,", ",M116," ",N116," ",O116," ",P116," ",Q116," ",R116) -> Continue the pattern for three more numbers: 142, 242, 342, 442, ____, ____, ____ | U116: =J116+S116 -> 542 | V116: =U116+S116 -> 642 | AD116: =IF(OR(ISNA(U116),ISNA(V116),ISNA(W116),ISNA(X116),ISNA(Y116),ISNA(Z116),ISNA(AA116),ISNA(AB116),ISNA(AC116)),NA(),CONCATENATE(U116,", ",V116,W116,X116,Y116,Z116,AA116,AB116)) -> 542, 642 | AE116: =IF(ISNA(AD116),FALSE,IF(C116=$B$1,Worksheet!$B$3,IF(C116=$C$1,Worksheet!$B$4,IF(C116=$D$1,Worksheet!$B$5,IF(C116=$E$1,Worksheet!$B$6,IF(C116=$B$2,Worksheet!$B$7,IF(C116=$C$2,Worksheet!$D$3,IF(C116=$D$2,Worksheet!$D$4,IF(C116=$E$2,Worksheet!$D$5,IF(C116=$C$3,Worksheet!$D$6,IF(C116=$B$3,Worksheet!$D$7,FALSE))))))))))) -> TRUE | AF116: =IF(AE116,D116,"") -> Medium | AG116: =IF(AE116,COUNTIF($AF$5:AF116,AF116),"X") -> 54 | AH116: =CONCATENATE(AE116,AF116) -> TRUEMedium
A117: =CONCATENATE(AE117,D117,AG117) -> TRUEHard20 | B117: =RAND() -> 0.3637478783 | C117: Frac | D117: Hard | E117: 132 | F117: Fractions. What is | G117: 1/10 | H117: of | I117: =10*RANDBETWEEN(8,12) -> 80 | J117: ? | T117: =CONCATENATE(F117," ",G117," ",H117," ",I117," ",J117," ",K117," ",L117," ",M117," ",N117," ",O117," ",P117," ",Q117," ",R117) -> Fractions. What is 1/10 of 80 ? | U117: =I117/10 -> 8 | AD117: =IF(OR(ISNA(U117),ISNA(V117),ISNA(W117),ISNA(X117),ISNA(Y117),ISNA(Z117),ISNA(AA117),ISNA(AB117),ISNA(AC117)),NA(),CONCATENATE(U117,V117,W117,X117,Y117,Z117,AA117,AB117)) -> 8 | AE117: =IF(ISNA(AD117),FALSE,IF(C117=$B$1,Worksheet!$B$3,IF(C117=$C$1,Worksheet!$B$4,IF(C117=$D$1,Worksheet!$B$5,IF(C117=$E$1,Worksheet!$B$6,IF(C117=$B$2,Worksheet!$B$7,IF(C117=$C$2,Worksheet!$D$3,IF(C117=$D$2,Worksheet!$D$4,IF(C117=$E$2,Worksheet!$D$5,IF(C117=$C$3,Worksheet!$D$6,IF(C117=$B$3,Worksheet!$D$7,FALSE))))))))))) -> TRUE | AF117: =IF(AE117,D117,"") -> Hard | AG117: =IF(AE117,COUNTIF($AF$5:AF117,AF117),"X") -> 20 | AH117: =CONCATENATE(AE117,AF117) -> TRUEHard
A118: =CONCATENATE(AE118,D118,AG118) -> TRUEHard21 | B118: =RAND() -> 0.6578808877 | C118: Dec | D118: Hard | E118: 142 | F118: How many pence are there in £ | G118: =TEXT(10+RANDBETWEEN(1,99)/100,"#.00") -> 10.83 | H118: ? | T118: =CONCATENATE(F118,"",G118,"",H118," ",I118," ",J118," ",K118," ",L118," ",M118," ",N118," ",O118," ",P118," ",Q118," ",R118) -> How many pence are there in £10.83? | U118: =G118*100 -> 1083 | V118: p | AD118: =IF(OR(ISNA(U118),ISNA(V118),ISNA(W118),ISNA(X118),ISNA(Y118),ISNA(Z118),ISNA(AA118),ISNA(AB118),ISNA(AC118)),NA(),CONCATENATE(U118,V118,W118,X118,Y118,Z118,AA118,AB118)) -> 1083p | AE118: =IF(ISNA(AD118),FALSE,IF(C118=$B$1,Worksheet!$B$3,IF(C118=$C$1,Worksheet!$B$4,IF(C118=$D$1,Worksheet!$B$5,IF(C118=$E$1,Worksheet!$B$6,IF(C118=$B$2,Worksheet!$B$7,IF(C118=$C$2,Worksheet!$D$3,IF(C118=$D$2,Worksheet!$D$4,IF(C118=$E$2,Worksheet!$D$5,IF(C118=$C$3,Worksheet!$D$6,IF(C118=$B$3,Worksheet!$D$7,FALSE))))))))))) -> TRUE | AF118: =IF(AE118,D118,"") -> Hard | AG118: =IF(AE118,COUNTIF($AF$5:AF118,AF118),"X") -> 21 | AH118: =CONCATENATE(AE118,AF118) -> TRUEHard
A119: =CONCATENATE(AE119,D119,AG119) -> TRUEMedium55 | B119: =RAND() -> 0.2623459697 | C119: Num | D119: Medium | E119: 24 | F119: Continue the pattern for three more numbers: | G119: =RANDBETWEEN(11,93)*10+RANDBETWEEN(1,9) -> 167 | H119: =G119+S119 -> 164 | I119: =H119+S119 -> 161 | J119: =I119+S119 -> 158 | K119: ____ | L119: ____ | M119: ____ | S119: =RANDBETWEEN(2,5)*(-1) -> -3 | T119: =CONCATENATE(F119," ",G119,", ",H119,", ",I119,", ",J119,", ",K119,", ",L119,", ",M119," ",N119," ",O119," ",P119," ",Q119," ",R119) -> Continue the pattern for three more numbers: 167, 164, 161, 158, ____, ____, ____ | U119: =J119+S119 -> 155 | V119: =U119+S119 -> 152 | AD119: =IF(OR(ISNA(U119),ISNA(V119),ISNA(W119),ISNA(X119),ISNA(Y119),ISNA(Z119),ISNA(AA119),ISNA(AB119),ISNA(AC119)),NA(),CONCATENATE(U119,", ",V119,W119,X119,Y119,Z119,AA119,AB119)) -> 155, 152 | AE119: =IF(ISNA(AD119),FALSE,IF(C119=$B$1,Worksheet!$B$3,IF(C119=$C$1,Worksheet!$B$4,IF(C119=$D$1,Worksheet!$B$5,IF(C119=$E$1,Worksheet!$B$6,IF(C119=$B$2,Worksheet!$B$7,IF(C119=$C$2,Worksheet!$D$3,IF(C119=$D$2,Worksheet!$D$4,IF(C119=$E$2,Worksheet!$D$5,IF(C119=$C$3,Worksheet!$D$6,IF(C119=$B$3,Worksheet!$D$7,FALSE))))))))))) -> TRUE | AF119: =IF(AE119,D119,"") -> Medium | AG119: =IF(AE119,COUNTIF($AF$5:AF119,AF119),"X") -> 55 | AH119: =CONCATENATE(AE119,AF119) -> TRUEMedium
A120: =CONCATENATE(AE120,D120,AG120) -> TRUEMedium56 | B120: =RAND() -> 0.4917883912 | C120: Mult | D120: Medium | E120: 74 | F120: What is double | G120: =RANDBETWEEN(1,4)*10+RANDBETWEEN(0,4) -> 22 | H120: ? | T120: =CONCATENATE(F120," ",G120,"",H120," ",I120," ",J120," ",K120," ",L120," ",M120," ",N120," ",O120," ",P120," ",Q120," ",R120) -> What is double 22? | U120: =G120*2 -> 44 | AD120: =IF(OR(ISNA(U120),ISNA(V120),ISNA(W120),ISNA(X120),ISNA(Y120),ISNA(Z120),ISNA(AA120),ISNA(AB120),ISNA(AC120)),NA(),CONCATENATE(U120,V120,W120,X120,Y120,Z120,AA120,AB120)) -> 44 | AE120: =IF(ISNA(AD120),FALSE,IF(C120=$B$1,Worksheet!$B$3,IF(C120=$C$1,Worksheet!$B$4,IF(C120=$D$1,Worksheet!$B$5,IF(C120=$E$1,Worksheet!$B$6,IF(C120=$B$2,Worksheet!$B$7,IF(C120=$C$2,Worksheet!$D$3,IF(C120=$D$2,Worksheet!$D$4,IF(C120=$E$2,Worksheet!$D$5,IF(C120=$C$3,Worksheet!$D$6,IF(C120=$B$3,Worksheet!$D$7,FALSE))))))))))) -> TRUE | AF120: =IF(AE120,D120,"") -> Medium | AG120: =IF(AE120,COUNTIF($AF$5:AF120,AF120),"X") -> 56 | AH120: =CONCATENATE(AE120,AF120) -> TRUEMedium
A121: =CONCATENATE(AE121,D121,AG121) -> TRUEMedium57 | B121: =RAND() -> 0.474312389 | C121: Divide | D121: Medium | E121: 103 | F121: Divide: | G121: =5*RANDBETWEEN(1,10)+RANDBETWEEN(1,4) -> 44 | H121: ÷ | I121: 5 | J121: , showing the remainder | T121: =CONCATENATE(F121," ",G121," ",H121," ",I121," ",J121," ",K121," ",L121," ",M121," ",N121," ",O121," ",P121," ",Q121," ",R121) -> Divide: 44 ÷ 5 , showing the remainder | U121: =INT(G121/I121) -> 8 | V121: r | W121: =MOD(G121,I121) -> 4 | AD121: =IF(OR(ISNA(U121),ISNA(V121),ISNA(W121),ISNA(X121),ISNA(Y121),ISNA(Z121),ISNA(AA121),ISNA(AB121),ISNA(AC121)),NA(),CONCATENATE(U121,V121,W121,X121,Y121,Z121,AA121,AB121)) -> 8r4 | AE121: =IF(ISNA(AD121),FALSE,IF(C121=$B$1,Worksheet!$B$3,IF(C121=$C$1,Worksheet!$B$4,IF(C121=$D$1,Worksheet!$B$5,IF(C121=$E$1,Worksheet!$B$6,IF(C121=$B$2,Worksheet!$B$7,IF(C121=$C$2,Worksheet!$D$3,IF(C121=$D$2,Worksheet!$D$4,IF(C121=$E$2,Worksheet!$D$5,IF(C121=$C$3,Worksheet!$D$6,IF(C121=$B$3,Worksheet!$D$7,FALSE))))))))))) -> TRUE | AF121: =IF(AE121,D121,"") -> Medium | AG121: =IF(AE121,COUNTIF($AF$5:AF121,AF121),"X") -> 57 | AH121: =CONCATENATE(AE121,AF121) -> TRUEMedium
A122: =CONCATENATE(AE122,D122,AG122) -> TRUEHard22 | B122: =RAND() -> 0.04065863499 | C122: Frac | D122: Hard | E122: 130 | F122: Fractions. What is | G122: 1/4 | H122: of | I122: =4*RANDBETWEEN(8,12) -> 40 | J122: ? | T122: =CONCATENATE(F122," ",G122," ",H122," ",I122," ",J122," ",K122," ",L122," ",M122," ",N122," ",O122," ",P122," ",Q122," ",R122) -> Fractions. What is 1/4 of 40 ? | U122: =I122/4 -> 10 | AD122: =IF(OR(ISNA(U122),ISNA(V122),ISNA(W122),ISNA(X122),ISNA(Y122),ISNA(Z122),ISNA(AA122),ISNA(AB122),ISNA(AC122)),NA(),CONCATENATE(U122,V122,W122,X122,Y122,Z122,AA122,AB122)) -> 10 | AE122: =IF(ISNA(AD122),FALSE,IF(C122=$B$1,Worksheet!$B$3,IF(C122=$C$1,Worksheet!$B$4,IF(C122=$D$1,Worksheet!$B$5,IF(C122=$E$1,Worksheet!$B$6,IF(C122=$B$2,Worksheet!$B$7,IF(C122=$C$2,Worksheet!$D$3,IF(C122=$D$2,Worksheet!$D$4,IF(C122=$E$2,Worksheet!$D$5,IF(C122=$C$3,Worksheet!$D$6,IF(C122=$B$3,Worksheet!$D$7,FALSE))))))))))) -> TRUE | AF122: =IF(AE122,D122,"") -> Hard | AG122: =IF(AE122,COUNTIF($AF$5:AF122,AF122),"X") -> 22 | AH122: =CONCATENATE(AE122,AF122) -> TRUEHard
A123: =CONCATENATE(AE123,D123,AG123) -> TRUEMedium58 | B123: =RAND() -> 0.03619654937 | C123: Divide | D123: Medium | E123: 90 | F123: What is half of | G123: =RANDBETWEEN(6,9)*10 -> 70 | H123: ? | T123: =CONCATENATE(F123," ",G123,"",H123," ",I123," ",J123," ",K123," ",L123," ",M123," ",N123," ",O123," ",P123," ",Q123," ",R123) -> What is half of 70? | U123: =G123/2 -> 35 | AD123: =IF(OR(ISNA(U123),ISNA(V123),ISNA(W123),ISNA(X123),ISNA(Y123),ISNA(Z123),ISNA(AA123),ISNA(AB123),ISNA(AC123)),NA(),CONCATENATE(U123,V123,W123,X123,Y123,Z123,AA123,AB123)) -> 35 | AE123: =IF(ISNA(AD123),FALSE,IF(C123=$B$1,Worksheet!$B$3,IF(C123=$C$1,Worksheet!$B$4,IF(C123=$D$1,Worksheet!$B$5,IF(C123=$E$1,Worksheet!$B$6,IF(C123=$B$2,Worksheet!$B$7,IF(C123=$C$2,Worksheet!$D$3,IF(C123=$D$2,Worksheet!$D$4,IF(C123=$E$2,Worksheet!$D$5,IF(C123=$C$3,Worksheet!$D$6,IF(C123=$B$3,Worksheet!$D$7,FALSE))))))))))) -> TRUE | AF123: =IF(AE123,D123,"") -> Medium | AG123: =IF(AE123,COUNTIF($AF$5:AF123,AF123),"X") -> 58 | AH123: =CONCATENATE(AE123,AF123) -> TRUEMedium
A124: =CONCATENATE(AE124,D124,AG124) -> TRUEMedium59 | B124: =RAND() -> 0.3119098285 | C124: +- | D124: Medium | E124: 40 | F124: Fill in the missing number: | G124: =RANDBETWEEN(1,8)*10+RANDBETWEEN(1,9) -> 69 | H124: + ____ = | I124: 100 | T124: =CONCATENATE(F124," ",G124," ",H124," ",I124," ",J124," ",K124," ",L124," ",M124," ",N124," ",O124," ",P124," ",Q124," ",R124) -> Fill in the missing number: 69 + ____ = 100 | U124: =I124-G124 -> 31 | AD124: =IF(OR(ISNA(U124),ISNA(V124),ISNA(W124),ISNA(X124),ISNA(Y124),ISNA(Z124),ISNA(AA124),ISNA(AB124),ISNA(AC124)),NA(),CONCATENATE(U124,V124,W124,X124,Y124,Z124,AA124,AB124)) -> 31 | AE124: =IF(ISNA(AD124),FALSE,IF(C124=$B$1,Worksheet!$B$3,IF(C124=$C$1,Worksheet!$B$4,IF(C124=$D$1,Worksheet!$B$5,IF(C124=$E$1,Worksheet!$B$6,IF(C124=$B$2,Worksheet!$B$7,IF(C124=$C$2,Worksheet!$D$3,IF(C124=$D$2,Worksheet!$D$4,IF(C124=$E$2,Worksheet!$D$5,IF(C124=$C$3,Worksheet!$D$6,IF(C124=$B$3,Worksheet!$D$7,FALSE))))))))))) -> TRUE | AF124: =IF(AE124,D124,"") -> Medium | AG124: =IF(AE124,COUNTIF($AF$5:AF124,AF124),"X") -> 59 | AH124: =CONCATENATE(AE124,AF124) -> TRUEMedium
A125: =CONCATENATE(AE125,D125,AG125) -> TRUEEasy40 | B125: =RAND() -> 0.4646813351 | C125: Num | D125: Easy | E125: 20 | F125: Continue the pattern for three more numbers: | G125: =RANDBETWEEN(11,95)*10 -> 330 | H125: =G125+S125 -> 340 | I125: =H125+S125 -> 350 | J125: =I125+S125 -> 360 | K125: ____ | L125: ____ | M125: ____ | S125: 10 | T125: =CONCATENATE(F125," ",G125,", ",H125,", ",I125,", ",J125,", ",K125,", ",L125,", ",M125," ",N125," ",O125," ",P125," ",Q125," ",R125) -> Continue the pattern for three more numbers: 330, 340, 350, 360, ____, ____, ____ | U125: =J125+S125 -> 370 | V125: =U125+S125 -> 380 | AD125: =IF(OR(ISNA(U125),ISNA(V125),ISNA(W125),ISNA(X125),ISNA(Y125),ISNA(Z125),ISNA(AA125),ISNA(AB125),ISNA(AC125)),NA(),CONCATENATE(U125,", ",V125,W125,X125,Y125,Z125,AA125,AB125)) -> 370, 380 | AE125: =IF(ISNA(AD125),FALSE,IF(C125=$B$1,Worksheet!$B$3,IF(C125=$C$1,Worksheet!$B$4,IF(C125=$D$1,Worksheet!$B$5,IF(C125=$E$1,Worksheet!$B$6,IF(C125=$B$2,Worksheet!$B$7,IF(C125=$C$2,Worksheet!$D$3,IF(C125=$D$2,Worksheet!$D$4,IF(C125=$E$2,Worksheet!$D$5,IF(C125=$C$3,Worksheet!$D$6,IF(C125=$B$3,Worksheet!$D$7,FALSE))))))))))) -> TRUE | AF125: =IF(AE125,D125,"") -> Easy | AG125: =IF(AE125,COUNTIF($AF$5:AF125,AF125),"X") -> 40 | AH125: =CONCATENATE(AE125,AF125) -> TRUEEasy
A126: =CONCATENATE(AE126,D126,AG126) -> TRUEEasy41 | B126: =RAND() -> 0.8466530528 | C126: Num | D126: Easy | E126: 18 | F126: Continue the pattern for three more numbers: | G126: =RANDBETWEEN(30,80) -> 34 | H126: =G126+S126 -> 37 | I126: =H126+S126 -> 40 | J126: =I126+S126 -> 43 | K126: ____ | L126: ____ | M126: ____ | S126: =RANDBETWEEN(2,5) -> 3 | T126: =CONCATENATE(F126," ",G126,", ",H126,", ",I126,", ",J126,", ",K126,", ",L126,", ",M126," ",N126," ",O126," ",P126," ",Q126," ",R126) -> Continue the pattern for three more numbers: 34, 37, 40, 43, ____, ____, ____ | U126: =J126+S126 -> 46 | V126: =U126+S126 -> 49 | AD126: =IF(OR(ISNA(U126),ISNA(V126),ISNA(W126),ISNA(X126),ISNA(Y126),ISNA(Z126),ISNA(AA126),ISNA(AB126),ISNA(AC126)),NA(),CONCATENATE(U126,", ",V126,W126,X126,Y126,Z126,AA126,AB126)) -> 46, 49 | AE126: =IF(ISNA(AD126),FALSE,IF(C126=$B$1,Worksheet!$B$3,IF(C126=$C$1,Worksheet!$B$4,IF(C126=$D$1,Worksheet!$B$5,IF(C126=$E$1,Worksheet!$B$6,IF(C126=$B$2,Worksheet!$B$7,IF(C126=$C$2,Worksheet!$D$3,IF(C126=$D$2,Worksheet!$D$4,IF(C126=$E$2,Worksheet!$D$5,IF(C126=$C$3,Worksheet!$D$6,IF(C126=$B$3,Worksheet!$D$7,FALSE))))))))))) -> TRUE | AF126: =IF(AE126,D126,"") -> Easy | AG126: =IF(AE126,COUNTIF($AF$5:AF126,AF126),"X") -> 41 | AH126: =CONCATENATE(AE126,AF126) -> TRUEEasy
A127: =CONCATENATE(AE127,D127,AG127) -> TRUEMedium60 | B127: =RAND() -> 0.2877859228 | C127: Num | D127: Medium | E127: 5 | F127: Write the number " | G127: =CHOOSE(RANDBETWEEN(1,9),"one","two","three","four","five","six","seven","eight","nine") -> three | H127: thousand | I127: and | J127: =IF(S127=1,"",CHOOSE(RANDBETWEEN(1,9),"one","two","three","four","five","six","seven","eight","nine")) -> four | K127: " in figures | T127: =CONCATENATE(F127,"",G127," ",H127," ",I127," ",J127,"",K127," ",L127," ",M127," ",N127," ",O127," ",P127," ",Q127," ",R127) -> Write the number "three thousand and four" in figures | U127: =IF(G127="one",1,IF(G127="two",2,IF(G127="three",3,IF(G127="four",4,IF(G127="five",5,IF(G127="six",6,IF(G127="seven",7,IF(G127="eight",8,9)))))))) -> 3 | V127: 0 | W127: 0 | X127: =IF(S127<>1,IF(J127="one",1,IF(J127="two",2,IF(J127="three",3,IF(J127="four",4,IF(J127="five",5,IF(J127="six",6,IF(J127="seven",7,IF(J127="eight",8,9)))))))),"") -> 4 | AD127: =IF(OR(ISNA(U127),ISNA(V127),ISNA(W127),ISNA(X127),ISNA(Y127),ISNA(Z127),ISNA(AA127),ISNA(AB127),ISNA(AC127)),NA(),TEXT(CONCATENATE(U127,V127,W127,X127,Y127,Z127,AA127,AB127),"#,###")) -> 3,004 | AE127: =IF(ISNA(AD127),FALSE,IF(C127=$B$1,Worksheet!$B$3,IF(C127=$C$1,Worksheet!$B$4,IF(C127=$D$1,Worksheet!$B$5,IF(C127=$E$1,Worksheet!$B$6,IF(C127=$B$2,Worksheet!$B$7,IF(C127=$C$2,Worksheet!$D$3,IF(C127=$D$2,Worksheet!$D$4,IF(C127=$E$2,Worksheet!$D$5,IF(C127=$C$3,Worksheet!$D$6,IF(C127=$B$3,Worksheet!$D$7,FALSE))))))))))) -> TRUE | AF127: =IF(AE127,D127,"") -> Medium | AG127: =IF(AE127,COUNTIF($AF$5:AF127,AF127),"X") -> 60 | AH127: =CONCATENATE(AE127,AF127) -> TRUEMedium
A128: =CONCATENATE(AE128,D128,AG128) -> TRUEHard23 | B128: =RAND() -> 0.1916739141 | C128: Choose | D128: Hard | E128: 111 | F128: =CHOOSE(RANDBETWEEN(1,4),"Sean","Kyle","Robbie","Jordan") -> Jordan | G128: earns | H128: =RANDBETWEEN(20,50) -> 43 | I128: on Wednesday, | J128: =RANDBETWEEN(20,50) -> 32 | K128: on Thursday and | M128: =RANDBETWEEN(20,50) -> 41 | N128: on Friday. How much does he earn in total? | T128: =CONCATENATE(F128," ",G128," £",H128," ",I128," £",J128," ",K128," ",L128," £",M128," ",N128," ",O128," ",P128," ",Q128," ",R128) -> Jordan earns £43 on Wednesday, £32 on Thursday and £41 on Friday. How much does he earn in total? | U128: =H128+J128+M128 -> 116 | AD128: =IF(OR(ISNA(U128),ISNA(V128),ISNA(W128),ISNA(X128),ISNA(Y128),ISNA(Z128),ISNA(AA128),ISNA(AB128),ISNA(AC128)),NA(),CONCATENATE(U128,V128,W128,X128,Y128,Z128,AA128,AB128)) -> 116 | AE128: =IF(ISNA(AD128),FALSE,IF(C128=$B$1,Worksheet!$B$3,IF(C128=$C$1,Worksheet!$B$4,IF(C128=$D$1,Worksheet!$B$5,IF(C128=$E$1,Worksheet!$B$6,IF(C128=$B$2,Worksheet!$B$7,IF(C128=$C$2,Worksheet!$D$3,IF(C128=$D$2,Worksheet!$D$4,IF(C128=$E$2,Worksheet!$D$5,IF(C128=$C$3,Worksheet!$D$6,IF(C128=$B$3,Worksheet!$D$7,FALSE))))))))))) -> TRUE | AF128: =IF(AE128,D128,"") -> Hard | AG128: =IF(AE128,COUNTIF($AF$5:AF128,AF128),"X") -> 23 | AH128: =CONCATENATE(AE128,AF128) -> TRUEHard
A129: =CONCATENATE(AE129,D129,AG129) -> TRUEMedium61 | B129: =RAND() -> 0.3226022707 | C129: Frac | D129: Medium | E129: 127 | F129: Fractions. What is | G129: 1/10 | H129: of | I129: =10*RANDBETWEEN(5,10) -> 60 | J129: ? | T129: =CONCATENATE(F129," ",G129," ",H129," ",I129," ",J129," ",K129," ",L129," ",M129," ",N129," ",O129," ",P129," ",Q129," ",R129) -> Fractions. What is 1/10 of 60 ? | U129: =I129/10 -> 6 | AD129: =IF(OR(ISNA(U129),ISNA(V129),ISNA(W129),ISNA(X129),ISNA(Y129),ISNA(Z129),ISNA(AA129),ISNA(AB129),ISNA(AC129)),NA(),CONCATENATE(U129,V129,W129,X129,Y129,Z129,AA129,AB129)) -> 6 | AE129: =IF(ISNA(AD129),FALSE,IF(C129=$B$1,Worksheet!$B$3,IF(C129=$C$1,Worksheet!$B$4,IF(C129=$D$1,Worksheet!$B$5,IF(C129=$E$1,Worksheet!$B$6,IF(C129=$B$2,Worksheet!$B$7,IF(C129=$C$2,Worksheet!$D$3,IF(C129=$D$2,Worksheet!$D$4,IF(C129=$E$2,Worksheet!$D$5,IF(C129=$C$3,Worksheet!$D$6,IF(C129=$B$3,Worksheet!$D$7,FALSE))))))))))) -> TRUE | AF129: =IF(AE129,D129,"") -> Medium | AG129: =IF(AE129,COUNTIF($AF$5:AF129,AF129),"X") -> 61 | AH129: =CONCATENATE(AE129,AF129) -> TRUEMedium
A130: =CONCATENATE(AE130,D130,AG130) -> TRUEMedium62 | B130: =RAND() -> 0.277599835 | C130: Divide | D130: Medium | E130: 88 | F130: What is half of | G130: =20*RANDBETWEEN(1,2)+2*RANDBETWEEN(0,4) -> 48 | H130: ? | T130: =CONCATENATE(F130," ",G130,"",H130," ",I130," ",J130," ",K130," ",L130," ",M130," ",N130," ",O130," ",P130," ",Q130," ",R130) -> What is half of 48? | U130: =G130/2 -> 24 | AD130: =IF(OR(ISNA(U130),ISNA(V130),ISNA(W130),ISNA(X130),ISNA(Y130),ISNA(Z130),ISNA(AA130),ISNA(AB130),ISNA(AC130)),NA(),CONCATENATE(U130,V130,W130,X130,Y130,Z130,AA130,AB130)) -> 24 | AE130: =IF(ISNA(AD130),FALSE,IF(C130=$B$1,Worksheet!$B$3,IF(C130=$C$1,Worksheet!$B$4,IF(C130=$D$1,Worksheet!$B$5,IF(C130=$E$1,Worksheet!$B$6,IF(C130=$B$2,Worksheet!$B$7,IF(C130=$C$2,Worksheet!$D$3,IF(C130=$D$2,Worksheet!$D$4,IF(C130=$E$2,Worksheet!$D$5,IF(C130=$C$3,Worksheet!$D$6,IF(C130=$B$3,Worksheet!$D$7,FALSE))))))))))) -> TRUE | AF130: =IF(AE130,D130,"") -> Medium | AG130: =IF(AE130,COUNTIF($AF$5:AF130,AF130),"X") -> 62 | AH130: =CONCATENATE(AE130,AF130) -> TRUEMedium
A131: =CONCATENATE(AE131,D131,AG131) -> TRUEEasy42 | B131: =RAND() -> 0.4968771056 | C131: +- | D131: Easy | E131: 59 | F131: Take away: | G131: =RANDBETWEEN(2,8)*10+RANDBETWEEN(5,9) -> 67 | H131: – | I131: =RANDBETWEEN(1,5) -> 1 | T131: =CONCATENATE(F131," ",G131," ",H131," ",I131," ",J131," ",K131," ",L131," ",M131," ",N131," ",O131," ",P131," ",Q131," ",R131) -> Take away: 67 – 1 | U131: =G131-I131 -> 66 | AD131: =IF(OR(ISNA(U131),ISNA(V131),ISNA(W131),ISNA(X131),ISNA(Y131),ISNA(Z131),ISNA(AA131),ISNA(AB131),ISNA(AC131)),NA(),CONCATENATE(U131,V131,W131,X131,Y131,Z131,AA131,AB131)) -> 66 | AE131: =IF(ISNA(AD131),FALSE,IF(C131=$B$1,Worksheet!$B$3,IF(C131=$C$1,Worksheet!$B$4,IF(C131=$D$1,Worksheet!$B$5,IF(C131=$E$1,Worksheet!$B$6,IF(C131=$B$2,Worksheet!$B$7,IF(C131=$C$2,Worksheet!$D$3,IF(C131=$D$2,Worksheet!$D$4,IF(C131=$E$2,Worksheet!$D$5,IF(C131=$C$3,Worksheet!$D$6,IF(C131=$B$3,Worksheet!$D$7,FALSE))))))))))) -> TRUE | AF131: =IF(AE131,D131,"") -> Easy | AG131: =IF(AE131,COUNTIF($AF$5:AF131,AF131),"X") -> 42 | AH131: =CONCATENATE(AE131,AF131) -> TRUEEasy
A132: =CONCATENATE(AE132,D132,AG132) -> TRUEHard24 | B132: =RAND() -> 0.160175658 | C132: Mult | D132: Hard | E132: 73 | F132: What is double | G132: =RANDBETWEEN(1,4)*10+RANDBETWEEN(5,9) -> 46 | H132: ? | T132: =CONCATENATE(F132," ",G132,"",H132," ",I132," ",J132," ",K132," ",L132," ",M132," ",N132," ",O132," ",P132," ",Q132," ",R132) -> What is double 46? | U132: =G132*2 -> 92 | AD132: =IF(OR(ISNA(U132),ISNA(V132),ISNA(W132),ISNA(X132),ISNA(Y132),ISNA(Z132),ISNA(AA132),ISNA(AB132),ISNA(AC132)),NA(),CONCATENATE(U132,V132,W132,X132,Y132,Z132,AA132,AB132)) -> 92 | AE132: =IF(ISNA(AD132),FALSE,IF(C132=$B$1,Worksheet!$B$3,IF(C132=$C$1,Worksheet!$B$4,IF(C132=$D$1,Worksheet!$B$5,IF(C132=$E$1,Worksheet!$B$6,IF(C132=$B$2,Worksheet!$B$7,IF(C132=$C$2,Worksheet!$D$3,IF(C132=$D$2,Worksheet!$D$4,IF(C132=$E$2,Worksheet!$D$5,IF(C132=$C$3,Worksheet!$D$6,IF(C132=$B$3,Worksheet!$D$7,FALSE))))))))))) -> TRUE | AF132: =IF(AE132,D132,"") -> Hard | AG132: =IF(AE132,COUNTIF($AF$5:AF132,AF132),"X") -> 24 | AH132: =CONCATENATE(AE132,AF132) -> TRUEHard
A133: =CONCATENATE(AE133,D133,AG133) -> TRUEMedium63 | B133: =RAND() -> 0.5987104156 | C133: % | D133: Medium | E133: 151 | F133: What does 50% mean? | T133: =CONCATENATE(F133," ",G133," ",H133," ",I133," ",J133," ",K133," ",L133," ",M133," ",N133," ",O133," ",P133," ",Q133," ",R133) -> What does 50% mean? | U133: half | AD133: =IF(OR(ISNA(U133),ISNA(V133),ISNA(W133),ISNA(X133),ISNA(Y133),ISNA(Z133),ISNA(AA133),ISNA(AB133),ISNA(AC133)),NA(),CONCATENATE(U133,V133,W133,X133,Y133,Z133,AA133,AB133)) -> half | AE133: =IF(ISNA(AD133),FALSE,IF(C133=$B$1,Worksheet!$B$3,IF(C133=$C$1,Worksheet!$B$4,IF(C133=$D$1,Worksheet!$B$5,IF(C133=$E$1,Worksheet!$B$6,IF(C133=$B$2,Worksheet!$B$7,IF(C133=$C$2,Worksheet!$D$3,IF(C133=$D$2,Worksheet!$D$4,IF(C133=$E$2,Worksheet!$D$5,IF(C133=$C$3,Worksheet!$D$6,IF(C133=$B$3,Worksheet!$D$7,FALSE))))))))))) -> TRUE | AF133: =IF(AE133,D133,"") -> Medium | AG133: =IF(AE133,COUNTIF($AF$5:AF133,AF133),"X") -> 63 | AH133: =CONCATENATE(AE133,AF133) -> TRUEMedium
A134: =CONCATENATE(AE134,D134,AG134) -> TRUEMedium64 | B134: =RAND() -> 0.4634424977 | C134: +- | D134: Medium | E134: 48 | F134: Take away: 100 – | G134: =RANDBETWEEN(1,9)*10+RANDBETWEEN(1,9) -> 67 | T134: =CONCATENATE(F134," ",G134," ",H134," ",I134," ",J134," ",K134," ",L134," ",M134," ",N134," ",O134," ",P134," ",Q134," ",R134) -> Take away: 100 – 67 | U134: =100-G134 -> 33 | AD134: =IF(OR(ISNA(U134),ISNA(V134),ISNA(W134),ISNA(X134),ISNA(Y134),ISNA(Z134),ISNA(AA134),ISNA(AB134),ISNA(AC134)),NA(),CONCATENATE(U134,V134,W134,X134,Y134,Z134,AA134,AB134)) -> 33 | AE134: =IF(ISNA(AD134),FALSE,IF(C134=$B$1,Worksheet!$B$3,IF(C134=$C$1,Worksheet!$B$4,IF(C134=$D$1,Worksheet!$B$5,IF(C134=$E$1,Worksheet!$B$6,IF(C134=$B$2,Worksheet!$B$7,IF(C134=$C$2,Worksheet!$D$3,IF(C134=$D$2,Worksheet!$D$4,IF(C134=$E$2,Worksheet!$D$5,IF(C134=$C$3,Worksheet!$D$6,IF(C134=$B$3,Worksheet!$D$7,FALSE))))))))))) -> TRUE | AF134: =IF(AE134,D134,"") -> Medium | AG134: =IF(AE134,COUNTIF($AF$5:AF134,AF134),"X") -> 64 | AH134: =CONCATENATE(AE134,AF134) -> TRUEMedium
A135: =CONCATENATE(AE135,D135,AG135) -> TRUEEasy43 | B135: =RAND() -> 0.07800071944 | C135: Num | D135: Easy | E135: 15 | F135: Fill in the missing numbers: | G135: =RANDBETWEEN(7,9)*100 -> 800 | H135: =G135+S135 -> 700 | I135: =H135+S135 -> 600 | J135: ____ | K135: ____ | L135: =V135+S135 -> 300 | M135: =L135+S135 -> 200 | S135: -100 | T135: =CONCATENATE(F135," ",G135,", ",H135,", ",I135,", ",J135,", ",K135,", ",L135,", ",M135," ",N135," ",O135," ",P135," ",Q135," ",R135) -> Fill in the missing numbers: 800, 700, 600, ____, ____, 300, 200 | U135: =I135+S135 -> 500 | V135: =U135+S135 -> 400 | AD135: =IF(OR(ISNA(U135),ISNA(V135),ISNA(W135),ISNA(X135),ISNA(Y135),ISNA(Z135),ISNA(AA135),ISNA(AB135),ISNA(AC135)),NA(),CONCATENATE(U135,", ",V135,W135,X135,Y135,Z135,AA135,AB135)) -> 500, 400 | AE135: =IF(ISNA(AD135),FALSE,IF(C135=$B$1,Worksheet!$B$3,IF(C135=$C$1,Worksheet!$B$4,IF(C135=$D$1,Worksheet!$B$5,IF(C135=$E$1,Worksheet!$B$6,IF(C135=$B$2,Worksheet!$B$7,IF(C135=$C$2,Worksheet!$D$3,IF(C135=$D$2,Worksheet!$D$4,IF(C135=$E$2,Worksheet!$D$5,IF(C135=$C$3,Worksheet!$D$6,IF(C135=$B$3,Worksheet!$D$7,FALSE))))))))))) -> TRUE | AF135: =IF(AE135,D135,"") -> Easy | AG135: =IF(AE135,COUNTIF($AF$5:AF135,AF135),"X") -> 43 | AH135: =CONCATENATE(AE135,AF135) -> TRUEEasy
A136: =CONCATENATE(AE136,D136,AG136) -> TRUEHard25 | B136: =RAND() -> 0.7258252817 | C136: +- | D136: Hard | E136: 49 | F136: Take away: 100 – | G136: =RANDBETWEEN(1,9)*10+RANDBETWEEN(1,9) -> 23 | T136: =CONCATENATE(F136," ",G136," ",H136," ",I136," ",J136," ",K136," ",L136," ",M136," ",N136," ",O136," ",P136," ",Q136," ",R136) -> Take away: 100 – 23 | U136: =100-G136 -> 77 | AD136: =IF(OR(ISNA(U136),ISNA(V136),ISNA(W136),ISNA(X136),ISNA(Y136),ISNA(Z136),ISNA(AA136),ISNA(AB136),ISNA(AC136)),NA(),CONCATENATE(U136,V136,W136,X136,Y136,Z136,AA136,AB136)) -> 77 | AE136: =IF(ISNA(AD136),FALSE,IF(C136=$B$1,Worksheet!$B$3,IF(C136=$C$1,Worksheet!$B$4,IF(C136=$D$1,Worksheet!$B$5,IF(C136=$E$1,Worksheet!$B$6,IF(C136=$B$2,Worksheet!$B$7,IF(C136=$C$2,Worksheet!$D$3,IF(C136=$D$2,Worksheet!$D$4,IF(C136=$E$2,Worksheet!$D$5,IF(C136=$C$3,Worksheet!$D$6,IF(C136=$B$3,Worksheet!$D$7,FALSE))))))))))) -> TRUE | AF136: =IF(AE136,D136,"") -> Hard | AG136: =IF(AE136,COUNTIF($AF$5:AF136,AF136),"X") -> 25 | AH136: =CONCATENATE(AE136,AF136) -> TRUEHard
A137: =CONCATENATE(AE137,D137,AG137) -> TRUEHard26 | B137: =RAND() -> 0.2161010005 | C137: Num | D137: Hard | E137: 39 | F137: Write these numbers in order from | G137: =CHOOSE(RANDBETWEEN(1,2),"smallest to biggest:","biggest to smallest:") -> biggest to smallest: | H137: =IF($O137=1,$P137*1000,IF($O137=2,$Q137*1000,IF($O137=3,$R137*1000,$S137*1000)))+IF(RAND()<0.5,$R137,$S137)*100+IF(RAND()<0.5,$P137,$Q137)*10+CHOOSE(RANDBETWEEN(1,4),$P137,$Q137,$R137,$S137) -> 2525 | I137: =IF($O137=1,$P137*1000,IF($O137=2,$Q137*1000,IF($O137=3,$R137*1000,$S137*1000)))+IF(RAND()<0.5,$R137,$S137)*100+IF(RAND()<0.5,$P137,$Q137)*10+CHOOSE(RANDBETWEEN(1,4),$P137,$Q137,$R137,$S137) -> 2595 | J137: =IF($O137=1,$P137*1000,IF($O137=2,$Q137*1000,IF($O137=3,$R137*1000,$S137*1000)))+IF(RAND()<0.5,$R137,$S137)*100+IF(RAND()<0.5,$P137,$Q137)*10+CHOOSE(RANDBETWEEN(1,4),$P137,$Q137,$R137,$S137) -> 2529 | K137: =IF($O137=1,$P137*1000,IF($O137=2,$Q137*1000,IF($O137=3,$R137*1000,$S137*1000)))+IF(RAND()<0.5,$R137,$S137)*100+IF(RAND()<0.5,$P137,$Q137)*10+CHOOSE(RANDBETWEEN(1,4),$P137,$Q137,$R137,$S137) -> 2592 | O137: =RANDBETWEEN(1,4) -> 1 | P137: =RANDBETWEEN(1,9) -> 2 | Q137: =RANDBETWEEN(1,9) -> 9 | R137: =RANDBETWEEN(1,9) -> 5 | S137: =RANDBETWEEN(1,9) -> 5 | T137: =CONCATENATE(F137," ",G137," ",H137,", ",I137,", ",J137,", ",K137," ",L137," ",M137," ",N137) -> Write these numbers in order from biggest to smallest: 2525, 2595, 2529, 2592 | U137: =IF($G137="smallest to biggest:",LARGE($H137:$K137,4),LARGE($H137:$K137,1)) -> 2595 | V137: =IF($G137="smallest to biggest:",LARGE($H137:$K137,3),LARGE($H137:$K137,2)) -> 2592 | W137: =IF($G137="smallest to biggest:",LARGE($H137:$K137,2),LARGE($H137:$K137,3)) -> 2529 | X137: =IF($G137="smallest to biggest:",LARGE($H137:$K137,1),LARGE($H137:$K137,4)) -> 2525 | Z137: =IF(OR(H137=I137,H137=J137,H137=K137,I137=J137,I137=K137,J137=K137),NA(),"") ->  | AD137: =IF(OR(ISNA(U137),ISNA(V137),ISNA(W137),ISNA(X137),ISNA(Y137),ISNA(Z137),ISNA(AA137),ISNA(AB137),ISNA(AC137)),NA(),CONCATENATE(U137,", ",V137,", ",W137,", ",X137,Y137,Z137,AA137,AB137)) -> 2595, 2592, 2529, 2525 | AE137: =IF(ISNA(AD137),FALSE,IF(C137=$B$1,Worksheet!$B$3,IF(C137=$C$1,Worksheet!$B$4,IF(C137=$D$1,Worksheet!$B$5,IF(C137=$E$1,Worksheet!$B$6,IF(C137=$B$2,Worksheet!$B$7,IF(C137=$C$2,Worksheet!$D$3,IF(C137=$D$2,Worksheet!$D$4,IF(C137=$E$2,Worksheet!$D$5,IF(C137=$C$3,Worksheet!$D$6,IF(C137=$B$3,Worksheet!$D$7,FALSE))))))))))) -> TRUE | AF137: =IF(AE137,D137,"") -> Hard | AG137: =IF(AE137,COUNTIF($AF$5:AF137,AF137),"X") -> 26 | AH137: =CONCATENATE(AE137,AF137) -> TRUEHard
A138: =CONCATENATE(AE138,D138,AG138) -> TRUEMedium65 | B138: =RAND() -> 0.09347043592 | C138: Choose | D138: Medium | E138: 113 | F138: One | G138: =CHOOSE(RANDBETWEEN(1,3),"sweet","pencil","rubber") -> rubber | H138: costs | I138: =RANDBETWEEN(6,9) -> 9 | J138: p. How much do | K138: =RANDBETWEEN(2,5) -> 3 | L138: =CONCATENATE(G138,"s") -> rubbers | M138: cost? | T138: =CONCATENATE(F138," ",G138," ",H138," ",I138,"",J138," ",K138," ",L138," ",M138," ",N138," ",O138," ",P138," ",Q138," ",R138) -> One rubber costs 9p. How much do 3 rubbers cost? | U138: =I138*K138 -> 27 | V138: p | AD138: =IF(OR(ISNA(U138),ISNA(V138),ISNA(W138),ISNA(X138),ISNA(Y138),ISNA(Z138),ISNA(AA138),ISNA(AB138),ISNA(AC138)),NA(),CONCATENATE(U138,V138,W138,X138,Y138,Z138,AA138,AB138)) -> 27p | AE138: =IF(ISNA(AD138),FALSE,IF(C138=$B$1,Worksheet!$B$3,IF(C138=$C$1,Worksheet!$B$4,IF(C138=$D$1,Worksheet!$B$5,IF(C138=$E$1,Worksheet!$B$6,IF(C138=$B$2,Worksheet!$B$7,IF(C138=$C$2,Worksheet!$D$3,IF(C138=$D$2,Worksheet!$D$4,IF(C138=$E$2,Worksheet!$D$5,IF(C138=$C$3,Worksheet!$D$6,IF(C138=$B$3,Worksheet!$D$7,FALSE))))))))))) -> TRUE | AF138: =IF(AE138,D138,"") -> Medium | AG138: =IF(AE138,COUNTIF($AF$5:AF138,AF138),"X") -> 65 | AH138: =CONCATENATE(AE138,AF138) -> TRUEMedium
A139: =CONCATENATE(AE139,D139,AG139) -> TRUEEasy44 | B139: =RAND() -> 0.7871064326 | C139: +- | D139: Easy | E139: 47 | F139: Fill in the missing number: | G139: ____ + | H139: =RANDBETWEEN(1,9)*100 -> 100 | I139: = | J139: 1000 | T139: =CONCATENATE(F139," ",G139," ",H139," ",I139," ",J139," ",K139," ",L139," ",M139," ",N139," ",O139," ",P139," ",Q139," ",R139) -> Fill in the missing number: ____ + 100 = 1000 | U139: =J139-H139 -> 900 | AD139: =IF(OR(ISNA(U139),ISNA(V139),ISNA(W139),ISNA(X139),ISNA(Y139),ISNA(Z139),ISNA(AA139),ISNA(AB139),ISNA(AC139)),NA(),CONCATENATE(U139,V139,W139,X139,Y139,Z139,AA139,AB139)) -> 900 | AE139: =IF(ISNA(AD139),FALSE,IF(C139=$B$1,Worksheet!$B$3,IF(C139=$C$1,Worksheet!$B$4,IF(C139=$D$1,Worksheet!$B$5,IF(C139=$E$1,Worksheet!$B$6,IF(C139=$B$2,Worksheet!$B$7,IF(C139=$C$2,Worksheet!$D$3,IF(C139=$D$2,Worksheet!$D$4,IF(C139=$E$2,Worksheet!$D$5,IF(C139=$C$3,Worksheet!$D$6,IF(C139=$B$3,Worksheet!$D$7,FALSE))))))))))) -> TRUE | AF139: =IF(AE139,D139,"") -> Easy | AG139: =IF(AE139,COUNTIF($AF$5:AF139,AF139),"X") -> 44 | AH139: =CONCATENATE(AE139,AF139) -> TRUEEasy
A140: =CONCATENATE(AE140,D140,AG140) -> TRUEMedium66 | B140: =RAND() -> 0.833372268 | C140: Mult | D140: Medium | E140: 77 | F140: What is | G140: =RANDBETWEEN(2,5) -> 3 | H140: × | I140: =RANDBETWEEN(5,9) -> 6 | J140: ? | T140: =CONCATENATE(F140," ",G140," ",H140," ",I140," ",J140," ",K140," ",L140," ",M140," ",N140," ",O140," ",P140," ",Q140," ",R140) -> What is 3 × 6 ? | U140: =G140*I140 -> 18 | AD140: =IF(OR(ISNA(U140),ISNA(V140),ISNA(W140),ISNA(X140),ISNA(Y140),ISNA(Z140),ISNA(AA140),ISNA(AB140),ISNA(AC140)),NA(),CONCATENATE(U140,V140,W140,X140,Y140,Z140,AA140,AB140)) -> 18 | AE140: =IF(ISNA(AD140),FALSE,IF(C140=$B$1,Worksheet!$B$3,IF(C140=$C$1,Worksheet!$B$4,IF(C140=$D$1,Worksheet!$B$5,IF(C140=$E$1,Worksheet!$B$6,IF(C140=$B$2,Worksheet!$B$7,IF(C140=$C$2,Worksheet!$D$3,IF(C140=$D$2,Worksheet!$D$4,IF(C140=$E$2,Worksheet!$D$5,IF(C140=$C$3,Worksheet!$D$6,IF(C140=$B$3,Worksheet!$D$7,FALSE))))))))))) -> TRUE | AF140: =IF(AE140,D140,"") -> Medium | AG140: =IF(AE140,COUNTIF($AF$5:AF140,AF140),"X") -> 66 | AH140: =CONCATENATE(AE140,AF140) -> TRUEMedium
A141: =CONCATENATE(AE141,D141,AG141) -> TRUEMedium67 | B141: =RAND() -> 0.2026953322 | C141: Frac | D141: Medium | E141: 123 | F141: Fractions. What is | G141: 1/2 | H141: of | I141: =2*RANDBETWEEN(5,10) -> 16 | J141: ? | T141: =CONCATENATE(F141," ",G141," ",H141," ",I141," ",J141," ",K141," ",L141," ",M141," ",N141," ",O141," ",P141," ",Q141," ",R141) -> Fractions. What is 1/2 of 16 ? | U141: =I141/2 -> 8 | AD141: =IF(OR(ISNA(U141),ISNA(V141),ISNA(W141),ISNA(X141),ISNA(Y141),ISNA(Z141),ISNA(AA141),ISNA(AB141),ISNA(AC141)),NA(),CONCATENATE(U141,V141,W141,X141,Y141,Z141,AA141,AB141)) -> 8 | AE141: =IF(ISNA(AD141),FALSE,IF(C141=$B$1,Worksheet!$B$3,IF(C141=$C$1,Worksheet!$B$4,IF(C141=$D$1,Worksheet!$B$5,IF(C141=$E$1,Worksheet!$B$6,IF(C141=$B$2,Worksheet!$B$7,IF(C141=$C$2,Worksheet!$D$3,IF(C141=$D$2,Worksheet!$D$4,IF(C141=$E$2,Worksheet!$D$5,IF(C141=$C$3,Worksheet!$D$6,IF(C141=$B$3,Worksheet!$D$7,FALSE))))))))))) -> TRUE | AF141: =IF(AE141,D141,"") -> Medium | AG141: =IF(AE141,COUNTIF($AF$5:AF141,AF141),"X") -> 67 | AH141: =CONCATENATE(AE141,AF141) -> TRUEMedium
A142: =CONCATENATE(AE142,D142,AG142) -> TRUEMedium68 | B142: =RAND() -> 0.3940491682 | C142: Frac | D142: Medium | E142: 124 | F142: Fractions. What is | G142: 1/3 | H142: of | I142: =3*RANDBETWEEN(5,10) -> 21 | J142: ? | T142: =CONCATENATE(F142," ",G142," ",H142," ",I142," ",J142," ",K142," ",L142," ",M142," ",N142," ",O142," ",P142," ",Q142," ",R142) -> Fractions. What is 1/3 of 21 ? | U142: =I142/3 -> 7 | AD142: =IF(OR(ISNA(U142),ISNA(V142),ISNA(W142),ISNA(X142),ISNA(Y142),ISNA(Z142),ISNA(AA142),ISNA(AB142),ISNA(AC142)),NA(),CONCATENATE(U142,V142,W142,X142,Y142,Z142,AA142,AB142)) -> 7 | AE142: =IF(ISNA(AD142),FALSE,IF(C142=$B$1,Worksheet!$B$3,IF(C142=$C$1,Worksheet!$B$4,IF(C142=$D$1,Worksheet!$B$5,IF(C142=$E$1,Worksheet!$B$6,IF(C142=$B$2,Worksheet!$B$7,IF(C142=$C$2,Worksheet!$D$3,IF(C142=$D$2,Worksheet!$D$4,IF(C142=$E$2,Worksheet!$D$5,IF(C142=$C$3,Worksheet!$D$6,IF(C142=$B$3,Worksheet!$D$7,FALSE))))))))))) -> TRUE | AF142: =IF(AE142,D142,"") -> Medium | AG142: =IF(AE142,COUNTIF($AF$5:AF142,AF142),"X") -> 68 | AH142: =CONCATENATE(AE142,AF142) -> TRUEMedium
A143: =CONCATENATE(AE143,D143,AG143) -> TRUEMedium69 | B143: =RAND() -> 0.4794113694 | C143: Mult | D143: Medium | E143: 31 | F143: Write out all the numbers in the | G143: =IF(RAND()<0.2,10,RANDBETWEEN(2,5)) -> 5 | H143: times table going backwards: | I143: =CONCATENATE(10*G143,", ",G143*9,", ",G143*8) -> 50, 45, 40 | J143: , ___, ___, ___, ___, ___, ___, ___ | T143: =CONCATENATE(F143," ",G143," ",H143," ",I143," ",J143," ",K143," ",L143," ",M143," ",N143," ",O143," ",P143," ",Q143," ",R143) -> Write out all the numbers in the 5 times table going backwards: 50, 45, 40 , ___, ___, ___, ___, ___, ___, ___ | U143: =CONCATENATE(G143*7,", ",G143*6,", ",G143*5,", ",G143*4,", ",G143*3,", ",G143*2,", ",G143*1) -> 35, 30, 25, 20, 15, 10, 5 | AD143: =IF(OR(ISNA(U143),ISNA(V143),ISNA(W143),ISNA(X143),ISNA(Y143),ISNA(Z143),ISNA(AA143),ISNA(AB143),ISNA(AC143)),NA(),CONCATENATE(U143,V143,W143,X143,Y143,Z143,AA143,AB143)) -> 35, 30, 25, 20, 15, 10, 5 | AE143: =IF(ISNA(AD143),FALSE,IF(C143=$B$1,Worksheet!$B$3,IF(C143=$C$1,Worksheet!$B$4,IF(C143=$D$1,Worksheet!$B$5,IF(C143=$E$1,Worksheet!$B$6,IF(C143=$B$2,Worksheet!$B$7,IF(C143=$C$2,Worksheet!$D$3,IF(C143=$D$2,Worksheet!$D$4,IF(C143=$E$2,Worksheet!$D$5,IF(C143=$C$3,Worksheet!$D$6,IF(C143=$B$3,Worksheet!$D$7,FALSE))))))))))) -> TRUE | AF143: =IF(AE143,D143,"") -> Medium | AG143: =IF(AE143,COUNTIF($AF$5:AF143,AF143),"X") -> 69 | AH143: =CONCATENATE(AE143,AF143) -> TRUEMedium
A144: =CONCATENATE(AE144,D144,AG144) -> TRUEMedium70 | B144: =RAND() -> 0.2338094193 | C144: Mult | D144: Medium | E144: 81 | F144: Multiply | G144: =RANDBETWEEN(11,99) -> 72 | H144: × | I144: 10 | T144: =CONCATENATE(F144," ",G144," ",H144," ",I144," ",J144," ",K144," ",L144," ",M144," ",N144," ",O144," ",P144," ",Q144," ",R144) -> Multiply 72 × 10 | U144: =G144*I144 -> 720 | AD144: =IF(OR(ISNA(U144),ISNA(V144),ISNA(W144),ISNA(X144),ISNA(Y144),ISNA(Z144),ISNA(AA144),ISNA(AB144),ISNA(AC144)),NA(),CONCATENATE(U144,V144,W144,X144,Y144,Z144,AA144,AB144)) -> 720 | AE144: =IF(ISNA(AD144),FALSE,IF(C144=$B$1,Worksheet!$B$3,IF(C144=$C$1,Worksheet!$B$4,IF(C144=$D$1,Worksheet!$B$5,IF(C144=$E$1,Worksheet!$B$6,IF(C144=$B$2,Worksheet!$B$7,IF(C144=$C$2,Worksheet!$D$3,IF(C144=$D$2,Worksheet!$D$4,IF(C144=$E$2,Worksheet!$D$5,IF(C144=$C$3,Worksheet!$D$6,IF(C144=$B$3,Worksheet!$D$7,FALSE))))))))))) -> TRUE | AF144: =IF(AE144,D144,"") -> Medium | AG144: =IF(AE144,COUNTIF($AF$5:AF144,AF144),"X") -> 70 | AH144: =CONCATENATE(AE144,AF144) -> TRUEMedium
A145: =CONCATENATE(AE145,D145,AG145) -> TRUEMedium71 | B145: =RAND() -> 0.8665595272 | C145: Dec | D145: Medium | E145: 138 | F145: How many pounds are there in | G145: =RANDBETWEEN(1,9)*100+RANDBETWEEN(1,99) -> 543 | H145: p? | T145: =CONCATENATE(F145," ",G145,"",H145," ",I145," ",J145," ",K145," ",L145," ",M145," ",N145," ",O145," ",P145," ",Q145," ",R145) -> How many pounds are there in 543p? | U145: £ | V145: =TEXT(G145/100,"#.00") -> 5.43 | AD145: =IF(OR(ISNA(U145),ISNA(V145),ISNA(W145),ISNA(X145),ISNA(Y145),ISNA(Z145),ISNA(AA145),ISNA(AB145),ISNA(AC145)),NA(),CONCATENATE(U145,V145,W145,X145,Y145,Z145,AA145,AB145)) -> £5.43 | AE145: =IF(ISNA(AD145),FALSE,IF(C145=$B$1,Worksheet!$B$3,IF(C145=$C$1,Worksheet!$B$4,IF(C145=$D$1,Worksheet!$B$5,IF(C145=$E$1,Worksheet!$B$6,IF(C145=$B$2,Worksheet!$B$7,IF(C145=$C$2,Worksheet!$D$3,IF(C145=$D$2,Worksheet!$D$4,IF(C145=$E$2,Worksheet!$D$5,IF(C145=$C$3,Worksheet!$D$6,IF(C145=$B$3,Worksheet!$D$7,FALSE))))))))))) -> TRUE | AF145: =IF(AE145,D145,"") -> Medium | AG145: =IF(AE145,COUNTIF($AF$5:AF145,AF145),"X") -> 71 | AH145: =CONCATENATE(AE145,AF145) -> TRUEMedium
A146: =CONCATENATE(AE146,D146,AG146) -> TRUEEasy45 | B146: =RAND() -> 0.7788084503 | C146: Frac | D146: Easy | E146: 119 | F146: Fractions. What is | G146: 1/3 | H146: of | I146: =3*RANDBETWEEN(2,5) -> 9 | J146: ? | T146: =CONCATENATE(F146," ",G146," ",H146," ",I146," ",J146," ",K146," ",L146," ",M146," ",N146," ",O146," ",P146," ",Q146," ",R146) -> Fractions. What is 1/3 of 9 ? | U146: =I146/3 -> 3 | AD146: =IF(OR(ISNA(U146),ISNA(V146),ISNA(W146),ISNA(X146),ISNA(Y146),ISNA(Z146),ISNA(AA146),ISNA(AB146),ISNA(AC146)),NA(),CONCATENATE(U146,V146,W146,X146,Y146,Z146,AA146,AB146)) -> 3 | AE146: =IF(ISNA(AD146),FALSE,IF(C146=$B$1,Worksheet!$B$3,IF(C146=$C$1,Worksheet!$B$4,IF(C146=$D$1,Worksheet!$B$5,IF(C146=$E$1,Worksheet!$B$6,IF(C146=$B$2,Worksheet!$B$7,IF(C146=$C$2,Worksheet!$D$3,IF(C146=$D$2,Worksheet!$D$4,IF(C146=$E$2,Worksheet!$D$5,IF(C146=$C$3,Worksheet!$D$6,IF(C146=$B$3,Worksheet!$D$7,FALSE))))))))))) -> TRUE | AF146: =IF(AE146,D146,"") -> Easy | AG146: =IF(AE146,COUNTIF($AF$5:AF146,AF146),"X") -> 45 | AH146: =CONCATENATE(AE146,AF146) -> TRUEEasy
A147: =CONCATENATE(AE147,D147,AG147) -> TRUEEasy46 | B147: =RAND() -> 0.5239315501 | C147: Dec | D147: Easy | E147: 136 | F147: How many pounds are there in | G147: =RANDBETWEEN(1,9)*100 -> 900 | H147: p? | T147: =CONCATENATE(F147," ",G147,"",H147," ",I147," ",J147," ",K147," ",L147," ",M147," ",N147," ",O147," ",P147," ",Q147," ",R147) -> How many pounds are there in 900p? | U147: £ | V147: =G147/100 -> 9 | AD147: =IF(OR(ISNA(U147),ISNA(V147),ISNA(W147),ISNA(X147),ISNA(Y147),ISNA(Z147),ISNA(AA147),ISNA(AB147),ISNA(AC147)),NA(),CONCATENATE(U147,V147,W147,X147,Y147,Z147,AA147,AB147)) -> £9 | AE147: =IF(ISNA(AD147),FALSE,IF(C147=$B$1,Worksheet!$B$3,IF(C147=$C$1,Worksheet!$B$4,IF(C147=$D$1,Worksheet!$B$5,IF(C147=$E$1,Worksheet!$B$6,IF(C147=$B$2,Worksheet!$B$7,IF(C147=$C$2,Worksheet!$D$3,IF(C147=$D$2,Worksheet!$D$4,IF(C147=$E$2,Worksheet!$D$5,IF(C147=$C$3,Worksheet!$D$6,IF(C147=$B$3,Worksheet!$D$7,FALSE))))))))))) -> TRUE | AF147: =IF(AE147,D147,"") -> Easy | AG147: =IF(AE147,COUNTIF($AF$5:AF147,AF147),"X") -> 46 | AH147: =CONCATENATE(AE147,AF147) -> TRUEEasy
A148: =CONCATENATE(AE148,D148,AG148) -> TRUEHard27 | B148: =RAND() -> 0.3060413642 | C148: % | D148: Hard | E148: 155 | F148: What is | G148: 100% | H148: of £ | I148: =RANDBETWEEN(100,1000) -> 768 | J148: ? | T148: =CONCATENATE(F148," ",G148," ",H148,"",I148,"",J148," ",K148," ",L148," ",M148," ",N148," ",O148," ",P148," ",Q148," ",R148) -> What is 100% of £768? | U148: £ | V148: =I148 -> 768 | AD148: =IF(OR(ISNA(U148),ISNA(V148),ISNA(W148),ISNA(X148),ISNA(Y148),ISNA(Z148),ISNA(AA148),ISNA(AB148),ISNA(AC148)),NA(),CONCATENATE(U148,V148,W148,X148,Y148,Z148,AA148,AB148)) -> £768 | AE148: =IF(ISNA(AD148),FALSE,IF(C148=$B$1,Worksheet!$B$3,IF(C148=$C$1,Worksheet!$B$4,IF(C148=$D$1,Worksheet!$B$5,IF(C148=$E$1,Worksheet!$B$6,IF(C148=$B$2,Worksheet!$B$7,IF(C148=$C$2,Worksheet!$D$3,IF(C148=$D$2,Worksheet!$D$4,IF(C148=$E$2,Worksheet!$D$5,IF(C148=$C$3,Worksheet!$D$6,IF(C148=$B$3,Worksheet!$D$7,FALSE))))))))))) -> TRUE | AF148: =IF(AE148,D148,"") -> Hard | AG148: =IF(AE148,COUNTIF($AF$5:AF148,AF148),"X") -> 27 | AH148: =CONCATENATE(AE148,AF148) -> TRUEHard
A149: =CONCATENATE(AE149,D149,AG149) -> TRUEEasy47 | B149: =RAND() -> 0.7499377864 | C149: Mult | D149: Easy | E149: 29 | F149: Write out all the numbers in the | G149: =IF(RAND()<0.2,10,RANDBETWEEN(2,5)) -> 5 | H149: times table: | I149: =CONCATENATE(G149,", ",G149*2,", ",G149*3) -> 5, 10, 15 | J149: , ___, ___, ___, ___, ___, ___, ___ | T149: =CONCATENATE(F149," ",G149," ",H149," ",I149," ",J149," ",K149," ",L149," ",M149," ",N149," ",O149," ",P149," ",Q149," ",R149) -> Write out all the numbers in the 5 times table: 5, 10, 15 , ___, ___, ___, ___, ___, ___, ___ | U149: =CONCATENATE(G149*4,", ",G149*5,", ",G149*6,", ",G149*7,", ",G149*8,", ",G149*9,", ",G149*10) -> 20, 25, 30, 35, 40, 45, 50 | AD149: =IF(OR(ISNA(U149),ISNA(V149),ISNA(W149),ISNA(X149),ISNA(Y149),ISNA(Z149),ISNA(AA149),ISNA(AB149),ISNA(AC149)),NA(),CONCATENATE(U149,V149,W149,X149,Y149,Z149,AA149,AB149)) -> 20, 25, 30, 35, 40, 45, 50 | AE149: =IF(ISNA(AD149),FALSE,IF(C149=$B$1,Worksheet!$B$3,IF(C149=$C$1,Worksheet!$B$4,IF(C149=$D$1,Worksheet!$B$5,IF(C149=$E$1,Worksheet!$B$6,IF(C149=$B$2,Worksheet!$B$7,IF(C149=$C$2,Worksheet!$D$3,IF(C149=$D$2,Worksheet!$D$4,IF(C149=$E$2,Worksheet!$D$5,IF(C149=$C$3,Worksheet!$D$6,IF(C149=$B$3,Worksheet!$D$7,FALSE))))))))))) -> TRUE | AF149: =IF(AE149,D149,"") -> Easy | AG149: =IF(AE149,COUNTIF($AF$5:AF149,AF149),"X") -> 47 | AH149: =CONCATENATE(AE149,AF149) -> TRUEEasy
A150: =CONCATENATE(AE150,D150,AG150) -> TRUEEasy48 | B150: =RAND() -> 0.5324953101 | C150: Choose | D150: Easy | E150: 107 | F150: =CHOOSE(RANDBETWEEN(1,3),"Sara","Shelby","Louisa") -> Sara | G150: has | H150: =RANDBETWEEN(10,30) -> 15 | I150: sweets. He eats | J150: =RANDBETWEEN(1,5) -> 4 | K150: of them. How many are left? | T150: =CONCATENATE(F150," ",G150," ",H150," ",I150," ",J150," ",K150," ",L150," ",M150," ",N150," ",O150," ",P150," ",Q150," ",R150) -> Sara has 15 sweets. He eats 4 of them. How many are left? | U150: =H150-J150 -> 11 | AD150: =IF(OR(ISNA(U150),ISNA(V150),ISNA(W150),ISNA(X150),ISNA(Y150),ISNA(Z150),ISNA(AA150),ISNA(AB150),ISNA(AC150)),NA(),CONCATENATE(U150,V150,W150,X150,Y150,Z150,AA150,AB150)) -> 11 | AE150: =IF(ISNA(AD150),FALSE,IF(C150=$B$1,Worksheet!$B$3,IF(C150=$C$1,Worksheet!$B$4,IF(C150=$D$1,Worksheet!$B$5,IF(C150=$E$1,Worksheet!$B$6,IF(C150=$B$2,Worksheet!$B$7,IF(C150=$C$2,Worksheet!$D$3,IF(C150=$D$2,Worksheet!$D$4,IF(C150=$E$2,Worksheet!$D$5,IF(C150=$C$3,Worksheet!$D$6,IF(C150=$B$3,Worksheet!$D$7,FALSE))))))))))) -> TRUE | AF150: =IF(AE150,D150,"") -> Easy | AG150: =IF(AE150,COUNTIF($AF$5:AF150,AF150),"X") -> 48 | AH150: =CONCATENATE(AE150,AF150) -> TRUEEasy
A151: =CONCATENATE(AE151,D151,AG151) -> TRUEMedium72 | B151: =RAND() -> 0.1404642304 | C151: Choose | D151: Medium | E151: 106 | F151: =CHOOSE(RANDBETWEEN(1,3),"Tom","Steven","Liam") -> Liam | G151: has | H151: =RANDBETWEEN(22,30) -> 27 | I151: sweets. He eats | J151: =RANDBETWEEN(11,H151/2) -> 12 | K151: of them. How many are left? | T151: =CONCATENATE(F151," ",G151," ",H151," ",I151," ",J151," ",K151," ",L151," ",M151," ",N151," ",O151," ",P151," ",Q151," ",R151) -> Liam has 27 sweets. He eats 12 of them. How many are left? | U151: =H151-J151 -> 15 | AD151: =IF(OR(ISNA(U151),ISNA(V151),ISNA(W151),ISNA(X151),ISNA(Y151),ISNA(Z151),ISNA(AA151),ISNA(AB151),ISNA(AC151)),NA(),CONCATENATE(U151,V151,W151,X151,Y151,Z151,AA151,AB151)) -> 15 | AE151: =IF(ISNA(AD151),FALSE,IF(C151=$B$1,Worksheet!$B$3,IF(C151=$C$1,Worksheet!$B$4,IF(C151=$D$1,Worksheet!$B$5,IF(C151=$E$1,Worksheet!$B$6,IF(C151=$B$2,Worksheet!$B$7,IF(C151=$C$2,Worksheet!$D$3,IF(C151=$D$2,Worksheet!$D$4,IF(C151=$E$2,Worksheet!$D$5,IF(C151=$C$3,Worksheet!$D$6,IF(C151=$B$3,Worksheet!$D$7,FALSE))))))))))) -> TRUE | AF151: =IF(AE151,D151,"") -> Medium | AG151: =IF(AE151,COUNTIF($AF$5:AF151,AF151),"X") -> 72 | AH151: =CONCATENATE(AE151,AF151) -> TRUEMedium
A152: =CONCATENATE(AE152,D152,AG152) -> TRUEHard28 | B152: =RAND() -> 0.9647345665 | C152: Round | D152: Hard | E152: 165 | F152: Round | G152: =RANDBETWEEN(10,99)*10+RANDBETWEEN(1,9) -> 312 | H152: to the nearest ten | T152: =CONCATENATE(F152," ",G152," ",H152," ",I152," ",J152," ",K152," ",L152," ",M152," ",N152," ",O152," ",P152," ",Q152," ",R152) -> Round 312 to the nearest ten | U152: =MROUND(G152,10) -> 310 | AD152: =IF(OR(ISNA(U152),ISNA(V152),ISNA(W152),ISNA(X152),ISNA(Y152),ISNA(Z152),ISNA(AA152),ISNA(AB152),ISNA(AC152)),NA(),CONCATENATE(U152,V152,W152,X152,Y152,Z152,AA152,AB152)) -> 310 | AE152: =IF(ISNA(AD152),FALSE,IF(C152=$B$1,Worksheet!$B$3,IF(C152=$C$1,Worksheet!$B$4,IF(C152=$D$1,Worksheet!$B$5,IF(C152=$E$1,Worksheet!$B$6,IF(C152=$B$2,Worksheet!$B$7,IF(C152=$C$2,Worksheet!$D$3,IF(C152=$D$2,Worksheet!$D$4,IF(C152=$E$2,Worksheet!$D$5,IF(C152=$C$3,Worksheet!$D$6,IF(C152=$B$3,Worksheet!$D$7,FALSE))))))))))) -> TRUE | AF152: =IF(AE152,D152,"") -> Hard | AG152: =IF(AE152,COUNTIF($AF$5:AF152,AF152),"X") -> 28 | AH152: =CONCATENATE(AE152,AF152) -> TRUEHard
A153: =CONCATENATE(AE153,D153,AG153) -> TRUEEasy49 | B153: =RAND() -> 0.4401373693 | C153: Num | D153: Easy | E153: 34 | F153: Write these numbers in order from | G153: =CHOOSE(RANDBETWEEN(1,2),"smallest to biggest:","biggest to smallest:") -> biggest to smallest: | H153: =RANDBETWEEN(1000,9999) -> 6308 | I153: =RANDBETWEEN(1000,9999) -> 6630 | J153: =RANDBETWEEN(1000,9999) -> 7858 | K153: =RANDBETWEEN(1000,9999) -> 1044 | T153: =CONCATENATE(F153," ",G153," ",H153,", ",I153,", ",J153,", ",K153," ",L153," ",M153," ",N153," ",O153," ",P153," ",Q153," ",R153) -> Write these numbers in order from biggest to smallest: 6308, 6630, 7858, 1044 | U153: =IF($G153="smallest to biggest:",LARGE($H153:$K153,4),LARGE($H153:$K153,1)) -> 7858 | V153: =IF($G153="smallest to biggest:",LARGE($H153:$K153,3),LARGE($H153:$K153,2)) -> 6630 | W153: =IF($G153="smallest to biggest:",LARGE($H153:$K153,2),LARGE($H153:$K153,3)) -> 6308 | X153: =IF($G153="smallest to biggest:",LARGE($H153:$K153,1),LARGE($H153:$K153,4)) -> 1044 | AD153: =IF(OR(ISNA(U153),ISNA(V153),ISNA(W153),ISNA(X153),ISNA(Y153),ISNA(Z153),ISNA(AA153),ISNA(AB153),ISNA(AC153)),NA(),CONCATENATE(U153,", ",V153,", ",W153,", ",X153,Y153,Z153,AA153,AB153)) -> 7858, 6630, 6308, 1044 | AE153: =IF(ISNA(AD153),FALSE,IF(C153=$B$1,Worksheet!$B$3,IF(C153=$C$1,Worksheet!$B$4,IF(C153=$D$1,Worksheet!$B$5,IF(C153=$E$1,Worksheet!$B$6,IF(C153=$B$2,Worksheet!$B$7,IF(C153=$C$2,Worksheet!$D$3,IF(C153=$D$2,Worksheet!$D$4,IF(C153=$E$2,Worksheet!$D$5,IF(C153=$C$3,Worksheet!$D$6,IF(C153=$B$3,Worksheet!$D$7,FALSE))))))))))) -> TRUE | AF153: =IF(AE153,D153,"") -> Easy | AG153: =IF(AE153,COUNTIF($AF$5:AF153,AF153),"X") -> 49 | AH153: =CONCATENATE(AE153,AF153) -> TRUEEasy
A154: =CONCATENATE(AE154,D154,AG154) -> TRUEHard29 | B154: =RAND() -> 0.9889639053 | C154: Frac | D154: Hard | E154: 131 | F154: Fractions. What is | G154: 1/5 | H154: of | I154: =5*RANDBETWEEN(8,12) -> 40 | J154: ? | T154: =CONCATENATE(F154," ",G154," ",H154," ",I154," ",J154," ",K154," ",L154," ",M154," ",N154," ",O154," ",P154," ",Q154," ",R154) -> Fractions. What is 1/5 of 40 ? | U154: =I154/5 -> 8 | AD154: =IF(OR(ISNA(U154),ISNA(V154),ISNA(W154),ISNA(X154),ISNA(Y154),ISNA(Z154),ISNA(AA154),ISNA(AB154),ISNA(AC154)),NA(),CONCATENATE(U154,V154,W154,X154,Y154,Z154,AA154,AB154)) -> 8 | AE154: =IF(ISNA(AD154),FALSE,IF(C154=$B$1,Worksheet!$B$3,IF(C154=$C$1,Worksheet!$B$4,IF(C154=$D$1,Worksheet!$B$5,IF(C154=$E$1,Worksheet!$B$6,IF(C154=$B$2,Worksheet!$B$7,IF(C154=$C$2,Worksheet!$D$3,IF(C154=$D$2,Worksheet!$D$4,IF(C154=$E$2,Worksheet!$D$5,IF(C154=$C$3,Worksheet!$D$6,IF(C154=$B$3,Worksheet!$D$7,FALSE))))))))))) -> TRUE | AF154: =IF(AE154,D154,"") -> Hard | AG154: =IF(AE154,COUNTIF($AF$5:AF154,AF154),"X") -> 29 | AH154: =CONCATENATE(AE154,AF154) -> TRUEHard
A155: =CONCATENATE(AE155,D155,AG155) -> TRUEHard30 | B155: =RAND() -> 0.9054128497 | C155: Divide | D155: Hard | E155: 99 | F155: Divide: | G155: =100*RANDBETWEEN(11,99) -> 1700 | H155: ÷ | I155: 10 | T155: =CONCATENATE(F155," ",G155," ",H155," ",I155," ",J155," ",K155," ",L155," ",M155," ",N155," ",O155," ",P155," ",Q155," ",R155) -> Divide: 1700 ÷ 10 | U155: =G155/I155 -> 170 | AD155: =IF(OR(ISNA(U155),ISNA(V155),ISNA(W155),ISNA(X155),ISNA(Y155),ISNA(Z155),ISNA(AA155),ISNA(AB155),ISNA(AC155)),NA(),CONCATENATE(U155,V155,W155,X155,Y155,Z155,AA155,AB155)) -> 170 | AE155: =IF(ISNA(AD155),FALSE,IF(C155=$B$1,Worksheet!$B$3,IF(C155=$C$1,Worksheet!$B$4,IF(C155=$D$1,Worksheet!$B$5,IF(C155=$E$1,Worksheet!$B$6,IF(C155=$B$2,Worksheet!$B$7,IF(C155=$C$2,Worksheet!$D$3,IF(C155=$D$2,Worksheet!$D$4,IF(C155=$E$2,Worksheet!$D$5,IF(C155=$C$3,Worksheet!$D$6,IF(C155=$B$3,Worksheet!$D$7,FALSE))))))))))) -> TRUE | AF155: =IF(AE155,D155,"") -> Hard | AG155: =IF(AE155,COUNTIF($AF$5:AF155,AF155),"X") -> 30 | AH155: =CONCATENATE(AE155,AF155) -> TRUEHard
A156: =CONCATENATE(AE156,D156,AG156) -> TRUEMedium73 | B156: =RAND() -> 0.45057981 | C156: Divide | D156: Medium | E156: 98 | F156: Divide: | G156: =10*RANDBETWEEN(11,99) -> 490 | H156: ÷ | I156: 10 | T156: =CONCATENATE(F156," ",G156," ",H156," ",I156," ",J156," ",K156," ",L156," ",M156," ",N156," ",O156," ",P156," ",Q156," ",R156) -> Divide: 490 ÷ 10 | U156: =G156/I156 -> 49 | AD156: =IF(OR(ISNA(U156),ISNA(V156),ISNA(W156),ISNA(X156),ISNA(Y156),ISNA(Z156),ISNA(AA156),ISNA(AB156),ISNA(AC156)),NA(),CONCATENATE(U156,V156,W156,X156,Y156,Z156,AA156,AB156)) -> 49 | AE156: =IF(ISNA(AD156),FALSE,IF(C156=$B$1,Worksheet!$B$3,IF(C156=$C$1,Worksheet!$B$4,IF(C156=$D$1,Worksheet!$B$5,IF(C156=$E$1,Worksheet!$B$6,IF(C156=$B$2,Worksheet!$B$7,IF(C156=$C$2,Worksheet!$D$3,IF(C156=$D$2,Worksheet!$D$4,IF(C156=$E$2,Worksheet!$D$5,IF(C156=$C$3,Worksheet!$D$6,IF(C156=$B$3,Worksheet!$D$7,FALSE))))))))))) -> TRUE | AF156: =IF(AE156,D156,"") -> Medium | AG156: =IF(AE156,COUNTIF($AF$5:AF156,AF156),"X") -> 73 | AH156: =CONCATENATE(AE156,AF156) -> TRUEMedium
A157: =CONCATENATE(AE157,D157,AG157) -> TRUEMedium74 | B157: =RAND() -> 0.8756555723 | C157: Num | D157: Medium | E157: 3 | F157: Write the number " | G157: =CHOOSE(RANDBETWEEN(1,9),"one","two","three","four","five","six","seven","eight","nine") -> four | H157: thousand, and | I157: =CHOOSE(S157,CHOOSE(RANDBETWEEN(1,10),"ten","eleven","twelve","thirteen","fourteen","fifteen","sixteen","seventeen","eighteen","nineteen"),"twenty","thirty","forty","fifty","sixty","seventy","eighty","ninety") -> ninety | J157: =IF(S157=1,"",CHOOSE(RANDBETWEEN(1,9),"one","two","three","four","five","six","seven","eight","nine")) -> nine | K157: " in figures | S157: =RANDBETWEEN(1,9) -> 9 | T157: =CONCATENATE(F157,"",G157," ",H157," ",I157," ",J157,"",K157," ",L157," ",M157," ",N157," ",O157," ",P157," ",Q157," ",R157) -> Write the number "four thousand, and ninety nine" in figures | U157: =IF(G157="one",1,IF(G157="two",2,IF(G157="three",3,IF(G157="four",4,IF(G157="five",5,IF(G157="six",6,IF(G157="seven",7,IF(G157="eight",8,9)))))))) -> 4 | V157: 0 | W157: =S157 -> 9 | X157: =IF(S157=1,IF(I157="ten",0,IF(I157="eleven",1,IF(I157="twelve",2,IF(I157="thirteen",3,IF(I157="fourteen",4,IF(I157="fifteen",5,IF(I157="sixteen",6,IF(I157="seventeen",7,IF(I157="eighteen",8,9))))))))),"") ->  | Y157: =IF(S157<>1,IF(J157="one",1,IF(J157="two",2,IF(J157="three",3,IF(J157="four",4,IF(J157="five",5,IF(J157="six",6,IF(J157="seven",7,IF(J157="eight",8,9)))))))),"") -> 9 | AD157: =IF(OR(ISNA(U157),ISNA(V157),ISNA(W157),ISNA(X157),ISNA(Y157),ISNA(Z157),ISNA(AA157),ISNA(AB157),ISNA(AC157)),NA(),TEXT(CONCATENATE(U157,V157,W157,X157,Y157,Z157,AA157,AB157),"#,###")) -> 4,099 | AE157: =IF(ISNA(AD157),FALSE,IF(C157=$B$1,Worksheet!$B$3,IF(C157=$C$1,Worksheet!$B$4,IF(C157=$D$1,Worksheet!$B$5,IF(C157=$E$1,Worksheet!$B$6,IF(C157=$B$2,Worksheet!$B$7,IF(C157=$C$2,Worksheet!$D$3,IF(C157=$D$2,Worksheet!$D$4,IF(C157=$E$2,Worksheet!$D$5,IF(C157=$C$3,Worksheet!$D$6,IF(C157=$B$3,Worksheet!$D$7,FALSE))))))))))) -> TRUE | AF157: =IF(AE157,D157,"") -> Medium | AG157: =IF(AE157,COUNTIF($AF$5:AF157,AF157),"X") -> 74 | AH157: =CONCATENATE(AE157,AF157) -> TRUEMedium
A158: =CONCATENATE(AE158,D158,AG158) -> TRUEHard31 | B158: =RAND() -> 0.3928920302 | C158: Choose | D158: Hard | E158: 117 | F158: One | G158: =CHOOSE(RANDBETWEEN(1,3),"chair","table","desk") -> desk | H158: costs | I158: =RANDBETWEEN(6,9)*10 -> 90 | J158: How much do | K158: =RANDBETWEEN(2,5) -> 2 | L158: =CONCATENATE(G158,"s") -> desks | M158: cost? | T158: =CONCATENATE(F158," ",G158," ",H158," £",I158,". ",J158," ",K158," ",L158," ",M158," ",N158," ",O158," ",P158," ",Q158," ",R158) -> One desk costs £90. How much do 2 desks cost? | U158: £ | V158: =I158*K158 -> 180 | AD158: =IF(OR(ISNA(U158),ISNA(V158),ISNA(W158),ISNA(X158),ISNA(Y158),ISNA(Z158),ISNA(AA158),ISNA(AB158),ISNA(AC158)),NA(),CONCATENATE(U158,V158,W158,X158,Y158,Z158,AA158,AB158)) -> £180 | AE158: =IF(ISNA(AD158),FALSE,IF(C158=$B$1,Worksheet!$B$3,IF(C158=$C$1,Worksheet!$B$4,IF(C158=$D$1,Worksheet!$B$5,IF(C158=$E$1,Worksheet!$B$6,IF(C158=$B$2,Worksheet!$B$7,IF(C158=$C$2,Worksheet!$D$3,IF(C158=$D$2,Worksheet!$D$4,IF(C158=$E$2,Worksheet!$D$5,IF(C158=$C$3,Worksheet!$D$6,IF(C158=$B$3,Worksheet!$D$7,FALSE))))))))))) -> TRUE | AF158: =IF(AE158,D158,"") -> Hard | AG158: =IF(AE158,COUNTIF($AF$5:AF158,AF158),"X") -> 31 | AH158: =CONCATENATE(AE158,AF158) -> TRUEHard
A159: =CONCATENATE(AE159,D159,AG159) -> TRUEMedium75 | B159: =RAND() -> 0.2991098993 | C159: +- | D159: Medium | E159: 66 | F159: Write down a chimney sum to take away: | G159: =RANDBETWEEN(4,9)*10+RANDBETWEEN(0,5) -> 93 | H159: – | I159: =RANDBETWEEN(1,INT(G159-10)/10-2)*10+RANDBETWEEN(6,9) -> 16 | T159: =CONCATENATE(F159," ",G159," ",H159," ",I159," ",J159," ",K159," ",L159," ",M159," ",N159," ",O159," ",P159," ",Q159," ",R159) -> Write down a chimney sum to take away: 93 – 16 | U159: =G159-I159 -> 77 | AD159: =IF(OR(ISNA(U159),ISNA(V159),ISNA(W159),ISNA(X159),ISNA(Y159),ISNA(Z159),ISNA(AA159),ISNA(AB159),ISNA(AC159)),NA(),CONCATENATE(U159,V159,W159,X159,Y159,Z159,AA159,AB159)) -> 77 | AE159: =IF(ISNA(AD159),FALSE,IF(C159=$B$1,Worksheet!$B$3,IF(C159=$C$1,Worksheet!$B$4,IF(C159=$D$1,Worksheet!$B$5,IF(C159=$E$1,Worksheet!$B$6,IF(C159=$B$2,Worksheet!$B$7,IF(C159=$C$2,Worksheet!$D$3,IF(C159=$D$2,Worksheet!$D$4,IF(C159=$E$2,Worksheet!$D$5,IF(C159=$C$3,Worksheet!$D$6,IF(C159=$B$3,Worksheet!$D$7,FALSE))))))))))) -> TRUE | AF159: =IF(AE159,D159,"") -> Medium | AG159: =IF(AE159,COUNTIF($AF$5:AF159,AF159),"X") -> 75 | AH159: =CONCATENATE(AE159,AF159) -> TRUEMedium
A160: =CONCATENATE(AE160,D160,AG160) -> TRUEHard32 | B160: =RAND() -> 0.1342894298 | C160: % | D160: Hard | E160: 157 | F160: What is | G160: 50% | H160: of £ | I160: =2*RANDBETWEEN(6,45) -> 38 | J160: ? | T160: =CONCATENATE(F160," ",G160," ",H160,"",I160,"",J160," ",K160," ",L160," ",M160," ",N160," ",O160," ",P160," ",Q160," ",R160) -> What is 50% of £38? | U160: £ | V160: =I160/2 -> 19 | AD160: =IF(OR(ISNA(U160),ISNA(V160),ISNA(W160),ISNA(X160),ISNA(Y160),ISNA(Z160),ISNA(AA160),ISNA(AB160),ISNA(AC160)),NA(),CONCATENATE(U160,V160,W160,X160,Y160,Z160,AA160,AB160)) -> £19 | AE160: =IF(ISNA(AD160),FALSE,IF(C160=$B$1,Worksheet!$B$3,IF(C160=$C$1,Worksheet!$B$4,IF(C160=$D$1,Worksheet!$B$5,IF(C160=$E$1,Worksheet!$B$6,IF(C160=$B$2,Worksheet!$B$7,IF(C160=$C$2,Worksheet!$D$3,IF(C160=$D$2,Worksheet!$D$4,IF(C160=$E$2,Worksheet!$D$5,IF(C160=$C$3,Worksheet!$D$6,IF(C160=$B$3,Worksheet!$D$7,FALSE))))))))))) -> TRUE | AF160: =IF(AE160,D160,"") -> Hard | AG160: =IF(AE160,COUNTIF($AF$5:AF160,AF160),"X") -> 32 | AH160: =CONCATENATE(AE160,AF160) -> TRUEHard
A161: =CONCATENATE(AE161,D161,AG161) -> TRUEEasy50 | B161: =RAND() -> 0.432102855 | C161: Num | D161: Easy | E161: 33 | F161: Write these numbers in order from | G161: =CHOOSE(RANDBETWEEN(1,2),"smallest to biggest:","biggest to smallest:") -> biggest to smallest: | H161: =RANDBETWEEN(1,999) -> 335 | I161: =RANDBETWEEN(1,999) -> 738 | J161: =RANDBETWEEN(1,999) -> 474 | K161: =RANDBETWEEN(1,999) -> 318 | T161: =CONCATENATE(F161," ",G161," ",H161,", ",I161,", ",J161,", ",K161," ",L161," ",M161," ",N161," ",O161," ",P161," ",Q161," ",R161) -> Write these numbers in order from biggest to smallest: 335, 738, 474, 318 | U161: =IF($G161="smallest to biggest:",LARGE($H161:$K161,4),LARGE($H161:$K161,1)) -> 738 | V161: =IF($G161="smallest to biggest:",LARGE($H161:$K161,3),LARGE($H161:$K161,2)) -> 474 | W161: =IF($G161="smallest to biggest:",LARGE($H161:$K161,2),LARGE($H161:$K161,3)) -> 335 | X161: =IF($G161="smallest to biggest:",LARGE($H161:$K161,1),LARGE($H161:$K161,4)) -> 318 | AD161: =IF(OR(ISNA(U161),ISNA(V161),ISNA(W161),ISNA(X161),ISNA(Y161),ISNA(Z161),ISNA(AA161),ISNA(AB161),ISNA(AC161)),NA(),CONCATENATE(U161,", ",V161,", ",W161,", ",X161,Y161,Z161,AA161,AB161)) -> 738, 474, 335, 318 | AE161: =IF(ISNA(AD161),FALSE,IF(C161=$B$1,Worksheet!$B$3,IF(C161=$C$1,Worksheet!$B$4,IF(C161=$D$1,Worksheet!$B$5,IF(C161=$E$1,Worksheet!$B$6,IF(C161=$B$2,Worksheet!$B$7,IF(C161=$C$2,Worksheet!$D$3,IF(C161=$D$2,Worksheet!$D$4,IF(C161=$E$2,Worksheet!$D$5,IF(C161=$C$3,Worksheet!$D$6,IF(C161=$B$3,Worksheet!$D$7,FALSE))))))))))) -> TRUE | AF161: =IF(AE161,D161,"") -> Easy | AG161: =IF(AE161,COUNTIF($AF$5:AF161,AF161),"X") -> 50 | AH161: =CONCATENATE(AE161,AF161) -> TRUEEasy
A162: =CONCATENATE(AE162,D162,AG162) -> TRUEEasy51 | B162: =RAND() -> 0.8018031072 | C162: % | D162: Easy | E162: 158 | F162: =RANDBETWEEN(1,9)*10 -> 70 | G162: of the children at a | H162: =CHOOSE(RANDBETWEEN(1,3),"youth club","party","school trip") -> school trip | I162: are | J162: =IF(RAND()<0.5,"girls","boys") -> girls | K162: . What percentage are | L162: =IF(I162="girls","boys","girls") -> girls | M162: ? | T162: =CONCATENATE(F162,"% ",G162," ",H162," ",I162," ",J162,"",K162," ",L162,"",M162," ",N162," ",O162," ",P162," ",Q162," ",R162) -> 70% of the children at a school trip are girls. What percentage are girls? | U162: =100-F162 -> 30 | V162: % | AD162: =IF(OR(ISNA(U162),ISNA(V162),ISNA(W162),ISNA(X162),ISNA(Y162),ISNA(Z162),ISNA(AA162),ISNA(AB162),ISNA(AC162)),NA(),CONCATENATE(U162,V162,W162,X162,Y162,Z162,AA162,AB162)) -> 30% | AE162: =IF(ISNA(AD162),FALSE,IF(C162=$B$1,Worksheet!$B$3,IF(C162=$C$1,Worksheet!$B$4,IF(C162=$D$1,Worksheet!$B$5,IF(C162=$E$1,Worksheet!$B$6,IF(C162=$B$2,Worksheet!$B$7,IF(C162=$C$2,Worksheet!$D$3,IF(C162=$D$2,Worksheet!$D$4,IF(C162=$E$2,Worksheet!$D$5,IF(C162=$C$3,Worksheet!$D$6,IF(C162=$B$3,Worksheet!$D$7,FALSE))))))))))) -> TRUE | AF162: =IF(AE162,D162,"") -> Easy | AG162: =IF(AE162,COUNTIF($AF$5:AF162,AF162),"X") -> 51 | AH162: =CONCATENATE(AE162,AF162) -> TRUEEasy
A163: =CONCATENATE(AE163,D163,AG163) -> TRUEHard33 | B163: =RAND() -> 0.9258676378 | C163: Dec | D163: Hard | E163: 145 | F163: Fill in the blank: | G163: £ | H163: =RANDBETWEEN(1,9) -> 8 | I163: . | J163: =RANDBETWEEN(1,9) -> 6 | L163: = | M163: _____ pounds and ______ pence | T163: =CONCATENATE(F163," ",G163,"",H163,"",I163,"",J163,"",K163," ",L163," ",M163," ",N163," ",O163," ",P163," ",Q163," ",R163) -> Fill in the blank: £8.6 = _____ pounds and ______ pence | U163: =H163 -> 8 | V163: pounds and | W163: =J163*10 -> 60 | X163: pence | AD163: =IF(OR(ISNA(U163),ISNA(V163),ISNA(W163),ISNA(X163),ISNA(Y163),ISNA(Z163),ISNA(AA163),ISNA(AB163),ISNA(AC163)),NA(),CONCATENATE(U163,V163,W163,X163,Y163,Z163,AA163,AB163)) -> 8 pounds and 60 pence | AE163: =IF(ISNA(AD163),FALSE,IF(C163=$B$1,Worksheet!$B$3,IF(C163=$C$1,Worksheet!$B$4,IF(C163=$D$1,Worksheet!$B$5,IF(C163=$E$1,Worksheet!$B$6,IF(C163=$B$2,Worksheet!$B$7,IF(C163=$C$2,Worksheet!$D$3,IF(C163=$D$2,Worksheet!$D$4,IF(C163=$E$2,Worksheet!$D$5,IF(C163=$C$3,Worksheet!$D$6,IF(C163=$B$3,Worksheet!$D$7,FALSE))))))))))) -> TRUE | AF163: =IF(AE163,D163,"") -> Hard | AG163: =IF(AE163,COUNTIF($AF$5:AF163,AF163),"X") -> 33 | AH163: =CONCATENATE(AE163,AF163) -> TRUEHard
A164: =CONCATENATE(AE164,D164,AG164) -> TRUEEasy52 | B164: =RAND() -> 0.9268451943 | C164: Neg | D164: Easy | E164: 167 | F164: Circle the | G164: =IF(RAND()<0.5,"WARMEST","COLDEST") -> WARMEST | H164: temperature: | I164: =RANDBETWEEN(-5,-1) -> -2 | J164: =RANDBETWEEN(1,5) -> 5 | T164: =CONCATENATE(F164," ",G164," ",H164," ",I164,"°C ",J164,"°C ",K164," ",L164," ",M164," ",N164," ",O164," ",P164," ",Q164," ",R164) -> Circle the WARMEST temperature: -2°C 5°C | U164: =IF(G164="WARMEST",MAX(I164:J164),MIN(I164:J164)) -> 5 | V164: °C | Z164: =IF(I164=J164,NA(),"") ->  | AD164: =IF(OR(ISNA(U164),ISNA(V164),ISNA(W164),ISNA(X164),ISNA(Y164),ISNA(Z164),ISNA(AA164),ISNA(AB164),ISNA(AC164)),NA(),CONCATENATE(U164,V164,W164,X164,Y164,Z164,AA164,AB164)) -> 5°C | AE164: =IF(ISNA(AD164),FALSE,IF(C164=$B$1,Worksheet!$B$3,IF(C164=$C$1,Worksheet!$B$4,IF(C164=$D$1,Worksheet!$B$5,IF(C164=$E$1,Worksheet!$B$6,IF(C164=$B$2,Worksheet!$B$7,IF(C164=$C$2,Worksheet!$D$3,IF(C164=$D$2,Worksheet!$D$4,IF(C164=$E$2,Worksheet!$D$5,IF(C164=$C$3,Worksheet!$D$6,IF(C164=$B$3,Worksheet!$D$7,FALSE))))))))))) -> TRUE | AF164: =IF(AE164,D164,"") -> Easy | AG164: =IF(AE164,COUNTIF($AF$5:AF164,AF164),"X") -> 52 | AH164: =CONCATENATE(AE164,AF164) -> TRUEEasy
A165: =CONCATENATE(AE165,D165,AG165) -> TRUEMedium76 | B165: =RAND() -> 0.8669769825 | C165: % | D165: Medium | E165: 153 | F165: What is | G165: 100% | H165: of £ | I165: =RANDBETWEEN(1,100) -> 72 | J165: ? | T165: =CONCATENATE(F165," ",G165," ",H165,"",I165,"",J165," ",K165," ",L165," ",M165," ",N165," ",O165," ",P165," ",Q165," ",R165) -> What is 100% of £72? | U165: £ | V165: =I165 -> 72 | AD165: =IF(OR(ISNA(U165),ISNA(V165),ISNA(W165),ISNA(X165),ISNA(Y165),ISNA(Z165),ISNA(AA165),ISNA(AB165),ISNA(AC165)),NA(),CONCATENATE(U165,V165,W165,X165,Y165,Z165,AA165,AB165)) -> £72 | AE165: =IF(ISNA(AD165),FALSE,IF(C165=$B$1,Worksheet!$B$3,IF(C165=$C$1,Worksheet!$B$4,IF(C165=$D$1,Worksheet!$B$5,IF(C165=$E$1,Worksheet!$B$6,IF(C165=$B$2,Worksheet!$B$7,IF(C165=$C$2,Worksheet!$D$3,IF(C165=$D$2,Worksheet!$D$4,IF(C165=$E$2,Worksheet!$D$5,IF(C165=$C$3,Worksheet!$D$6,IF(C165=$B$3,Worksheet!$D$7,FALSE))))))))))) -> TRUE | AF165: =IF(AE165,D165,"") -> Medium | AG165: =IF(AE165,COUNTIF($AF$5:AF165,AF165),"X") -> 76 | AH165: =CONCATENATE(AE165,AF165) -> TRUEMedium
A166: =CONCATENATE(AE166,D166,AG166) -> TRUEMedium77 | B166: =RAND() -> 0.3888043653 | C166: Num | D166: Medium | E166: 23 | F166: Continue the pattern for three more numbers: | G166: =RANDBETWEEN(11,95)*10+RANDBETWEEN(1,9) -> 537 | H166: =G166+S166 -> 527 | I166: =H166+S166 -> 517 | J166: =I166+S166 -> 507 | K166: ____ | L166: ____ | M166: ____ | S166: -10 | T166: =CONCATENATE(F166," ",G166,", ",H166,", ",I166,", ",J166,", ",K166,", ",L166,", ",M166," ",N166," ",O166," ",P166," ",Q166," ",R166) -> Continue the pattern for three more numbers: 537, 527, 517, 507, ____, ____, ____ | U166: =J166+S166 -> 497 | V166: =U166+S166 -> 487 | AD166: =IF(OR(ISNA(U166),ISNA(V166),ISNA(W166),ISNA(X166),ISNA(Y166),ISNA(Z166),ISNA(AA166),ISNA(AB166),ISNA(AC166)),NA(),CONCATENATE(U166,", ",V166,W166,X166,Y166,Z166,AA166,AB166)) -> 497, 487 | AE166: =IF(ISNA(AD166),FALSE,IF(C166=$B$1,Worksheet!$B$3,IF(C166=$C$1,Worksheet!$B$4,IF(C166=$D$1,Worksheet!$B$5,IF(C166=$E$1,Worksheet!$B$6,IF(C166=$B$2,Worksheet!$B$7,IF(C166=$C$2,Worksheet!$D$3,IF(C166=$D$2,Worksheet!$D$4,IF(C166=$E$2,Worksheet!$D$5,IF(C166=$C$3,Worksheet!$D$6,IF(C166=$B$3,Worksheet!$D$7,FALSE))))))))))) -> TRUE | AF166: =IF(AE166,D166,"") -> Medium | AG166: =IF(AE166,COUNTIF($AF$5:AF166,AF166),"X") -> 77 | AH166: =CONCATENATE(AE166,AF166) -> TRUEMedium
A167: =CONCATENATE(AE167,D167,AG167) -> TRUEEasy53 | B167: =RAND() -> 0.08551909678 | C167: Num | D167: Easy | E167: 21 | F167: Continue the pattern for three more numbers: | G167: =RANDBETWEEN(11,95)*10 -> 600 | H167: =G167+S167 -> 590 | I167: =H167+S167 -> 580 | J167: =I167+S167 -> 570 | K167: ____ | L167: ____ | M167: ____ | S167: -10 | T167: =CONCATENATE(F167," ",G167,", ",H167,", ",I167,", ",J167,", ",K167,", ",L167,", ",M167," ",N167," ",O167," ",P167," ",Q167," ",R167) -> Continue the pattern for three more numbers: 600, 590, 580, 570, ____, ____, ____ | U167: =J167+S167 -> 560 | V167: =U167+S167 -> 550 | AD167: =IF(OR(ISNA(U167),ISNA(V167),ISNA(W167),ISNA(X167),ISNA(Y167),ISNA(Z167),ISNA(AA167),ISNA(AB167),ISNA(AC167)),NA(),CONCATENATE(U167,", ",V167,W167,X167,Y167,Z167,AA167,AB167)) -> 560, 550 | AE167: =IF(ISNA(AD167),FALSE,IF(C167=$B$1,Worksheet!$B$3,IF(C167=$C$1,Worksheet!$B$4,IF(C167=$D$1,Worksheet!$B$5,IF(C167=$E$1,Worksheet!$B$6,IF(C167=$B$2,Worksheet!$B$7,IF(C167=$C$2,Worksheet!$D$3,IF(C167=$D$2,Worksheet!$D$4,IF(C167=$E$2,Worksheet!$D$5,IF(C167=$C$3,Worksheet!$D$6,IF(C167=$B$3,Worksheet!$D$7,FALSE))))))))))) -> TRUE | AF167: =IF(AE167,D167,"") -> Easy | AG167: =IF(AE167,COUNTIF($AF$5:AF167,AF167),"X") -> 53 | AH167: =CONCATENATE(AE167,AF167) -> TRUEEasy
A168: =CONCATENATE(AE168,D168,AG168) -> TRUEMedium78 | B168: =RAND() -> 0.4840908747 | C168: Neg | D168: Medium | E168: 172 | F168: Circle the | G168: =IF(RAND()<0.5,"WARMEST","COLDEST") -> WARMEST | H168: temperature: | I168: 0 | J168: =RANDBETWEEN(-5,5) -> 4 | T168: =CONCATENATE(F168," ",G168," ",H168," ",I168,"°C ",J168,"°C ",K168," ",L168," ",M168," ",N168," ",O168," ",P168," ",Q168," ",R168) -> Circle the WARMEST temperature: 0°C 4°C | U168: =IF(G168="WARMEST",MAX(I168:J168),MIN(I168:J168)) -> 4 | V168: °C | Z168: =IF(I168=J168,NA(),"") ->  | AD168: =IF(OR(ISNA(U168),ISNA(V168),ISNA(W168),ISNA(X168),ISNA(Y168),ISNA(Z168),ISNA(AA168),ISNA(AB168),ISNA(AC168)),NA(),CONCATENATE(U168,V168,W168,X168,Y168,Z168,AA168,AB168)) -> 4°C | AE168: =IF(ISNA(AD168),FALSE,IF(C168=$B$1,Worksheet!$B$3,IF(C168=$C$1,Worksheet!$B$4,IF(C168=$D$1,Worksheet!$B$5,IF(C168=$E$1,Worksheet!$B$6,IF(C168=$B$2,Worksheet!$B$7,IF(C168=$C$2,Worksheet!$D$3,IF(C168=$D$2,Worksheet!$D$4,IF(C168=$E$2,Worksheet!$D$5,IF(C168=$C$3,Worksheet!$D$6,IF(C168=$B$3,Worksheet!$D$7,FALSE))))))))))) -> TRUE | AF168: =IF(AE168,D168,"") -> Medium | AG168: =IF(AE168,COUNTIF($AF$5:AF168,AF168),"X") -> 78 | AH168: =CONCATENATE(AE168,AF168) -> TRUEMedium
A169: =CONCATENATE(AE169,D169,AG169) -> TRUEMedium79 | B169: =RAND() -> 0.5839869839 | C169: Dec | D169: Medium | E169: 144 | F169: How many pence are there in £ | G169: =RANDBETWEEN(10,20) -> 11 | H169: ? | T169: =CONCATENATE(F169,"",G169,"",H169," ",I169," ",J169," ",K169," ",L169," ",M169," ",N169," ",O169," ",P169," ",Q169," ",R169) -> How many pence are there in £11? | U169: =G169*100 -> 1100 | V169: p | AD169: =IF(OR(ISNA(U169),ISNA(V169),ISNA(W169),ISNA(X169),ISNA(Y169),ISNA(Z169),ISNA(AA169),ISNA(AB169),ISNA(AC169)),NA(),CONCATENATE(U169,V169,W169,X169,Y169,Z169,AA169,AB169)) -> 1100p | AE169: =IF(ISNA(AD169),FALSE,IF(C169=$B$1,Worksheet!$B$3,IF(C169=$C$1,Worksheet!$B$4,IF(C169=$D$1,Worksheet!$B$5,IF(C169=$E$1,Worksheet!$B$6,IF(C169=$B$2,Worksheet!$B$7,IF(C169=$C$2,Worksheet!$D$3,IF(C169=$D$2,Worksheet!$D$4,IF(C169=$E$2,Worksheet!$D$5,IF(C169=$C$3,Worksheet!$D$6,IF(C169=$B$3,Worksheet!$D$7,FALSE))))))))))) -> TRUE | AF169: =IF(AE169,D169,"") -> Medium | AG169: =IF(AE169,COUNTIF($AF$5:AF169,AF169),"X") -> 79 | AH169: =CONCATENATE(AE169,AF169) -> TRUEMedium
A170: =CONCATENATE(AE170,D170,AG170) -> TRUEHard34 | B170: =RAND() -> 0.3128837607 | C170: Choose | D170: Hard | E170: 115 | F170: =RANDBETWEEN(2,5) -> 4 | G170: =CHOOSE(RANDBETWEEN(1,3),"apples","oranges","bananas") -> oranges | H170: cost | I170: =U170*F170 -> 24 | J170: p. What does one | K170: =IF(G170="bananas","banana",IF(G170="apples","apple","orange")) -> orange | L170: cost? | T170: =CONCATENATE(F170," ",G170," ",H170," ",I170,"",J170," ",K170," ",L170," ",M170," ",N170," ",O170," ",P170," ",Q170," ",R170) -> 4 oranges cost 24p. What does one orange cost? | U170: =RANDBETWEEN(5,10) -> 6 | V170: p | AD170: =IF(OR(ISNA(U170),ISNA(V170),ISNA(W170),ISNA(X170),ISNA(Y170),ISNA(Z170),ISNA(AA170),ISNA(AB170),ISNA(AC170)),NA(),CONCATENATE(U170,V170,W170,X170,Y170,Z170,AA170,AB170)) -> 6p | AE170: =IF(ISNA(AD170),FALSE,IF(C170=$B$1,Worksheet!$B$3,IF(C170=$C$1,Worksheet!$B$4,IF(C170=$D$1,Worksheet!$B$5,IF(C170=$E$1,Worksheet!$B$6,IF(C170=$B$2,Worksheet!$B$7,IF(C170=$C$2,Worksheet!$D$3,IF(C170=$D$2,Worksheet!$D$4,IF(C170=$E$2,Worksheet!$D$5,IF(C170=$C$3,Worksheet!$D$6,IF(C170=$B$3,Worksheet!$D$7,FALSE))))))))))) -> TRUE | AF170: =IF(AE170,D170,"") -> Hard | AG170: =IF(AE170,COUNTIF($AF$5:AF170,AF170),"X") -> 34 | AH170: =CONCATENATE(AE170,AF170) -> TRUEHard
A171: =CONCATENATE(AE171,D171,AG171) -> TRUEEasy54 | B171: =RAND() -> 0.7180894685 | C171: Num | D171: Easy | E171: 26 | F171: Continue the pattern for three more numbers: | G171: =RANDBETWEEN(7,9)*100 -> 900 | H171: =G171+S171 -> 800 | I171: =H171+S171 -> 700 | J171: =I171+S171 -> 600 | K171: ____ | L171: ____ | M171: ____ | S171: -100 | T171: =CONCATENATE(F171," ",G171,", ",H171,", ",I171,", ",J171,", ",K171,", ",L171,", ",M171," ",N171," ",O171," ",P171," ",Q171," ",R171) -> Continue the pattern for three more numbers: 900, 800, 700, 600, ____, ____, ____ | U171: =J171+S171 -> 500 | V171: =U171+S171 -> 400 | AD171: =IF(OR(ISNA(U171),ISNA(V171),ISNA(W171),ISNA(X171),ISNA(Y171),ISNA(Z171),ISNA(AA171),ISNA(AB171),ISNA(AC171)),NA(),CONCATENATE(U171,", ",V171,W171,X171,Y171,Z171,AA171,AB171)) -> 500, 400 | AE171: =IF(ISNA(AD171),FALSE,IF(C171=$B$1,Worksheet!$B$3,IF(C171=$C$1,Worksheet!$B$4,IF(C171=$D$1,Worksheet!$B$5,IF(C171=$E$1,Worksheet!$B$6,IF(C171=$B$2,Worksheet!$B$7,IF(C171=$C$2,Worksheet!$D$3,IF(C171=$D$2,Worksheet!$D$4,IF(C171=$E$2,Worksheet!$D$5,IF(C171=$C$3,Worksheet!$D$6,IF(C171=$B$3,Worksheet!$D$7,FALSE))))))))))) -> TRUE | AF171: =IF(AE171,D171,"") -> Easy | AG171: =IF(AE171,COUNTIF($AF$5:AF171,AF171),"X") -> 54 | AH171: =CONCATENATE(AE171,AF171) -> TRUEEasy
A172: =CONCATENATE(AE172,D172,AG172) -> TRUEEasy55 | B172: =RAND() -> 0.6053932049 | C172: Num | D172: Easy | E172: 25 | F172: Continue the pattern for three more numbers: | G172: =RANDBETWEEN(1,3)*100 -> 200 | H172: =G172+S172 -> 300 | I172: =H172+S172 -> 400 | J172: =I172+S172 -> 500 | K172: ____ | L172: ____ | M172: ____ | S172: 100 | T172: =CONCATENATE(F172," ",G172,", ",H172,", ",I172,", ",J172,", ",K172,", ",L172,", ",M172," ",N172," ",O172," ",P172," ",Q172," ",R172) -> Continue the pattern for three more numbers: 200, 300, 400, 500, ____, ____, ____ | U172: =J172+S172 -> 600 | V172: =U172+S172 -> 700 | AD172: =IF(OR(ISNA(U172),ISNA(V172),ISNA(W172),ISNA(X172),ISNA(Y172),ISNA(Z172),ISNA(AA172),ISNA(AB172),ISNA(AC172)),NA(),CONCATENATE(U172,", ",V172,W172,X172,Y172,Z172,AA172,AB172)) -> 600, 700 | AE172: =IF(ISNA(AD172),FALSE,IF(C172=$B$1,Worksheet!$B$3,IF(C172=$C$1,Worksheet!$B$4,IF(C172=$D$1,Worksheet!$B$5,IF(C172=$E$1,Worksheet!$B$6,IF(C172=$B$2,Worksheet!$B$7,IF(C172=$C$2,Worksheet!$D$3,IF(C172=$D$2,Worksheet!$D$4,IF(C172=$E$2,Worksheet!$D$5,IF(C172=$C$3,Worksheet!$D$6,IF(C172=$B$3,Worksheet!$D$7,FALSE))))))))))) -> TRUE | AF172: =IF(AE172,D172,"") -> Easy | AG172: =IF(AE172,COUNTIF($AF$5:AF172,AF172),"X") -> 55 | AH172: =CONCATENATE(AE172,AF172) -> TRUEEasy
A173: =CONCATENATE(AE173,D173,AG173) -> TRUEMedium80 | B173: =RAND() -> 0.8092934059 | C173: % | D173: Medium | E173: 156 | F173: What is | G173: 50% | H173: of £ | I173: =RANDBETWEEN(1,4)*20+RANDBETWEEN(1,4)*2 -> 28 | J173: ? | T173: =CONCATENATE(F173," ",G173," ",H173,"",I173,"",J173," ",K173," ",L173," ",M173," ",N173," ",O173," ",P173," ",Q173," ",R173) -> What is 50% of £28? | U173: £ | V173: =I173/2 -> 14 | AD173: =IF(OR(ISNA(U173),ISNA(V173),ISNA(W173),ISNA(X173),ISNA(Y173),ISNA(Z173),ISNA(AA173),ISNA(AB173),ISNA(AC173)),NA(),CONCATENATE(U173,V173,W173,X173,Y173,Z173,AA173,AB173)) -> £14 | AE173: =IF(ISNA(AD173),FALSE,IF(C173=$B$1,Worksheet!$B$3,IF(C173=$C$1,Worksheet!$B$4,IF(C173=$D$1,Worksheet!$B$5,IF(C173=$E$1,Worksheet!$B$6,IF(C173=$B$2,Worksheet!$B$7,IF(C173=$C$2,Worksheet!$D$3,IF(C173=$D$2,Worksheet!$D$4,IF(C173=$E$2,Worksheet!$D$5,IF(C173=$C$3,Worksheet!$D$6,IF(C173=$B$3,Worksheet!$D$7,FALSE))))))))))) -> TRUE | AF173: =IF(AE173,D173,"") -> Medium | AG173: =IF(AE173,COUNTIF($AF$5:AF173,AF173),"X") -> 80 | AH173: =CONCATENATE(AE173,AF173) -> TRUEMedium
A174: =CONCATENATE(AE174,D174,AG174) -> TRUEEasy56 | B174: =RAND() -> 0.7557660145 | C174: Dec | D174: Easy | E174: 133 | F174: A | G174: =CHOOSE(RANDBETWEEN(1,3),"sweet","apple","pen") -> apple | H174: costs | I174: =RANDBETWEEN(3,9) -> 3 | J174: p. How much change do you get from 10p? | T174: =CONCATENATE(F174," ",G174," ",H174," ",I174,"",J174,"",K174," ",L174," ",M174," ",N174," ",O174," ",P174," ",Q174," ",R174) -> A apple costs 3p. How much change do you get from 10p? | U174: =10-I174 -> 7 | V174: p | AD174: =IF(OR(ISNA(U174),ISNA(V174),ISNA(W174),ISNA(X174),ISNA(Y174),ISNA(Z174),ISNA(AA174),ISNA(AB174),ISNA(AC174)),NA(),CONCATENATE(U174,V174,W174,X174,Y174,Z174,AA174,AB174)) -> 7p | AE174: =IF(ISNA(AD174),FALSE,IF(C174=$B$1,Worksheet!$B$3,IF(C174=$C$1,Worksheet!$B$4,IF(C174=$D$1,Worksheet!$B$5,IF(C174=$E$1,Worksheet!$B$6,IF(C174=$B$2,Worksheet!$B$7,IF(C174=$C$2,Worksheet!$D$3,IF(C174=$D$2,Worksheet!$D$4,IF(C174=$E$2,Worksheet!$D$5,IF(C174=$C$3,Worksheet!$D$6,IF(C174=$B$3,Worksheet!$D$7,FALSE))))))))))) -> TRUE | AF174: =IF(AE174,D174,"") -> Easy | AG174: =IF(AE174,COUNTIF($AF$5:AF174,AF174),"X") -> 56 | AH174: =CONCATENATE(AE174,AF174) -> TRUEEasy
A175: =CONCATENATE(AE175,D175,AG175) -> TRUEMedium81 | B175: =RAND() -> 0.4371278877 | C175: Num | D175: Medium | E175: 8 | F175: Fill in the missing numbers: | G175: =RANDBETWEEN(30,80) -> 33 | H175: =G175+S175 -> 29 | I175: =H175+S175 -> 25 | J175: ____ | K175: ____ | L175: =V175+S175 -> 13 | M175: =L175+S175 -> 9 | S175: =RANDBETWEEN(2,5)*(-1) -> -4 | T175: =CONCATENATE(F175," ",G175,", ",H175,", ",I175,", ",J175,", ",K175,", ",L175,", ",M175," ",N175," ",O175," ",P175," ",Q175," ",R175) -> Fill in the missing numbers: 33, 29, 25, ____, ____, 13, 9 | U175: =I175+S175 -> 21 | V175: =U175+S175 -> 17 | AD175: =IF(OR(ISNA(U175),ISNA(V175),ISNA(W175),ISNA(X175),ISNA(Y175),ISNA(Z175),ISNA(AA175),ISNA(AB175),ISNA(AC175)),NA(),CONCATENATE(U175,", ",V175,W175,X175,Y175,Z175,AA175,AB175)) -> 21, 17 | AE175: =IF(ISNA(AD175),FALSE,IF(C175=$B$1,Worksheet!$B$3,IF(C175=$C$1,Worksheet!$B$4,IF(C175=$D$1,Worksheet!$B$5,IF(C175=$E$1,Worksheet!$B$6,IF(C175=$B$2,Worksheet!$B$7,IF(C175=$C$2,Worksheet!$D$3,IF(C175=$D$2,Worksheet!$D$4,IF(C175=$E$2,Worksheet!$D$5,IF(C175=$C$3,Worksheet!$D$6,IF(C175=$B$3,Worksheet!$D$7,FALSE))))))))))) -> TRUE | AF175: =IF(AE175,D175,"") -> Medium | AG175: =IF(AE175,COUNTIF($AF$5:AF175,AF175),"X") -> 81 | AH175: =CONCATENATE(AE175,AF175) -> TRUEMedium
A176: =CONCATENATE(AE176,D176,AG176) -> TRUEMedium82 | B176: =RAND() -> 0.1902738002 | C176: Num | D176: Medium | E176: 16 | F176: Fill in the missing numbers: | G176: =RANDBETWEEN(1,3)*100+RANDBETWEEN(1,99) -> 188 | H176: =G176+S176 -> 288 | I176: =H176+S176 -> 388 | J176: ____ | K176: ____ | L176: =V176+S176 -> 688 | M176: =L176+S176 -> 788 | S176: 100 | T176: =CONCATENATE(F176," ",G176,", ",H176,", ",I176,", ",J176,", ",K176,", ",L176,", ",M176," ",N176," ",O176," ",P176," ",Q176," ",R176) -> Fill in the missing numbers: 188, 288, 388, ____, ____, 688, 788 | U176: =I176+S176 -> 488 | V176: =U176+S176 -> 588 | AD176: =IF(OR(ISNA(U176),ISNA(V176),ISNA(W176),ISNA(X176),ISNA(Y176),ISNA(Z176),ISNA(AA176),ISNA(AB176),ISNA(AC176)),NA(),CONCATENATE(U176,", ",V176,W176,X176,Y176,Z176,AA176,AB176)) -> 488, 588 | AE176: =IF(ISNA(AD176),FALSE,IF(C176=$B$1,Worksheet!$B$3,IF(C176=$C$1,Worksheet!$B$4,IF(C176=$D$1,Worksheet!$B$5,IF(C176=$E$1,Worksheet!$B$6,IF(C176=$B$2,Worksheet!$B$7,IF(C176=$C$2,Worksheet!$D$3,IF(C176=$D$2,Worksheet!$D$4,IF(C176=$E$2,Worksheet!$D$5,IF(C176=$C$3,Worksheet!$D$6,IF(C176=$B$3,Worksheet!$D$7,FALSE))))))))))) -> TRUE | AF176: =IF(AE176,D176,"") -> Medium | AG176: =IF(AE176,COUNTIF($AF$5:AF176,AF176),"X") -> 82 | AH176: =CONCATENATE(AE176,AF176) -> TRUEMedium
A177: =CONCATENATE(AE177,D177,AG177) -> TRUEHard35 | B177: =RAND() -> 0.4562235732 | C177: Divide | D177: Hard | E177: 89 | F177: What is half of | G177: =20*RANDBETWEEN(1,2)+2*RANDBETWEEN(5,9) -> 34 | H177: ? | T177: =CONCATENATE(F177," ",G177,"",H177," ",I177," ",J177," ",K177," ",L177," ",M177," ",N177," ",O177," ",P177," ",Q177," ",R177) -> What is half of 34? | U177: =G177/2 -> 17 | AD177: =IF(OR(ISNA(U177),ISNA(V177),ISNA(W177),ISNA(X177),ISNA(Y177),ISNA(Z177),ISNA(AA177),ISNA(AB177),ISNA(AC177)),NA(),CONCATENATE(U177,V177,W177,X177,Y177,Z177,AA177,AB177)) -> 17 | AE177: =IF(ISNA(AD177),FALSE,IF(C177=$B$1,Worksheet!$B$3,IF(C177=$C$1,Worksheet!$B$4,IF(C177=$D$1,Worksheet!$B$5,IF(C177=$E$1,Worksheet!$B$6,IF(C177=$B$2,Worksheet!$B$7,IF(C177=$C$2,Worksheet!$D$3,IF(C177=$D$2,Worksheet!$D$4,IF(C177=$E$2,Worksheet!$D$5,IF(C177=$C$3,Worksheet!$D$6,IF(C177=$B$3,Worksheet!$D$7,FALSE))))))))))) -> TRUE | AF177: =IF(AE177,D177,"") -> Hard | AG177: =IF(AE177,COUNTIF($AF$5:AF177,AF177),"X") -> 35 | AH177: =CONCATENATE(AE177,AF177) -> TRUEHard
A178: =CONCATENATE(AE178,D178,AG178) -> TRUEMedium83 | B178: =RAND() -> 0.3348038232 | C178: Divide | D178: Medium | E178: 95 | F178: Divide: | G178: =4*RANDBETWEEN(1,10) -> 24 | H178: ÷ | I178: 4 | T178: =CONCATENATE(F178," ",G178," ",H178," ",I178," ",J178," ",K178," ",L178," ",M178," ",N178," ",O178," ",P178," ",Q178," ",R178) -> Divide: 24 ÷ 4 | U178: =G178/I178 -> 6 | AD178: =IF(OR(ISNA(U178),ISNA(V178),ISNA(W178),ISNA(X178),ISNA(Y178),ISNA(Z178),ISNA(AA178),ISNA(AB178),ISNA(AC178)),NA(),CONCATENATE(U178,V178,W178,X178,Y178,Z178,AA178,AB178)) -> 6 | AE178: =IF(ISNA(AD178),FALSE,IF(C178=$B$1,Worksheet!$B$3,IF(C178=$C$1,Worksheet!$B$4,IF(C178=$D$1,Worksheet!$B$5,IF(C178=$E$1,Worksheet!$B$6,IF(C178=$B$2,Worksheet!$B$7,IF(C178=$C$2,Worksheet!$D$3,IF(C178=$D$2,Worksheet!$D$4,IF(C178=$E$2,Worksheet!$D$5,IF(C178=$C$3,Worksheet!$D$6,IF(C178=$B$3,Worksheet!$D$7,FALSE))))))))))) -> TRUE | AF178: =IF(AE178,D178,"") -> Medium | AG178: =IF(AE178,COUNTIF($AF$5:AF178,AF178),"X") -> 83 | AH178: =CONCATENATE(AE178,AF178) -> TRUEMedium
